Transaction Date,Local Authority Department,Beneficiary,Purpose of Expenditure,Amount (excluding VAT),Non Recoverable VAT,Merchant Category
 04-05-2023,Adults,Crystalize Care Services Ltd,Home Care - Private Contractors Payment,502.33,0.00,COMMERCIAL SUPPLIER 
 04-05-2023,Adults,Crystalize Care Services Ltd,Home Care - Private Contractors Payment,502.33,0.00,COMMERCIAL SUPPLIER 
 04-05-2023,Adults,Crystalize Care Services Ltd,Home Care - Private Contractors Payment,502.33,0.00,COMMERCIAL SUPPLIER 
 04-05-2023,Adults,Inna Care Ltd,Home Care - Private Contractors Payment,502.33,0.00,COMMERCIAL SUPPLIER 
 02-05-2023,Adults,Morepower Ltd t/a Aqs Homecare,Home Care - Private Contractors Payment,502.34,0.00,COMMERCIAL SUPPLIER 
 02-05-2023,Adults,Passion Tree Care Services Ltd,Home Care - Private Contractors Payment,502.34,0.00,COMMERCIAL SUPPLIER 
 02-05-2023,Adults,Passion Tree Care Services Ltd,Home Care - Private Contractors Payment,502.34,0.00,COMMERCIAL SUPPLIER 
 02-05-2023,Adults,Passion Tree Care Services Ltd,Home Care - Private Contractors Payment,502.34,0.00,COMMERCIAL SUPPLIER 
 02-05-2023,Adults,Passion Tree Care Services Ltd,Home Care - Private Contractors Payment,502.34,0.00,COMMERCIAL SUPPLIER 
 02-05-2023,Adults,Passion Tree Care Services Ltd,Home Care - Private Contractors Payment,502.34,0.00,COMMERCIAL SUPPLIER 
 03-05-2023,Adults,Lodge Group Care UK Ltd,Home Care - Private Contractors Payment,502.34,0.00,COMMERCIAL SUPPLIER 
 03-05-2023,Adults,Lodge Group Care UK Ltd,Home Care - Private Contractors Payment,502.34,0.00,COMMERCIAL SUPPLIER 
 03-05-2023,Adults,Lodge Group Care UK Ltd,Home Care - Private Contractors Payment,502.34,0.00,COMMERCIAL SUPPLIER 
 03-05-2023,Adults,Lodge Group Care UK Ltd,Home Care - Private Contractors Payment,502.34,0.00,COMMERCIAL SUPPLIER 
 03-05-2023,Adults,Lodge Group Care UK Ltd,Home Care - Private Contractors Payment,502.34,0.00,COMMERCIAL SUPPLIER 
 04-05-2023,Adults,Inna Care Ltd,Home Care - Private Contractors Payment,502.34,0.00,COMMERCIAL SUPPLIER 
 04-05-2023,Adults,Inna Care Ltd,Home Care - Private Contractors Payment,502.34,0.00,COMMERCIAL SUPPLIER 
 04-05-2023,Adults,Inna Care Ltd,Home Care - Private Contractors Payment,502.34,0.00,COMMERCIAL SUPPLIER 
 04-05-2023,Adults,Inna Care Ltd,Home Care - Private Contractors Payment,502.34,0.00,COMMERCIAL SUPPLIER 
 09-05-2023,Adults,Cera Care Operations Ltd,Home Care - Private Contractors Payment,502.34,0.00,COMMERCIAL SUPPLIER 
 12-05-2023,Adults,Home Sweet Home Care Ltd,Home Care - Private Contractors Payment,502.34,0.00,COMMERCIAL SUPPLIER 
 12-05-2023,Adults,Home Sweet Home Care Ltd,Home Care - Private Contractors Payment,502.34,0.00,COMMERCIAL SUPPLIER 
 12-05-2023,Adults,Home Sweet Home Care Ltd,Home Care - Private Contractors Payment,502.34,0.00,COMMERCIAL SUPPLIER 
 12-05-2023,Adults,Home Sweet Home Care Ltd,Home Care - Private Contractors Payment,502.34,0.00,COMMERCIAL SUPPLIER 
 12-05-2023,Adults,Home Sweet Home Care Ltd,Home Care - Private Contractors Payment,502.34,0.00,COMMERCIAL SUPPLIER 
 12-05-2023,Adults,Home Sweet Home Care Ltd,Home Care - Private Contractors Payment,502.34,0.00,COMMERCIAL SUPPLIER 
 12-05-2023,Adults,Home Sweet Home Care Ltd,Home Care - Private Contractors Payment,502.34,0.00,COMMERCIAL SUPPLIER 
 12-05-2023,Adults,Home Sweet Home Care Ltd,Home Care - Private Contractors Payment,502.34,0.00,COMMERCIAL SUPPLIER 
 16-05-2023,Adults,Home Support Services (Havering & Essex) Ltd,Home Care - Private Contractors Payment,502.34,0.00,COMMERCIAL SUPPLIER 
 16-05-2023,Adults,Home Support Services (Havering & Essex) Ltd,Home Care - Private Contractors Payment,502.34,0.00,COMMERCIAL SUPPLIER 
 26-05-2023,Adults,Prestige Care & Support Ltd,Home Care - Private Contractors Payment,502.34,0.00,COMMERCIAL SUPPLIER 
 02-05-2023,Adults,Morepower Ltd t/a Aqs Homecare,Home Care - Private Contractors Payment,502.70,0.00,COMMERCIAL SUPPLIER 
 12-05-2023,Adults,Home Sweet Home Care Ltd,Home Care - Private Contractors Payment,502.70,0.00,COMMERCIAL SUPPLIER 
 12-05-2023,Adults,Home Sweet Home Care Ltd,Home Care - Private Contractors Payment,502.70,0.00,COMMERCIAL SUPPLIER 
 16-05-2023,Adults,Home Support Services (Havering & Essex) Ltd,Home Care - Private Contractors Payment,502.70,0.00,COMMERCIAL SUPPLIER 
 04-05-2023,Adults,Fountains Care Centre - Bondcare,Nursing Homes - Private Contractors Payment,502.86,0.00,COMMERCIAL SUPPLIER 
 12-05-2023,Adults,Home Sweet Home Care Ltd,Home Care - Private Contractors Payment,503.07,0.00,COMMERCIAL SUPPLIER 
 16-05-2023,Adults,Home Support Services (Havering & Essex) Ltd,Home Care - Private Contractors Payment,503.43,0.00,COMMERCIAL SUPPLIER 
 22-05-2023,Adults,John Stanleys Care Agency Ltd,Home Care - Private Contractors Payment,503.48,0.00,COMMERCIAL SUPPLIER 
 03-05-2023,Adults,Lodge Group Care UK Ltd,Home Care - Private Contractors Payment,503.79,0.00,COMMERCIAL SUPPLIER 
 03-05-2023,Adults,Lodge Group Care UK Ltd,Home Care - Private Contractors Payment,503.79,0.00,COMMERCIAL SUPPLIER 
 03-05-2023,Adults,Hospiva Care & Associates Agency Ltd_a,Home Care - Private Contractors Payment,503.79,0.00,COMMERCIAL SUPPLIER 
 03-05-2023,Adults,Hospiva Care & Associates Agency Ltd_a,Home Care - Private Contractors Payment,503.79,0.00,COMMERCIAL SUPPLIER 
 03-05-2023,Adults,Lodge Group Care UK Ltd,Home Care - Private Contractors Payment,504.16,0.00,COMMERCIAL SUPPLIER 
 16-05-2023,Adults,Home Support Services (Havering & Essex) Ltd,Home Care - Private Contractors Payment,504.16,0.00,COMMERCIAL SUPPLIER 
 30-05-2023,Adults,Care-Away Ltd T/A Care Support,Home Care - Private Contractors Payment,504.35,0.00,COMMERCIAL SUPPLIER 
 16-05-2023,Adults,Home Support Services (Havering & Essex) Ltd,Home Care - Private Contractors Payment,504.89,0.00,COMMERCIAL SUPPLIER 
 16-05-2023,Adults,Home Support Services (Havering & Essex) Ltd,Home Care - Private Contractors Payment,504.89,0.00,COMMERCIAL SUPPLIER 
 24-05-2023,Adults,Matrix SCM Ltd,Agency Staff,504.90,0.00,COMMERCIAL SUPPLIER 
 31-05-2023,Adults,Matrix SCM Ltd,Agency Staff,504.90,0.00,COMMERCIAL SUPPLIER 
 03-05-2023,Adults,Lodge Group Care UK Ltd,Home Care - Private Contractors Payment,505.25,0.00,COMMERCIAL SUPPLIER 
 02-05-2023,Adults,Morepower Ltd t/a Aqs Homecare,Home Care - Private Contractors Payment,505.61,0.00,COMMERCIAL SUPPLIER 
 03-05-2023,Adults,Lodge Group Care UK Ltd,Home Care - Private Contractors Payment,505.61,0.00,COMMERCIAL SUPPLIER 
 26-05-2023,Adults,Prestige Care & Support Ltd,Home Care - Private Contractors Payment,505.61,0.00,COMMERCIAL SUPPLIER 
 31-05-2023,Adults,Home Support Services (Havering & Essex) Ltd,Home Care - Private Contractors Payment,505.97,0.00,COMMERCIAL SUPPLIER 
 09-05-2023,Adults,Cera Care Operations Ltd,Home Care - Private Contractors Payment,505.98,0.00,COMMERCIAL SUPPLIER 
 04-05-2023,Adults,Willows Care Home - Churchgate Healthcare (Willows) Ltd,Nursing Care Income,506.04,0.00,COMMERCIAL SUPPLIER 
 04-05-2023,Adults,Willows Care Home - Churchgate Healthcare (Willows) Ltd,Nursing Care Income,506.04,0.00,COMMERCIAL SUPPLIER 
 04-05-2023,Adults,Willows Care Home - Churchgate Healthcare (Willows) Ltd,Nursing Care Income,506.04,0.00,COMMERCIAL SUPPLIER 
 09-05-2023,Adults,Cera Care Operations Ltd,Home Care - Private Contractors Payment,506.34,0.00,COMMERCIAL SUPPLIER 
 02-05-2023,Adults,Morepower Ltd t/a Aqs Homecare,Home Care - Private Contractors Payment,507.07,0.00,COMMERCIAL SUPPLIER 
 12-05-2023,Adults,Home Sweet Home Care Ltd,Home Care - Private Contractors Payment,507.07,0.00,COMMERCIAL SUPPLIER 
 02-05-2023,Adults,Morepower Ltd t/a Aqs Homecare,Home Care - Private Contractors Payment,507.43,0.00,COMMERCIAL SUPPLIER 
 02-05-2023,Adults,Morepower Ltd t/a Aqs Homecare,Home Care - Private Contractors Payment,507.43,0.00,COMMERCIAL SUPPLIER 
 17-05-2023,Adults,Matrix SCM Ltd,Agency Staff,508.09,0.00,COMMERCIAL SUPPLIER 
 03-05-2023,Adults,Lodge Group Care UK Ltd,Home Care - Private Contractors Payment,508.16,0.00,COMMERCIAL SUPPLIER 
 02-05-2023,Adults,Morepower Ltd t/a Aqs Homecare,Home Care - Private Contractors Payment,509.25,0.00,COMMERCIAL SUPPLIER 
 09-05-2023,Adults,Cera Care Operations Ltd,Home Care - Private Contractors Payment,509.62,0.00,COMMERCIAL SUPPLIER 
 22-05-2023,Adults,John Stanleys Care Agency Ltd,Home Care - Private Contractors Payment,509.71,0.00,COMMERCIAL SUPPLIER 
 03-05-2023,Adults,Lodge Group Care UK Ltd,Home Care - Private Contractors Payment,509.98,0.00,COMMERCIAL SUPPLIER 
 03-05-2023,Adults,Lodge Group Care UK Ltd,Home Care - Private Contractors Payment,509.98,0.00,COMMERCIAL SUPPLIER 
 03-05-2023,Adults,Lodge Group Care UK Ltd,Home Care - Private Contractors Payment,509.98,0.00,COMMERCIAL SUPPLIER 
 03-05-2023,Adults,Hospiva Care & Associates Agency Ltd_a,Home Care - Private Contractors Payment,509.98,0.00,COMMERCIAL SUPPLIER 
 16-05-2023,Adults,Home Support Services (Havering & Essex) Ltd,Home Care - Private Contractors Payment,510.35,0.00,COMMERCIAL SUPPLIER 
 16-05-2023,Adults,Home Support Services (Havering & Essex) Ltd,Home Care - Private Contractors Payment,513.26,0.00,COMMERCIAL SUPPLIER 
 30-05-2023,Adults,Care-Away Ltd T/A Care Support,Home Care - Private Contractors Payment,513.52,0.00,COMMERCIAL SUPPLIER 
 30-05-2023,Adults,Care-Away Ltd T/A Care Support,Home Care - Private Contractors Payment,513.52,0.00,COMMERCIAL SUPPLIER 
 30-05-2023,Adults,Care-Away Ltd T/A Care Support,Home Care - Private Contractors Payment,513.52,0.00,COMMERCIAL SUPPLIER 
 16-05-2023,Adults,Home Support Services (Havering & Essex) Ltd,Home Care - Private Contractors Payment,513.99,0.00,COMMERCIAL SUPPLIER 
 04-05-2023,Adults,Ladyville Lodge_a,Respite Care - Private Contractors Payment,514.29,0.00,COMMERCIAL SUPPLIER 
 04-05-2023,Adults,Ladyville Lodge_a,Residential Placements - Private Contractors Payment,514.29,0.00,COMMERCIAL SUPPLIER 
 16-05-2023,Adults,Mayflower Travel,Client Transport,516.00,0.00,COMMERCIAL SUPPLIER 
 03-05-2023,Adults,Lodge Group Care UK Ltd,Home Care - Private Contractors Payment,516.90,0.00,COMMERCIAL SUPPLIER 
 03-05-2023,Adults,Matrix SCM Ltd,Agency Staff,517.20,0.00,COMMERCIAL SUPPLIER 
 17-05-2023,Adults,Matrix SCM Ltd,Agency Staff,517.20,0.00,COMMERCIAL SUPPLIER 
 24-05-2023,Adults,Matrix SCM Ltd,Agency Staff,517.20,0.00,COMMERCIAL SUPPLIER 
 31-05-2023,Adults,Matrix SCM Ltd,Agency Staff,517.20,0.00,COMMERCIAL SUPPLIER 
 12-05-2023,Adults,Home Sweet Home Care Ltd,Home Care - Private Contractors Payment,517.26,0.00,COMMERCIAL SUPPLIER 
 16-05-2023,Adults,Home Support Services (Havering & Essex) Ltd,Home Care - Private Contractors Payment,517.26,0.00,COMMERCIAL SUPPLIER 
 03-05-2023,Adults,Lodge Group Care UK Ltd,Home Care - Private Contractors Payment,517.99,0.00,COMMERCIAL SUPPLIER 
 16-05-2023,Adults,Home Support Services (Havering & Essex) Ltd,Home Care - Private Contractors Payment,518.24,0.00,COMMERCIAL SUPPLIER 
 26-05-2023,Adults,Prior Care Ltd_a,Home Care - Private Contractors Payment,518.35,0.00,COMMERCIAL SUPPLIER 
 09-05-2023,Adults,Cera Care Operations Ltd,Home Care - Private Contractors Payment,519.81,0.00,COMMERCIAL SUPPLIER 
 16-05-2023,Adults,Home Support Services (Havering & Essex) Ltd,Home Care - Private Contractors Payment,521.99,0.00,COMMERCIAL SUPPLIER 
 02-05-2023,Adults,Morepower Ltd t/a Aqs Homecare,Home Care - Private Contractors Payment,523.81,0.00,COMMERCIAL SUPPLIER 
 03-05-2023,Adults,Hospiva Care & Associates Agency Ltd_a,Home Care - Private Contractors Payment,523.81,0.00,COMMERCIAL SUPPLIER 
 18-05-2023,Adults,Care-Away Ltd T/A Care Support,Home Care - Private Contractors Payment,524.00,0.00,COMMERCIAL SUPPLIER 
 04-05-2023,Adults,Willows Care Home - Churchgate Healthcare (Willows) Ltd,Nursing Care Income,524.11,0.00,COMMERCIAL SUPPLIER 
 25-05-2023,Adults,Personal Information - Redacted,Home Care - Private Contractors Payment,524.16,0.00,INDIVIDUALS 
 03-05-2023,Adults,Hospiva Care & Associates Agency Ltd_a,Home Care - Private Contractors Payment,524.17,0.00,COMMERCIAL SUPPLIER 
 25-05-2023,Adults,Personal Information - Redacted,Home Care - Private Contractors Payment,524.17,0.00,INDIVIDUALS 
 31-05-2023,Adults,Home Support Services (Havering & Essex) Ltd,Home Care - Private Contractors Payment,524.18,0.00,COMMERCIAL SUPPLIER 
 03-05-2023,Adults,Lodge Group Care UK Ltd,Home Care - Private Contractors Payment,524.91,0.00,COMMERCIAL SUPPLIER 
 12-05-2023,Adults,Home Sweet Home Care Ltd,Home Care - Private Contractors Payment,527.09,0.00,COMMERCIAL SUPPLIER 
 16-05-2023,Adults,Care-Away Ltd T/A Care Support,Home Care - Private Contractors Payment,527.28,0.00,COMMERCIAL SUPPLIER 
 18-05-2023,Adults,Care-Away Ltd T/A Care Support,Home Care - Private Contractors Payment,527.28,0.00,COMMERCIAL SUPPLIER 
 12-05-2023,Adults,Home Sweet Home Care Ltd,Home Care - Private Contractors Payment,527.46,0.00,COMMERCIAL SUPPLIER 
 24-05-2023,Adults,IJB Healthcare Ltd,Home Care - Private Contractors Payment,531.36,0.00,COMMERCIAL SUPPLIER 
 12-05-2023,Adults,Home Sweet Home Care Ltd,Home Care - Private Contractors Payment,533.64,0.00,COMMERCIAL SUPPLIER 
 16-05-2023,Adults,Home Support Services (Havering & Essex) Ltd,Home Care - Private Contractors Payment,534.37,0.00,COMMERCIAL SUPPLIER 
 26-05-2023,Adults,Prestige Care & Support Ltd,Home Care - Private Contractors Payment,534.74,0.00,COMMERCIAL SUPPLIER 
 03-05-2023,Adults,Lodge Group Care UK Ltd,Home Care - Private Contractors Payment,535.10,0.00,COMMERCIAL SUPPLIER 
 03-05-2023,Adults,Lodge Group Care UK Ltd,Home Care - Private Contractors Payment,535.10,0.00,COMMERCIAL SUPPLIER 
 16-05-2023,Adults,Home Support Services (Havering & Essex) Ltd,Home Care - Private Contractors Payment,535.10,0.00,COMMERCIAL SUPPLIER 
 25-05-2023,Adults,Personal Information - Redacted,Home Care - Private Contractors Payment,535.10,0.00,INDIVIDUALS 
 31-05-2023,Adults,Home Support Services (Havering & Essex) Ltd,Home Care - Private Contractors Payment,535.10,0.00,COMMERCIAL SUPPLIER 
 12-05-2023,Adults,Home Sweet Home Care Ltd,Home Care - Private Contractors Payment,535.46,0.00,COMMERCIAL SUPPLIER 
 12-05-2023,Adults,Home Sweet Home Care Ltd,Home Care - Private Contractors Payment,536.56,0.00,COMMERCIAL SUPPLIER 
 12-05-2023,Adults,Home Sweet Home Care Ltd,Home Care - Private Contractors Payment,537.65,0.00,COMMERCIAL SUPPLIER 
 16-05-2023,Adults,Home Support Services (Havering & Essex) Ltd,Home Care - Private Contractors Payment,537.65,0.00,COMMERCIAL SUPPLIER 
 17-05-2023,Adults,Matrix SCM Ltd,Agency Staff,538.79,0.00,COMMERCIAL SUPPLIER 
 17-05-2023,Adults,Headway East London,Daycare - Private Contractors Payment,539.43,0.00,COMMERCIAL SUPPLIER 
 02-05-2023,Adults,Morepower Ltd t/a Aqs Homecare,Home Care - Private Contractors Payment,541.29,0.00,COMMERCIAL SUPPLIER 
 16-05-2023,Adults,Care-Away Ltd T/A Care Support,Home Care - Private Contractors Payment,542.34,0.00,COMMERCIAL SUPPLIER 
 12-05-2023,Adults,Home Sweet Home Care Ltd,Home Care - Private Contractors Payment,544.20,0.00,COMMERCIAL SUPPLIER 
 31-05-2023,Adults,Matrix SCM Ltd,Agency Staff,545.92,0.00,COMMERCIAL SUPPLIER 
 02-05-2023,Adults,Morepower Ltd t/a Aqs Homecare,Home Care - Private Contractors Payment,546.02,0.00,COMMERCIAL SUPPLIER 
 09-05-2023,Adults,Cera Care Operations Ltd,Home Care - Private Contractors Payment,546.02,0.00,COMMERCIAL SUPPLIER 
 09-05-2023,Adults,Cera Care Operations Ltd,Home Care - Private Contractors Payment,546.02,0.00,COMMERCIAL SUPPLIER 
 25-05-2023,Adults,Personal Information - Redacted,Home Care - Private Contractors Payment,546.02,0.00,INDIVIDUALS 
 03-05-2023,Adults,Hospiva Care & Associates Agency Ltd_a,Home Care - Private Contractors Payment,548.56,0.00,COMMERCIAL SUPPLIER 
 03-05-2023,Adults,Lodge Group Care UK Ltd,Home Care - Private Contractors Payment,548.93,0.00,COMMERCIAL SUPPLIER 
 23-05-2023,Adults,Tapestry_a.,Daycare - Private Contractors Payment,549.00,0.00,COMMERCIAL SUPPLIER 
 17-05-2023,Adults,Matrix SCM Ltd,Agency Staff,550.08,0.00,COMMERCIAL SUPPLIER 
 04-05-2023,Adults,Masumin Ltd t/s Abbeleigh House,Residential Placements - Private Contractors Payment,551.04,0.00,COMMERCIAL SUPPLIER 
 04-05-2023,Adults,Crystalize Care Services Ltd,Home Care - Private Contractors Payment,551.04,0.00,COMMERCIAL SUPPLIER 
 04-05-2023,Adults,Crystalize Care Services Ltd,Home Care - Private Contractors Payment,551.04,0.00,COMMERCIAL SUPPLIER 
 22-05-2023,Adults,John Stanleys Care Agency Ltd,Home Care - Private Contractors Payment,551.04,0.00,COMMERCIAL SUPPLIER 
 04-05-2023,Adults,Fountains Care Centre - Bondcare,Nursing Homes - Private Contractors Payment,552.00,0.00,COMMERCIAL SUPPLIER 
 22-05-2023,Adults,The Camden Society,Daycare - Private Contractors Payment,552.00,0.00,NON COMMERCIAL SUPPLIER 
 22-05-2023,Adults,John Stanleys Care Agency Ltd,Home Care - Private Contractors Payment,552.02,0.00,COMMERCIAL SUPPLIER 
 04-05-2023,Adults,Willows Care Home - Churchgate Healthcare (Willows) Ltd,Nursing Care Income,553.34,0.00,COMMERCIAL SUPPLIER 
 04-05-2023,Adults,Topaz Care and Support Co Ltd,Supported Other Accommodation - Private Contractors Payment,555.20,0.00,COMMERCIAL SUPPLIER 
 04-05-2023,Adults,Topaz Care and Support Co Ltd,Supported Other Accommodation - Private Contractors Payment,555.20,0.00,COMMERCIAL SUPPLIER 
 02-05-2023,Adults,Morepower Ltd t/a Aqs Homecare,Home Care - Private Contractors Payment,556.57,0.00,COMMERCIAL SUPPLIER 
 09-05-2023,Adults,Cera Care Operations Ltd,Home Care - Private Contractors Payment,556.94,0.00,COMMERCIAL SUPPLIER 
 04-05-2023,Adults,Apace Support Services,Supported Other Accommodation - Private Contractors Payment,558.00,0.00,COMMERCIAL SUPPLIER 
 18-05-2023,Adults,Care-Away Ltd T/A Care Support,Home Care - Private Contractors Payment,559.37,0.00,COMMERCIAL SUPPLIER 
 12-05-2023,Adults,Star Mini Cabs.,Client Transport,560.00,0.00,COMMERCIAL SUPPLIER 
 17-05-2023,Adults,Matrix SCM Ltd,Agency Staff,560.00,0.00,COMMERCIAL SUPPLIER 
 31-05-2023,Adults,Home Support Services (Havering & Essex) Ltd,Home Care - Private Contractors Payment,560.22,0.00,COMMERCIAL SUPPLIER 
 17-05-2023,Adults,Matrix SCM Ltd,Agency Staff,560.28,0.00,COMMERCIAL SUPPLIER 
 31-05-2023,Adults,Home Support Services (Havering & Essex) Ltd,Home Care - Private Contractors Payment,562.76,0.00,COMMERCIAL SUPPLIER 
 30-05-2023,Adults,Homestead Care Service,Home Care - Private Contractors Payment,563.49,0.00,COMMERCIAL SUPPLIER 
 02-05-2023,Adults,Morepower Ltd t/a Aqs Homecare,Home Care - Private Contractors Payment,564.22,0.00,COMMERCIAL SUPPLIER 
 03-05-2023,Adults,Lodge Group Care UK Ltd,Home Care - Private Contractors Payment,566.40,0.00,COMMERCIAL SUPPLIER 
 04-05-2023,Adults,Willows Care Home - Churchgate Healthcare (Willows) Ltd,Nursing Care Income,567.01,0.00,COMMERCIAL SUPPLIER 
 30-05-2023,Adults,Homestead Care Service,Home Care - Private Contractors Payment,567.13,0.00,COMMERCIAL SUPPLIER 
 04-05-2023,Adults,Leonard Cheshire Disability_a.,Residential Placements - Private Contractors Payment,567.36,0.00,COMMERCIAL SUPPLIER 
 04-05-2023,Adults,Leonard Cheshire Disability_a.,Residential Placements - Private Contractors Payment,567.36,0.00,COMMERCIAL SUPPLIER 
 04-05-2023,Adults,Leonard Cheshire Disability_a.,Residential Placements - Private Contractors Payment,567.36,0.00,COMMERCIAL SUPPLIER 
 04-05-2023,Adults,Leonard Cheshire Disability_a.,Residential Placements - Private Contractors Payment,567.36,0.00,COMMERCIAL SUPPLIER 
 04-05-2023,Adults,Leonard Cheshire Disability_a.,Residential Placements - Private Contractors Payment,567.36,0.00,COMMERCIAL SUPPLIER 
 04-05-2023,Adults,Leonard Cheshire Disability_a.,Residential Placements - Private Contractors Payment,567.36,0.00,COMMERCIAL SUPPLIER 
 04-05-2023,Adults,Leonard Cheshire Disability_a.,Residential Placements - Private Contractors Payment,567.36,0.00,COMMERCIAL SUPPLIER 
 22-05-2023,Adults,London Homecare Ltd,Home Care - Private Contractors Payment,567.86,0.00,COMMERCIAL SUPPLIER 
 25-05-2023,Adults,Inna Care Ltd,Home Care - Private Contractors Payment,567.86,0.00,COMMERCIAL SUPPLIER 
 02-05-2023,Adults,Morepower Ltd t/a Aqs Homecare,Home Care - Private Contractors Payment,568.22,0.00,COMMERCIAL SUPPLIER 
 03-05-2023,Adults,Lodge Group Care UK Ltd,Home Care - Private Contractors Payment,574.41,0.00,COMMERCIAL SUPPLIER 
 22-05-2023,Adults,John Stanleys Care Agency Ltd,Home Care - Private Contractors Payment,575.31,0.00,COMMERCIAL SUPPLIER 
 19-05-2023,Adults,BeTo Solutions Ltd,Supported Other Accommodation - Private Contractors Payment,576.00,0.00,COMMERCIAL SUPPLIER 
 03-05-2023,Adults,Lodge Group Care UK Ltd,Home Care - Private Contractors Payment,578.78,0.00,COMMERCIAL SUPPLIER 
 09-05-2023,Adults,Cera Care Operations Ltd,Home Care - Private Contractors Payment,578.78,0.00,COMMERCIAL SUPPLIER 
 30-05-2023,Adults,Homestead Care Service,Home Care - Private Contractors Payment,578.78,0.00,COMMERCIAL SUPPLIER 
 30-05-2023,Adults,Homestead Care Service,Home Care - Private Contractors Payment,578.78,0.00,COMMERCIAL SUPPLIER 
 31-05-2023,Adults,Home Support Services (Havering & Essex) Ltd,Home Care - Private Contractors Payment,579.87,0.00,COMMERCIAL SUPPLIER 
 04-05-2023,Adults,Willows Care Home - Churchgate Healthcare (Willows) Ltd,Nursing Care Income,580.20,0.00,COMMERCIAL SUPPLIER 
 16-05-2023,Adults,Home Support Services (Havering & Essex) Ltd,Home Care - Private Contractors Payment,580.60,0.00,COMMERCIAL SUPPLIER 
 26-05-2023,Adults,Prior Care Ltd_a,Home Care - Private Contractors Payment,581.69,0.00,COMMERCIAL SUPPLIER 
 12-05-2023,Adults,Home Sweet Home Care Ltd,Home Care - Private Contractors Payment,582.42,0.00,COMMERCIAL SUPPLIER 
 02-05-2023,Adults,Morepower Ltd t/a Aqs Homecare,Home Care - Private Contractors Payment,583.87,0.00,COMMERCIAL SUPPLIER 
 26-05-2023,Adults,Prior Care Ltd_a,Home Care - Private Contractors Payment,585.70,0.00,COMMERCIAL SUPPLIER 
 04-05-2023,Adults,Affinia Healthcare Ltd_a,Supported Other Accommodation - Private Contractors Payment,586.64,0.00,COMMERCIAL SUPPLIER 
 04-05-2023,Adults,Affinia Healthcare Ltd_a,Supported Other Accommodation - Private Contractors Payment,586.64,0.00,COMMERCIAL SUPPLIER 
 04-05-2023,Adults,Outlook Care - 76 Neave Crescent,Supported Other Accommodation - Private Contractors Payment,586.80,0.00,COMMERCIAL SUPPLIER 
 04-05-2023,Adults,Outlook Care - 76 Neave Crescent,Supported Other Accommodation - Private Contractors Payment,586.80,0.00,COMMERCIAL SUPPLIER 
 04-05-2023,Adults,Leonard Cheshire Disability_a.,Residential Placements - Private Contractors Payment,587.62,0.00,COMMERCIAL SUPPLIER 
 22-05-2023,Adults,Premier Carewaiting Ltd,Home Care - Private Contractors Payment,589.70,0.00,COMMERCIAL SUPPLIER 
 31-05-2023,Adults,Home Support Services (Havering & Essex) Ltd,Home Care - Private Contractors Payment,589.70,0.00,COMMERCIAL SUPPLIER 
 04-05-2023,Adults,Paradise Independent Living,Supported Other Accommodation - Private Contractors Payment,589.92,0.00,NON COMMERCIAL SUPPLIER 
 04-05-2023,Adults,Paradise Independent Living,Supported Other Accommodation - Private Contractors Payment,589.92,0.00,NON COMMERCIAL SUPPLIER 
 05-05-2023,Adults,Gims Care Solution Ltd_a,Home Care - Private Contractors Payment,590.40,0.00,NON COMMERCIAL SUPPLIER 
 22-05-2023,Adults,John Stanleys Care Agency Ltd,Home Care - Private Contractors Payment,590.73,0.00,COMMERCIAL SUPPLIER 
 12-05-2023,Adults,Home Sweet Home Care Ltd,Home Care - Private Contractors Payment,590.79,0.00,COMMERCIAL SUPPLIER 
 30-05-2023,Adults,Homestead Care Service,Home Care - Private Contractors Payment,590.79,0.00,COMMERCIAL SUPPLIER 
 26-05-2023,Adults,Prior Care Ltd_a,Home Care - Private Contractors Payment,591.16,0.00,COMMERCIAL SUPPLIER 
 30-05-2023,Adults,Homestead Care Service,Home Care - Private Contractors Payment,591.16,0.00,COMMERCIAL SUPPLIER 
 03-05-2023,Adults,Lodge Group Care UK Ltd,Home Care - Private Contractors Payment,592.25,0.00,COMMERCIAL SUPPLIER 
 31-05-2023,Adults,Anytime Care 2020_a,Home Care - Private Contractors Payment,592.98,0.00,COMMERCIAL SUPPLIER 
 04-05-2023,Adults,Lodge Lane Care Home Limited,Respite Care - Private Contractors Payment,595.71,0.00,COMMERCIAL SUPPLIER 
 22-05-2023,Adults,John Stanleys Care Agency Ltd,Home Care - Private Contractors Payment,596.96,0.00,COMMERCIAL SUPPLIER 
 03-05-2023,Adults,Matrix SCM Ltd,Agency Staff,599.04,0.00,COMMERCIAL SUPPLIER 
 03-05-2023,Adults,Matrix SCM Ltd,Agency Staff,599.04,0.00,COMMERCIAL SUPPLIER 
 24-05-2023,Adults,Matrix SCM Ltd,Agency Staff,599.04,0.00,COMMERCIAL SUPPLIER 
 24-05-2023,Adults,Matrix SCM Ltd,Agency Staff,599.04,0.00,COMMERCIAL SUPPLIER 
 31-05-2023,Adults,Matrix SCM Ltd,Agency Staff,599.04,0.00,COMMERCIAL SUPPLIER 
 31-05-2023,Adults,Matrix SCM Ltd,Agency Staff,599.04,0.00,COMMERCIAL SUPPLIER 
 17-05-2023,Adults,Matrix SCM Ltd,Agency Staff,599.45,0.00,COMMERCIAL SUPPLIER 
 12-05-2023,Adults,Home Sweet Home Care Ltd,Home Care - Private Contractors Payment,600.62,0.00,COMMERCIAL SUPPLIER 
 26-05-2023,Adults,Prestige Care & Support Ltd,Home Care - Private Contractors Payment,600.62,0.00,COMMERCIAL SUPPLIER 
 30-05-2023,Adults,Homestead Care Service,Home Care - Private Contractors Payment,600.62,0.00,COMMERCIAL SUPPLIER 
 31-05-2023,Adults,Home Support Services (Havering & Essex) Ltd,Home Care - Private Contractors Payment,600.62,0.00,COMMERCIAL SUPPLIER 
 22-05-2023,Adults,John Stanleys Care Agency Ltd,Home Care - Private Contractors Payment,603.85,0.00,COMMERCIAL SUPPLIER 
 12-05-2023,Adults,Home Sweet Home Care Ltd,Home Care - Private Contractors Payment,603.90,0.00,COMMERCIAL SUPPLIER 
 12-05-2023,Adults,Home Sweet Home Care Ltd,Home Care - Private Contractors Payment,603.90,0.00,COMMERCIAL SUPPLIER 
 30-05-2023,Adults,Homestead Care Service,Home Care - Private Contractors Payment,604.99,0.00,COMMERCIAL SUPPLIER 
 30-05-2023,Adults,Homestead Care Service,Home Care - Private Contractors Payment,608.26,0.00,COMMERCIAL SUPPLIER 
 12-05-2023,Adults,Home Sweet Home Care Ltd,Home Care - Private Contractors Payment,609.76,0.00,COMMERCIAL SUPPLIER 
 16-05-2023,Adults,Home Support Services (Havering & Essex) Ltd,Home Care - Private Contractors Payment,610.08,0.00,COMMERCIAL SUPPLIER 
 30-05-2023,Adults,Homestead Care Service,Home Care - Private Contractors Payment,610.08,0.00,COMMERCIAL SUPPLIER 
 22-05-2023,Adults,Outreach Support Services Ltd,Home Care - Private Contractors Payment,611.53,0.00,COMMERCIAL SUPPLIER 
 25-05-2023,Adults,Inna Care Ltd,Home Care - Private Contractors Payment,611.53,0.00,COMMERCIAL SUPPLIER 
 02-05-2023,Adults,Morepower Ltd t/a Aqs Homecare,Home Care - Private Contractors Payment,611.54,0.00,COMMERCIAL SUPPLIER 
 22-05-2023,Adults,Passion Tree Care Services Ltd,Home Care - Private Contractors Payment,611.54,0.00,COMMERCIAL SUPPLIER 
 22-05-2023,Adults,Passion Tree Care Services Ltd,Home Care - Private Contractors Payment,611.54,0.00,COMMERCIAL SUPPLIER 
 22-05-2023,Adults,Passion Tree Care Services Ltd,Home Care - Private Contractors Payment,611.54,0.00,COMMERCIAL SUPPLIER 
 22-05-2023,Adults,London Homecare Ltd,Home Care - Private Contractors Payment,611.54,0.00,COMMERCIAL SUPPLIER 
 22-05-2023,Adults,Outreach Support Services Ltd,Home Care - Private Contractors Payment,611.54,0.00,COMMERCIAL SUPPLIER 
 22-05-2023,Adults,Outreach Support Services Ltd,Home Care - Private Contractors Payment,611.54,0.00,COMMERCIAL SUPPLIER 
 25-05-2023,Adults,Inna Care Ltd,Home Care - Private Contractors Payment,611.54,0.00,COMMERCIAL SUPPLIER 
 25-05-2023,Adults,Inna Care Ltd,Home Care - Private Contractors Payment,611.54,0.00,COMMERCIAL SUPPLIER 
 25-05-2023,Adults,Inna Care Ltd,Home Care - Private Contractors Payment,611.54,0.00,COMMERCIAL SUPPLIER 
 25-05-2023,Adults,Inna Care Ltd,Home Care - Private Contractors Payment,611.54,0.00,COMMERCIAL SUPPLIER 
 25-05-2023,Adults,Inna Care Ltd,Home Care - Private Contractors Payment,611.54,0.00,COMMERCIAL SUPPLIER 
 25-05-2023,Adults,Personal Information - Redacted,Home Care - Private Contractors Payment,611.54,0.00,INDIVIDUALS 
 25-05-2023,Adults,Personal Information - Redacted,Home Care - Private Contractors Payment,611.54,0.00,INDIVIDUALS 
 26-05-2023,Adults,Prestige Care & Support Ltd,Home Care - Private Contractors Payment,611.54,0.00,COMMERCIAL SUPPLIER 
 26-05-2023,Adults,Prestige Care & Support Ltd,Home Care - Private Contractors Payment,611.54,0.00,COMMERCIAL SUPPLIER 
 31-05-2023,Adults,Home Support Services (Havering & Essex) Ltd,Home Care - Private Contractors Payment,611.54,0.00,COMMERCIAL SUPPLIER 
 31-05-2023,Adults,Home Support Services (Havering & Essex) Ltd,Home Care - Private Contractors Payment,611.54,0.00,COMMERCIAL SUPPLIER 
 31-05-2023,Adults,Home Support Services (Havering & Essex) Ltd,Home Care - Private Contractors Payment,611.54,0.00,COMMERCIAL SUPPLIER 
 31-05-2023,Adults,Home Support Services (Havering & Essex) Ltd,Home Care - Private Contractors Payment,611.54,0.00,COMMERCIAL SUPPLIER 
 26-05-2023,Adults,Prestige Care & Support Ltd,Home Care - Private Contractors Payment,611.91,0.00,COMMERCIAL SUPPLIER 
 31-05-2023,Adults,Home Support Services (Havering & Essex) Ltd,Home Care - Private Contractors Payment,611.91,0.00,COMMERCIAL SUPPLIER 
 04-05-2023,Adults,Lodge Lane Care Home Limited,Residential Placements - Private Contractors Payment,612.00,0.00,COMMERCIAL SUPPLIER 
 26-05-2023,Adults,Prestige Care & Support Ltd,Home Care - Private Contractors Payment,612.27,0.00,COMMERCIAL SUPPLIER 
 31-05-2023,Adults,Home Support Services (Havering & Essex) Ltd,Home Care - Private Contractors Payment,613.00,0.00,COMMERCIAL SUPPLIER 
 30-05-2023,Adults,Homestead Care Service,Home Care - Private Contractors Payment,613.36,0.00,COMMERCIAL SUPPLIER 
 30-05-2023,Adults,Homestead Care Service,Home Care - Private Contractors Payment,613.36,0.00,COMMERCIAL SUPPLIER 
 16-05-2023,Adults,Home Support Services (Havering & Essex) Ltd,Home Care - Private Contractors Payment,613.73,0.00,COMMERCIAL SUPPLIER 
 04-05-2023,Adults,Raynet Recruitment Agency Ltd,Supported Other Accommodation - Private Contractors Payment,614.04,0.00,COMMERCIAL SUPPLIER 
 04-05-2023,Adults,Raynet Recruitment Agency Ltd,Supported Other Accommodation - Private Contractors Payment,614.04,0.00,COMMERCIAL SUPPLIER 
 26-05-2023,Adults,Prestige Care & Support Ltd,Home Care - Private Contractors Payment,614.09,0.00,COMMERCIAL SUPPLIER 
 17-05-2023,Adults,Matrix SCM Ltd,Agency Staff,615.16,0.00,COMMERCIAL SUPPLIER 
 26-05-2023,Adults,Prior Care Ltd_a,Home Care - Private Contractors Payment,615.18,0.00,COMMERCIAL SUPPLIER 
 31-05-2023,Adults,Home Support Services (Havering & Essex) Ltd,Home Care - Private Contractors Payment,615.91,0.00,COMMERCIAL SUPPLIER 
 30-05-2023,Adults,Homestead Care Service,Home Care - Private Contractors Payment,616.64,0.00,COMMERCIAL SUPPLIER 
 05-05-2023,Adults,Gims Care Solution Ltd_a,Home Care - Private Contractors Payment,616.89,0.00,NON COMMERCIAL SUPPLIER 
 31-05-2023,Adults,Home Support Services (Havering & Essex) Ltd,Home Care - Private Contractors Payment,617.00,0.00,COMMERCIAL SUPPLIER 
 31-05-2023,Adults,Home Support Services (Havering & Essex) Ltd,Home Care - Private Contractors Payment,618.46,0.00,COMMERCIAL SUPPLIER 
 03-05-2023,Adults,Matrix SCM Ltd,Agency Staff,618.85,0.00,COMMERCIAL SUPPLIER 
 24-05-2023,Adults,Matrix SCM Ltd,Agency Staff,618.85,0.00,COMMERCIAL SUPPLIER 
 31-05-2023,Adults,Matrix SCM Ltd,Agency Staff,618.85,0.00,COMMERCIAL SUPPLIER 
 24-05-2023,Adults,Action First Assessments Ltd,Private Contractors Payment - Other,620.00,0.00,COMMERCIAL SUPPLIER 
 24-05-2023,Adults,Action First Assessments Ltd,Private Contractors Payment - Other,620.00,0.00,COMMERCIAL SUPPLIER 
 30-05-2023,Adults,Lakefield Enterprises Ltd t/a R J Bowyer Building Services,Maintenance - Equipment Furniture And Materials,620.00,0.00,COMMERCIAL SUPPLIER 
 09-05-2023,Adults,Cera Care Operations Ltd,Home Care - Private Contractors Payment,620.64,0.00,COMMERCIAL SUPPLIER 
 17-05-2023,Adults,Personal Information - Redacted,Direct Payments Income,621.56,0.00,INDIVIDUALS 
 17-05-2023,Adults,Personal Information - Redacted,Direct Payments Income,621.56,0.00,INDIVIDUALS 
 31-05-2023,Adults,Home Support Services (Havering & Essex) Ltd,Home Care - Private Contractors Payment,622.83,0.00,COMMERCIAL SUPPLIER 
 16-05-2023,Adults,Care-Away Ltd T/A Care Support,Home Care - Private Contractors Payment,623.56,0.00,COMMERCIAL SUPPLIER 
 31-05-2023,Adults,Home Support Services (Havering & Essex) Ltd,Home Care - Private Contractors Payment,627.19,0.00,COMMERCIAL SUPPLIER 
 04-05-2023,Adults,Inna Care Ltd,Home Care - Private Contractors Payment,627.92,0.00,COMMERCIAL SUPPLIER 
 04-05-2023,Adults,Willows Care Home - Churchgate Healthcare (Willows) Ltd,Nursing Care Income,628.00,0.00,COMMERCIAL SUPPLIER 
 04-05-2023,Adults,Care Square Ltd.,Supported Other Accommodation - Private Contractors Payment,629.60,0.00,COMMERCIAL SUPPLIER 
 04-05-2023,Adults,Care Square Ltd.,Supported Other Accommodation - Private Contractors Payment,629.60,0.00,COMMERCIAL SUPPLIER 
 04-05-2023,Adults,Care Square Ltd.,Supported Other Accommodation - Private Contractors Payment,629.60,0.00,COMMERCIAL SUPPLIER 
 12-05-2023,Adults,Home Sweet Home Care Ltd,Home Care - Private Contractors Payment,629.74,0.00,COMMERCIAL SUPPLIER 
 04-05-2023,Adults,Cygnet Health Care,Residential Placements - Private Contractors Payment,630.00,0.00,COMMERCIAL SUPPLIER 
 04-05-2023,Adults,Efficiency - For Care,Supported Other Accommodation - Private Contractors Payment,630.00,0.00,COMMERCIAL SUPPLIER 
 12-05-2023,Adults,Home Sweet Home Care Ltd,Home Care - Private Contractors Payment,630.11,0.00,COMMERCIAL SUPPLIER 
 31-05-2023,Adults,Home Support Services (Havering & Essex) Ltd,Home Care - Private Contractors Payment,630.83,0.00,COMMERCIAL SUPPLIER 
 31-05-2023,Adults,Home Support Services (Havering & Essex) Ltd,Home Care - Private Contractors Payment,631.56,0.00,COMMERCIAL SUPPLIER 
 17-05-2023,Adults,Matrix SCM Ltd,Agency Staff,631.63,0.00,COMMERCIAL SUPPLIER 
 17-05-2023,Adults,Matrix SCM Ltd,Agency Staff,631.63,0.00,COMMERCIAL SUPPLIER 
 17-05-2023,Adults,Matrix SCM Ltd,Agency Staff,631.63,0.00,COMMERCIAL SUPPLIER 
 17-05-2023,Adults,Matrix SCM Ltd,Agency Staff,631.65,0.00,COMMERCIAL SUPPLIER 
 18-05-2023,Adults,Care-Away Ltd T/A Care Support,Home Care - Private Contractors Payment,632.73,0.00,COMMERCIAL SUPPLIER 
 18-05-2023,Adults,Care-Away Ltd T/A Care Support,Home Care - Private Contractors Payment,632.73,0.00,COMMERCIAL SUPPLIER 
 22-05-2023,Adults,John Stanleys Care Agency Ltd,Home Care - Private Contractors Payment,633.70,0.00,COMMERCIAL SUPPLIER 
 30-05-2023,Adults,Homestead Care Service,Home Care - Private Contractors Payment,637.02,0.00,COMMERCIAL SUPPLIER 
 03-05-2023,Adults,Lodge Group Care UK Ltd,Home Care - Private Contractors Payment,637.75,0.00,COMMERCIAL SUPPLIER 
 03-05-2023,Adults,Lodge Group Care UK Ltd,Home Care - Private Contractors Payment,641.39,0.00,COMMERCIAL SUPPLIER 
 26-05-2023,Adults,Prior Care Ltd_a,Home Care - Private Contractors Payment,644.30,0.00,COMMERCIAL SUPPLIER 
 22-05-2023,Adults,John Stanleys Care Agency Ltd,Home Care - Private Contractors Payment,645.50,0.00,COMMERCIAL SUPPLIER 
 31-05-2023,Adults,Anytime Care 2020_a,Home Care - Private Contractors Payment,647.58,0.00,COMMERCIAL SUPPLIER 
 18-05-2023,Adults,Care-Away Ltd T/A Care Support,Home Care - Private Contractors Payment,647.79,0.00,COMMERCIAL SUPPLIER 
 18-05-2023,Adults,Care-Away Ltd T/A Care Support,Home Care - Private Contractors Payment,647.79,0.00,COMMERCIAL SUPPLIER 
 04-05-2023,Adults,Outreach Support Services Ltd,Supported Other Accommodation - Private Contractors Payment,648.00,0.00,COMMERCIAL SUPPLIER 
 04-05-2023,Adults,Outreach Support Services Ltd,Supported Other Accommodation - Private Contractors Payment,648.00,0.00,COMMERCIAL SUPPLIER 
 12-05-2023,Adults,Home Sweet Home Care Ltd,Home Care - Private Contractors Payment,648.31,0.00,COMMERCIAL SUPPLIER 
 16-05-2023,Adults,Home Support Services (Havering & Essex) Ltd,Home Care - Private Contractors Payment,650.13,0.00,COMMERCIAL SUPPLIER 
 03-05-2023,Adults,Lodge Group Care UK Ltd,Home Care - Private Contractors Payment,650.86,0.00,COMMERCIAL SUPPLIER 
 03-05-2023,Adults,Lodge Group Care UK Ltd,Home Care - Private Contractors Payment,651.58,0.00,COMMERCIAL SUPPLIER 
 03-05-2023,Adults,Lodge Group Care UK Ltd,Home Care - Private Contractors Payment,651.95,0.00,COMMERCIAL SUPPLIER 
 04-05-2023,Adults,Care Square Ltd.,Supported Other Accommodation - Private Contractors Payment,652.09,0.00,COMMERCIAL SUPPLIER 
 22-05-2023,Adults,London Homecare Ltd,Home Care - Private Contractors Payment,655.21,0.00,COMMERCIAL SUPPLIER 
 30-05-2023,Adults,Homestead Care Service,Home Care - Private Contractors Payment,655.21,0.00,COMMERCIAL SUPPLIER 
 25-05-2023,Adults,Inna Care Ltd,Home Care - Private Contractors Payment,655.22,0.00,COMMERCIAL SUPPLIER 
 25-05-2023,Adults,Personal Information - Redacted,Home Care - Private Contractors Payment,655.22,0.00,INDIVIDUALS 
 25-05-2023,Adults,Personal Information - Redacted,Home Care - Private Contractors Payment,655.22,0.00,INDIVIDUALS 
 26-05-2023,Adults,Prestige Care & Support Ltd,Home Care - Private Contractors Payment,658.50,0.00,COMMERCIAL SUPPLIER 
 30-05-2023,Adults,Homestead Care Service,Home Care - Private Contractors Payment,658.86,0.00,COMMERCIAL SUPPLIER 
 30-05-2023,Adults,Homestead Care Service,Home Care - Private Contractors Payment,659.22,0.00,COMMERCIAL SUPPLIER 
 02-05-2023,Adults,Morepower Ltd t/a Aqs Homecare,Home Care - Private Contractors Payment,659.23,0.00,COMMERCIAL SUPPLIER 
 26-05-2023,Adults,Prestige Care & Support Ltd,Home Care - Private Contractors Payment,659.23,0.00,COMMERCIAL SUPPLIER 
 31-05-2023,Adults,Anytime Care 2020_a,Home Care - Private Contractors Payment,661.41,0.00,COMMERCIAL SUPPLIER 
 03-05-2023,Adults,Matrix SCM Ltd,Agency Staff,665.29,0.00,COMMERCIAL SUPPLIER 
 12-05-2023,Adults,Home Sweet Home Care Ltd,Home Care - Private Contractors Payment,666.87,0.00,COMMERCIAL SUPPLIER 
 31-05-2023,Adults,Anytime Care 2020_a,Home Care - Private Contractors Payment,669.42,0.00,COMMERCIAL SUPPLIER 
 02-05-2023,Adults,Morepower Ltd t/a Aqs Homecare,Home Care - Private Contractors Payment,671.23,0.00,COMMERCIAL SUPPLIER 
 19-05-2023,Adults,Gims Care Solution Ltd_a,Supported Other Accommodation - Private Contractors Payment,672.00,0.00,NON COMMERCIAL SUPPLIER 
 19-05-2023,Adults,Gims Care Solution Ltd_a,Supported Other Accommodation - Private Contractors Payment,672.00,0.00,NON COMMERCIAL SUPPLIER 
 04-05-2023,Adults,Blessday Services Ltd,Supported Other Accommodation - Private Contractors Payment,672.76,0.00,COMMERCIAL SUPPLIER 
 24-05-2023,Adults,Matrix SCM Ltd,Agency Staff,674.66,0.00,COMMERCIAL SUPPLIER 
 31-05-2023,Adults,Matrix SCM Ltd,Agency Staff,674.66,0.00,COMMERCIAL SUPPLIER 
 02-05-2023,Adults,Inclusive Care Support Limited,Supported Other Accommodation - Private Contractors Payment,675.81,0.00,COMMERCIAL SUPPLIER 
 04-05-2023,Adults,One Tree Estates Ltd t/a Ashbrook Nursing Home,Respite Care - Private Contractors Payment,678.57,0.00,COMMERCIAL SUPPLIER 
 17-05-2023,Adults,Matrix SCM Ltd,Agency Staff,678.88,0.00,COMMERCIAL SUPPLIER 
 04-05-2023,Adults,Crystalize Care Services Ltd,Home Care - Private Contractors Payment,678.96,0.00,COMMERCIAL SUPPLIER 
 03-05-2023,Adults,Lodge Group Care UK Ltd,Home Care - Private Contractors Payment,681.07,0.00,COMMERCIAL SUPPLIER 
 10-05-2023,Adults,Romford Private Hire Ltd,Client Transport,682.00,0.00,COMMERCIAL SUPPLIER 
 04-05-2023,Adults,Gemini Assisted Living Ltd,Supported Other Accommodation - Private Contractors Payment,686.40,0.00,COMMERCIAL SUPPLIER 
 09-05-2023,Adults,Cera Care Operations Ltd,Home Care - Private Contractors Payment,686.53,0.00,COMMERCIAL SUPPLIER 
 16-05-2023,Adults,Home Support Services (Havering & Essex) Ltd,Home Care - Private Contractors Payment,687.61,0.00,COMMERCIAL SUPPLIER 
 12-05-2023,Adults,Home Sweet Home Care Ltd,Home Care - Private Contractors Payment,687.99,0.00,COMMERCIAL SUPPLIER 
 22-05-2023,Adults,London Homecare Ltd,Home Care - Private Contractors Payment,687.99,0.00,COMMERCIAL SUPPLIER 
 31-05-2023,Adults,Home Support Services (Havering & Essex) Ltd,Home Care - Private Contractors Payment,688.71,0.00,COMMERCIAL SUPPLIER 
 09-05-2023,Adults,Cera Care Operations Ltd,Home Care - Private Contractors Payment,689.08,0.00,COMMERCIAL SUPPLIER 
 09-05-2023,Adults,Cera Care Operations Ltd,Home Care - Private Contractors Payment,691.62,0.00,COMMERCIAL SUPPLIER 
 04-05-2023,Adults,Oaks Residential Home,Residential Care Income,692.98,0.00,COMMERCIAL SUPPLIER 
 03-05-2023,Adults,Matrix SCM Ltd,Agency Staff,695.17,0.00,COMMERCIAL SUPPLIER 
 24-05-2023,Adults,Matrix SCM Ltd,Agency Staff,695.17,0.00,COMMERCIAL SUPPLIER 
 31-05-2023,Adults,Matrix SCM Ltd,Agency Staff,695.17,0.00,COMMERCIAL SUPPLIER 
 03-05-2023,Adults,Matrix SCM Ltd,Agency Staff,695.52,0.00,COMMERCIAL SUPPLIER 
 24-05-2023,Adults,Matrix SCM Ltd,Agency Staff,695.52,0.00,COMMERCIAL SUPPLIER 
 31-05-2023,Adults,Matrix SCM Ltd,Agency Staff,695.52,0.00,COMMERCIAL SUPPLIER 
 22-05-2023,Adults,London Homecare Ltd,Home Care - Private Contractors Payment,695.99,0.00,COMMERCIAL SUPPLIER 
 09-05-2023,Adults,Cera Care Operations Ltd,Home Care - Private Contractors Payment,696.36,0.00,COMMERCIAL SUPPLIER 
 02-05-2023,Adults,Inclusive Care Support Limited,Supported Other Accommodation - Private Contractors Payment,698.40,0.00,COMMERCIAL SUPPLIER 
 02-05-2023,Adults,Inclusive Care Support Limited,Supported Other Accommodation - Private Contractors Payment,698.40,0.00,COMMERCIAL SUPPLIER 
 02-05-2023,Adults,Inclusive Care Support Limited,Supported Other Accommodation - Private Contractors Payment,698.40,0.00,COMMERCIAL SUPPLIER 
 26-05-2023,Adults,Prior Care Ltd_a,Home Care - Private Contractors Payment,698.89,0.00,COMMERCIAL SUPPLIER 
 09-05-2023,Adults,Cera Care Operations Ltd,Home Care - Private Contractors Payment,698.91,0.00,COMMERCIAL SUPPLIER 
 31-05-2023,Adults,Home Support Services (Havering & Essex) Ltd,Home Care - Private Contractors Payment,698.91,0.00,COMMERCIAL SUPPLIER 
 19-05-2023,Adults,Gims Care Solution Ltd_a,Supported Other Accommodation - Private Contractors Payment,700.00,0.00,NON COMMERCIAL SUPPLIER 
 02-05-2023,Adults,Morepower Ltd t/a Aqs Homecare,Home Care - Private Contractors Payment,700.36,0.00,COMMERCIAL SUPPLIER 
 02-05-2023,Adults,Inclusive Care Support Limited,Supported Other Accommodation - Private Contractors Payment,700.84,0.00,COMMERCIAL SUPPLIER 
 02-05-2023,Adults,Inclusive Care Support Limited,Supported Other Accommodation - Private Contractors Payment,700.84,0.00,COMMERCIAL SUPPLIER 
 02-05-2023,Adults,Inclusive Care Support Limited,Supported Other Accommodation - Private Contractors Payment,700.84,0.00,COMMERCIAL SUPPLIER 
 02-05-2023,Adults,Inclusive Care Support Limited,Supported Other Accommodation - Private Contractors Payment,700.84,0.00,COMMERCIAL SUPPLIER 
 02-05-2023,Adults,Inclusive Care Support Limited,Supported Other Accommodation - Private Contractors Payment,700.84,0.00,COMMERCIAL SUPPLIER 
 02-05-2023,Adults,Inclusive Care Support Limited,Supported Other Accommodation - Private Contractors Payment,700.84,0.00,COMMERCIAL SUPPLIER 
 02-05-2023,Adults,Inclusive Care Support Limited,Supported Other Accommodation - Private Contractors Payment,700.84,0.00,COMMERCIAL SUPPLIER 
 02-05-2023,Adults,Inclusive Care Support Limited,Supported Other Accommodation - Private Contractors Payment,700.84,0.00,COMMERCIAL SUPPLIER 
 02-05-2023,Adults,Inclusive Care Support Limited,Supported Other Accommodation - Private Contractors Payment,700.84,0.00,COMMERCIAL SUPPLIER 
 02-05-2023,Adults,Inclusive Care Support Limited,Long Term Support - Community: Supported Living,700.84,0.00,COMMERCIAL SUPPLIER 
 02-05-2023,Adults,Inclusive Care Support Limited,Long Term Support - Community: Supported Living,700.84,0.00,COMMERCIAL SUPPLIER 
 02-05-2023,Adults,Inclusive Care Support Limited,Long Term Support - Community: Supported Living,700.84,0.00,COMMERCIAL SUPPLIER 
 02-05-2023,Adults,Inclusive Care Support Limited,Long Term Support - Community: Supported Living,700.84,0.00,COMMERCIAL SUPPLIER 
 02-05-2023,Adults,Inclusive Care Support Limited,Long Term Support - Community: Supported Living,700.84,0.00,COMMERCIAL SUPPLIER 
 12-05-2023,Adults,Home Sweet Home Care Ltd,Home Care - Private Contractors Payment,701.08,0.00,COMMERCIAL SUPPLIER 
 30-05-2023,Adults,Homestead Care Service,Home Care - Private Contractors Payment,702.55,0.00,COMMERCIAL SUPPLIER 
 03-05-2023,Adults,Lodge Group Care UK Ltd,Home Care - Private Contractors Payment,710.55,0.00,COMMERCIAL SUPPLIER 
 03-05-2023,Adults,Lodge Group Care UK Ltd,Home Care - Private Contractors Payment,710.55,0.00,COMMERCIAL SUPPLIER 
 12-05-2023,Adults,Home Sweet Home Care Ltd,Home Care - Private Contractors Payment,711.28,0.00,COMMERCIAL SUPPLIER 
 24-05-2023,Adults,Matrix SCM Ltd,Agency Staff,713.61,0.00,COMMERCIAL SUPPLIER 
 30-05-2023,Adults,Homestead Care Service,Home Care - Private Contractors Payment,714.92,0.00,COMMERCIAL SUPPLIER 
 12-05-2023,Adults,Home Sweet Home Care Ltd,Home Care - Private Contractors Payment,715.65,0.00,COMMERCIAL SUPPLIER 
 04-05-2023,Adults,Affinia Healthcare Ltd_a,Supported Other Accommodation - Private Contractors Payment,717.53,0.00,COMMERCIAL SUPPLIER 
 30-05-2023,Adults,Homestead Care Service,Home Care - Private Contractors Payment,718.56,0.00,COMMERCIAL SUPPLIER 
 04-05-2023,Adults,Gims Care Solution Ltd_a,Supported Other Accommodation - Private Contractors Payment,720.72,0.00,NON COMMERCIAL SUPPLIER 
 03-05-2023,Adults,Lodge Group Care UK Ltd,Home Care - Private Contractors Payment,722.57,0.00,COMMERCIAL SUPPLIER 
 19-05-2023,Adults,Blessday Services Ltd,Supported Other Accommodation - Private Contractors Payment,722.60,0.00,COMMERCIAL SUPPLIER 
 03-05-2023,Adults,Lodge Group Care UK Ltd,Home Care - Private Contractors Payment,723.66,0.00,COMMERCIAL SUPPLIER 
 31-05-2023,Adults,Home Support Services (Havering & Essex) Ltd,Home Care - Private Contractors Payment,723.66,0.00,COMMERCIAL SUPPLIER 
 09-05-2023,Adults,Cera Care Operations Ltd,Home Care - Private Contractors Payment,724.75,0.00,COMMERCIAL SUPPLIER 
 26-05-2023,Adults,Prestige Care & Support Ltd,Home Care - Private Contractors Payment,728.03,0.00,COMMERCIAL SUPPLIER 
 17-05-2023,Adults,Matrix SCM Ltd,Agency Staff,728.40,0.00,COMMERCIAL SUPPLIER 
 04-05-2023,Adults,Lodge Lane Care Home Limited,Respite Care - Private Contractors Payment,728.57,0.00,COMMERCIAL SUPPLIER 
 26-05-2023,Adults,Prestige Care & Support Ltd,Home Care - Private Contractors Payment,728.75,0.00,COMMERCIAL SUPPLIER 
 24-05-2023,Adults,Matrix SCM Ltd,Agency Staff,730.22,0.00,COMMERCIAL SUPPLIER 
 03-05-2023,Adults,Matrix SCM Ltd,Agency Staff,730.24,0.00,COMMERCIAL SUPPLIER 
 12-05-2023,Adults,Home Sweet Home Care Ltd,Home Care - Private Contractors Payment,731.67,0.00,COMMERCIAL SUPPLIER 
 12-05-2023,Adults,Home Sweet Home Care Ltd,Home Care - Private Contractors Payment,731.67,0.00,COMMERCIAL SUPPLIER 
 12-05-2023,Adults,Home Sweet Home Care Ltd,Home Care - Private Contractors Payment,731.67,0.00,COMMERCIAL SUPPLIER 
 31-05-2023,Adults,Home Support Services (Havering & Essex) Ltd,Home Care - Private Contractors Payment,731.67,0.00,COMMERCIAL SUPPLIER 
 22-05-2023,Adults,Tapestry_a.,Daycare - Private Contractors Payment,732.00,0.00,COMMERCIAL SUPPLIER 
 22-05-2023,Adults,Tapestry_a.,Daycare - Private Contractors Payment,732.00,0.00,COMMERCIAL SUPPLIER 
 22-05-2023,Adults,Tapestry_a.,Daycare - Private Contractors Payment,732.00,0.00,COMMERCIAL SUPPLIER 
 23-05-2023,Adults,Tapestry_a.,Daycare - Private Contractors Payment,732.00,0.00,COMMERCIAL SUPPLIER 
 23-05-2023,Adults,Tapestry_a.,Daycare - Private Contractors Payment,732.00,0.00,COMMERCIAL SUPPLIER 
 23-05-2023,Adults,Tapestry_a.,Daycare - Private Contractors Payment,732.00,0.00,COMMERCIAL SUPPLIER 
 23-05-2023,Adults,Tapestry_a.,Daycare - Private Contractors Payment,732.00,0.00,COMMERCIAL SUPPLIER 
 23-05-2023,Adults,Tapestry_a.,Daycare - Private Contractors Payment,732.00,0.00,COMMERCIAL SUPPLIER 
 16-05-2023,Adults,Home Support Services (Havering & Essex) Ltd,Home Care - Private Contractors Payment,732.03,0.00,COMMERCIAL SUPPLIER 
 04-05-2023,Adults,Affinia Healthcare Ltd_a,Supported Other Accommodation - Private Contractors Payment,733.28,0.00,COMMERCIAL SUPPLIER 
 04-05-2023,Adults,Affinia Healthcare Ltd_a,Supported Other Accommodation - Private Contractors Payment,733.28,0.00,COMMERCIAL SUPPLIER 
 09-05-2023,Adults,Cera Care Operations Ltd,Home Care - Private Contractors Payment,733.49,0.00,COMMERCIAL SUPPLIER 
 31-05-2023,Adults,Home Support Services (Havering & Essex) Ltd,Home Care - Private Contractors Payment,734.94,0.00,COMMERCIAL SUPPLIER 
 26-05-2023,Adults,Prestige Care & Support Ltd,Home Care - Private Contractors Payment,736.40,0.00,COMMERCIAL SUPPLIER 
 18-05-2023,Adults,Care-Away Ltd T/A Care Support,Home Care - Private Contractors Payment,738.19,0.00,COMMERCIAL SUPPLIER 
 18-05-2023,Adults,Care-Away Ltd T/A Care Support,Home Care - Private Contractors Payment,738.19,0.00,COMMERCIAL SUPPLIER 
 02-05-2023,Adults,Morepower Ltd t/a Aqs Homecare,Home Care - Private Contractors Payment,738.58,0.00,COMMERCIAL SUPPLIER 
 04-05-2023,Adults,BeTo Solutions Ltd,Supported Other Accommodation - Private Contractors Payment,738.72,0.00,COMMERCIAL SUPPLIER 
 04-05-2023,Adults,BeTo Solutions Ltd,Supported Other Accommodation - Private Contractors Payment,738.72,0.00,COMMERCIAL SUPPLIER 
 02-05-2023,Adults,Morepower Ltd t/a Aqs Homecare,Home Care - Private Contractors Payment,740.04,0.00,COMMERCIAL SUPPLIER 
 16-05-2023,Adults,Home Support Services (Havering & Essex) Ltd,Home Care - Private Contractors Payment,741.13,0.00,COMMERCIAL SUPPLIER 
 17-05-2023,Adults,Matrix SCM Ltd,Agency Staff,741.32,0.00,COMMERCIAL SUPPLIER 
 12-05-2023,Adults,Home Sweet Home Care Ltd,Home Care - Private Contractors Payment,742.59,0.00,COMMERCIAL SUPPLIER 
 12-05-2023,Adults,Home Sweet Home Care Ltd,Home Care - Private Contractors Payment,742.59,0.00,COMMERCIAL SUPPLIER 
 12-05-2023,Adults,Home Sweet Home Care Ltd,Home Care - Private Contractors Payment,742.59,0.00,COMMERCIAL SUPPLIER 
 26-05-2023,Adults,Prior Care Ltd_a,Home Care - Private Contractors Payment,743.67,0.00,COMMERCIAL SUPPLIER 
 26-05-2023,Adults,Prior Care Ltd_a,Home Care - Private Contractors Payment,744.40,0.00,COMMERCIAL SUPPLIER 
 18-05-2023,Adults,Care-Away Ltd T/A Care Support,Home Care - Private Contractors Payment,746.70,0.00,COMMERCIAL SUPPLIER 
 12-05-2023,Adults,Home Sweet Home Care Ltd,Home Care - Private Contractors Payment,747.32,0.00,COMMERCIAL SUPPLIER 
 12-05-2023,Adults,Home Sweet Home Care Ltd,Home Care - Private Contractors Payment,747.68,0.00,COMMERCIAL SUPPLIER 
 12-05-2023,Adults,Home Sweet Home Care Ltd,Home Care - Private Contractors Payment,749.15,0.00,COMMERCIAL SUPPLIER 
 16-05-2023,Adults,Home Support Services (Havering & Essex) Ltd,Home Care - Private Contractors Payment,750.23,0.00,COMMERCIAL SUPPLIER 
 02-05-2023,Adults,Morepower Ltd t/a Aqs Homecare,Home Care - Private Contractors Payment,750.96,0.00,COMMERCIAL SUPPLIER 
 12-05-2023,Adults,Home Sweet Home Care Ltd,Home Care - Private Contractors Payment,750.96,0.00,COMMERCIAL SUPPLIER 
 30-05-2023,Adults,Care-Away Ltd T/A Care Support,Home Care - Private Contractors Payment,751.94,0.00,COMMERCIAL SUPPLIER 
 30-05-2023,Adults,Care-Away Ltd T/A Care Support,Home Care - Private Contractors Payment,751.94,0.00,COMMERCIAL SUPPLIER 
 02-05-2023,Adults,Passion Tree Care Services Ltd,Home Care - Private Contractors Payment,753.51,0.00,COMMERCIAL SUPPLIER 
 03-05-2023,Adults,Lodge Group Care UK Ltd,Home Care - Private Contractors Payment,753.51,0.00,COMMERCIAL SUPPLIER 
 03-05-2023,Adults,Lodge Group Care UK Ltd,Home Care - Private Contractors Payment,753.51,0.00,COMMERCIAL SUPPLIER 
 03-05-2023,Adults,Lodge Group Care UK Ltd,Home Care - Private Contractors Payment,753.51,0.00,COMMERCIAL SUPPLIER 
 04-05-2023,Adults,Crystalize Care Services Ltd,Home Care - Private Contractors Payment,753.51,0.00,COMMERCIAL SUPPLIER 
 04-05-2023,Adults,Inna Care Ltd,Home Care - Private Contractors Payment,753.51,0.00,COMMERCIAL SUPPLIER 
 04-05-2023,Adults,Inna Care Ltd,Home Care - Private Contractors Payment,753.51,0.00,COMMERCIAL SUPPLIER 
 04-05-2023,Adults,Inna Care Ltd,Home Care - Private Contractors Payment,753.51,0.00,COMMERCIAL SUPPLIER 
 04-05-2023,Adults,Inna Care Ltd,Home Care - Private Contractors Payment,753.51,0.00,COMMERCIAL SUPPLIER 
 04-05-2023,Adults,Inna Care Ltd,Home Care - Private Contractors Payment,753.51,0.00,COMMERCIAL SUPPLIER 
 04-05-2023,Adults,Inna Care Ltd,Home Care - Private Contractors Payment,753.51,0.00,COMMERCIAL SUPPLIER 
 10-05-2023,Adults,Rosemont Care Limited,Home Care - Private Contractors Payment,753.51,0.00,COMMERCIAL SUPPLIER 
 10-05-2023,Adults,Rosemont Care Limited,Home Care - Private Contractors Payment,753.51,0.00,COMMERCIAL SUPPLIER 
 12-05-2023,Adults,Home Sweet Home Care Ltd,Home Care - Private Contractors Payment,753.51,0.00,COMMERCIAL SUPPLIER 
 12-05-2023,Adults,Home Sweet Home Care Ltd,Home Care - Private Contractors Payment,753.51,0.00,COMMERCIAL SUPPLIER 
 12-05-2023,Adults,Home Sweet Home Care Ltd,Home Care - Private Contractors Payment,753.51,0.00,COMMERCIAL SUPPLIER 
 16-05-2023,Adults,Home Support Services (Havering & Essex) Ltd,Home Care - Private Contractors Payment,753.51,0.00,COMMERCIAL SUPPLIER 
 16-05-2023,Adults,Home Support Services (Havering & Essex) Ltd,Home Care - Private Contractors Payment,753.51,0.00,COMMERCIAL SUPPLIER 
 24-05-2023,Adults,Phoenix Care Havering Ltd,Home Care - Private Contractors Payment,753.51,0.00,COMMERCIAL SUPPLIER 
 02-05-2023,Adults,Morepower Ltd t/a Aqs Homecare,Home Care - Private Contractors Payment,753.87,0.00,COMMERCIAL SUPPLIER 
 30-05-2023,Adults,Homestead Care Service,Home Care - Private Contractors Payment,754.59,0.00,COMMERCIAL SUPPLIER 
 03-05-2023,Adults,Lodge Group Care UK Ltd,Home Care - Private Contractors Payment,754.60,0.00,COMMERCIAL SUPPLIER 
 03-05-2023,Adults,Lodge Group Care UK Ltd,Home Care - Private Contractors Payment,754.60,0.00,COMMERCIAL SUPPLIER 
 03-05-2023,Adults,Lodge Group Care UK Ltd,Home Care - Private Contractors Payment,754.60,0.00,COMMERCIAL SUPPLIER 
 17-05-2023,Adults,Matrix SCM Ltd,Agency Staff,755.40,0.00,COMMERCIAL SUPPLIER 
 03-05-2023,Adults,Lodge Group Care UK Ltd,Home Care - Private Contractors Payment,755.69,0.00,COMMERCIAL SUPPLIER 
 03-05-2023,Adults,Lodge Group Care UK Ltd,Home Care - Private Contractors Payment,755.69,0.00,COMMERCIAL SUPPLIER 
 16-05-2023,Adults,Home Support Services (Havering & Essex) Ltd,Home Care - Private Contractors Payment,755.69,0.00,COMMERCIAL SUPPLIER 
 04-05-2023,Adults,Fari Care Ltd,Supported Other Accommodation - Private Contractors Payment,756.00,0.00,COMMERCIAL SUPPLIER 
 04-05-2023,Adults,Fari Care Ltd,Supported Other Accommodation - Private Contractors Payment,756.00,0.00,COMMERCIAL SUPPLIER 
 16-05-2023,Adults,Home Support Services (Havering & Essex) Ltd,Home Care - Private Contractors Payment,756.06,0.00,COMMERCIAL SUPPLIER 
 12-05-2023,Adults,Home Sweet Home Care Ltd,Home Care - Private Contractors Payment,756.42,0.00,COMMERCIAL SUPPLIER 
 03-05-2023,Adults,Lodge Group Care UK Ltd,Home Care - Private Contractors Payment,756.78,0.00,COMMERCIAL SUPPLIER 
 03-05-2023,Adults,Lodge Group Care UK Ltd,Home Care - Private Contractors Payment,757.15,0.00,COMMERCIAL SUPPLIER 
 24-05-2023,Adults,Matrix SCM Ltd,Agency Staff,757.20,0.00,COMMERCIAL SUPPLIER 
 02-05-2023,Adults,Morepower Ltd t/a Aqs Homecare,Home Care - Private Contractors Payment,757.88,0.00,COMMERCIAL SUPPLIER 
 03-05-2023,Adults,Lodge Group Care UK Ltd,Home Care - Private Contractors Payment,759.33,0.00,COMMERCIAL SUPPLIER 
 03-05-2023,Adults,Lodge Group Care UK Ltd,Home Care - Private Contractors Payment,760.06,0.00,COMMERCIAL SUPPLIER 
 04-05-2023,Adults,Outlook Care - 76 Neave Crescent,Supported Other Accommodation - Private Contractors Payment,760.76,0.00,COMMERCIAL SUPPLIER 
 04-05-2023,Adults,Outlook Care - 76 Neave Crescent,Supported Other Accommodation - Private Contractors Payment,760.76,0.00,COMMERCIAL SUPPLIER 
 04-05-2023,Adults,Outlook Care - 76 Neave Crescent,Supported Other Accommodation - Private Contractors Payment,760.76,0.00,COMMERCIAL SUPPLIER 
 04-05-2023,Adults,Outlook Care - 76 Neave Crescent,Supported Other Accommodation - Private Contractors Payment,760.76,0.00,COMMERCIAL SUPPLIER 
 03-05-2023,Adults,Lodge Group Care UK Ltd,Home Care - Private Contractors Payment,760.79,0.00,COMMERCIAL SUPPLIER 
 30-05-2023,Adults,Care-Away Ltd T/A Care Support,Home Care - Private Contractors Payment,761.11,0.00,COMMERCIAL SUPPLIER 
 03-05-2023,Adults,Lodge Group Care UK Ltd,Home Care - Private Contractors Payment,761.15,0.00,COMMERCIAL SUPPLIER 
 03-05-2023,Adults,Lodge Group Care UK Ltd,Home Care - Private Contractors Payment,761.15,0.00,COMMERCIAL SUPPLIER 
 12-05-2023,Adults,Home Sweet Home Care Ltd,Home Care - Private Contractors Payment,761.15,0.00,COMMERCIAL SUPPLIER 
 02-05-2023,Adults,Morepower Ltd t/a Aqs Homecare,Home Care - Private Contractors Payment,761.88,0.00,COMMERCIAL SUPPLIER 
 09-05-2023,Adults,Cera Care Operations Ltd,Home Care - Private Contractors Payment,761.88,0.00,COMMERCIAL SUPPLIER 
 03-05-2023,Adults,Hospiva Care & Associates Agency Ltd_a,Home Care - Private Contractors Payment,762.24,0.00,COMMERCIAL SUPPLIER 
 03-05-2023,Adults,Hospiva Care & Associates Agency Ltd_a,Home Care - Private Contractors Payment,762.24,0.00,COMMERCIAL SUPPLIER 
 26-05-2023,Adults,Prior Care Ltd_a,Home Care - Private Contractors Payment,763.33,0.00,COMMERCIAL SUPPLIER 
 03-05-2023,Adults,Lodge Group Care UK Ltd,Home Care - Private Contractors Payment,764.06,0.00,COMMERCIAL SUPPLIER 
 30-05-2023,Adults,Homestead Care Service,Home Care - Private Contractors Payment,764.06,0.00,COMMERCIAL SUPPLIER 
 26-05-2023,Adults,Carers Trust East Midlands,Home Care - Private Contractors Payment,764.40,0.00,COMMERCIAL SUPPLIER 
 22-05-2023,Adults,London Homecare Ltd,Home Care - Private Contractors Payment,764.42,0.00,COMMERCIAL SUPPLIER 
 22-05-2023,Adults,London Homecare Ltd,Home Care - Private Contractors Payment,764.42,0.00,COMMERCIAL SUPPLIER 
 25-05-2023,Adults,Inna Care Ltd,Home Care - Private Contractors Payment,764.42,0.00,COMMERCIAL SUPPLIER 
 25-05-2023,Adults,Inna Care Ltd,Home Care - Private Contractors Payment,764.43,0.00,COMMERCIAL SUPPLIER 
 25-05-2023,Adults,Inna Care Ltd,Home Care - Private Contractors Payment,764.43,0.00,COMMERCIAL SUPPLIER 
 02-05-2023,Adults,Morepower Ltd t/a Aqs Homecare,Home Care - Private Contractors Payment,765.88,0.00,COMMERCIAL SUPPLIER 
 03-05-2023,Adults,Lodge Group Care UK Ltd,Home Care - Private Contractors Payment,765.88,0.00,COMMERCIAL SUPPLIER 
 03-05-2023,Adults,Lodge Group Care UK Ltd,Home Care - Private Contractors Payment,768.07,0.00,COMMERCIAL SUPPLIER 
 12-05-2023,Adults,Home Sweet Home Care Ltd,Home Care - Private Contractors Payment,768.07,0.00,COMMERCIAL SUPPLIER 
 31-05-2023,Adults,Home Support Services (Havering & Essex) Ltd,Home Care - Private Contractors Payment,768.07,0.00,COMMERCIAL SUPPLIER 
 03-05-2023,Adults,Matrix SCM Ltd,Agency Staff,768.95,0.00,COMMERCIAL SUPPLIER 
 02-05-2023,Adults,Morepower Ltd t/a Aqs Homecare,Home Care - Private Contractors Payment,770.98,0.00,COMMERCIAL SUPPLIER 
 03-05-2023,Adults,Lodge Group Care UK Ltd,Home Care - Private Contractors Payment,770.98,0.00,COMMERCIAL SUPPLIER 
 16-05-2023,Adults,Home Support Services (Havering & Essex) Ltd,Home Care - Private Contractors Payment,772.44,0.00,COMMERCIAL SUPPLIER 
 17-05-2023,Adults,Matrix SCM Ltd,Agency Staff,774.90,0.00,COMMERCIAL SUPPLIER 
 17-05-2023,Adults,Matrix SCM Ltd,Agency Staff,774.90,0.00,COMMERCIAL SUPPLIER 
 24-05-2023,Adults,Matrix SCM Ltd,Agency Staff,774.90,0.00,COMMERCIAL SUPPLIER 
 04-05-2023,Adults,Acorn Village_a,Residential Placements - Private Contractors Payment,774.92,0.00,COMMERCIAL SUPPLIER 
 02-05-2023,Adults,London Borough of Barking & Dagenham_a,Daycare - Private Contractors Payment,776.00,0.00,LOCAL AUTHORITY SERVICES 
 30-05-2023,Adults,London Borough of Barking & Dagenham_a,Daycare - Private Contractors Payment,776.00,0.00,LOCAL AUTHORITY SERVICES 
 03-05-2023,Adults,Lodge Group Care UK Ltd,Home Care - Private Contractors Payment,776.80,0.00,COMMERCIAL SUPPLIER 
 16-05-2023,Adults,Home Support Services (Havering & Essex) Ltd,Home Care - Private Contractors Payment,777.53,0.00,COMMERCIAL SUPPLIER 
 26-05-2023,Adults,Prestige Care & Support Ltd,Home Care - Private Contractors Payment,778.25,0.00,COMMERCIAL SUPPLIER 
 04-05-2023,Adults,Beechcourt Care Centre - Bondcare,Nursing Care Income,780.31,0.00,COMMERCIAL SUPPLIER 
 30-05-2023,Adults,Homestead Care Service,Home Care - Private Contractors Payment,780.44,0.00,COMMERCIAL SUPPLIER 
 31-05-2023,Adults,Matrix SCM Ltd,Agency Staff,780.58,0.00,COMMERCIAL SUPPLIER 
 26-05-2023,Adults,Prestige Care & Support Ltd,Home Care - Private Contractors Payment,781.89,0.00,COMMERCIAL SUPPLIER 
 04-05-2023,Adults,Fari Care Ltd,Supported Other Accommodation - Private Contractors Payment,783.00,0.00,COMMERCIAL SUPPLIER 
 02-05-2023,Adults,Passion Tree Care Services Ltd,Home Care - Private Contractors Payment,786.25,0.00,COMMERCIAL SUPPLIER 
 22-05-2023,Adults,Outreach Support Services Ltd,Home Care - Private Contractors Payment,786.26,0.00,COMMERCIAL SUPPLIER 
 25-05-2023,Adults,Inna Care Ltd,Home Care - Private Contractors Payment,786.27,0.00,COMMERCIAL SUPPLIER 
 31-05-2023,Adults,Home Support Services (Havering & Essex) Ltd,Home Care - Private Contractors Payment,786.27,0.00,COMMERCIAL SUPPLIER 
 30-05-2023,Adults,Homestead Care Service,Home Care - Private Contractors Payment,786.99,0.00,COMMERCIAL SUPPLIER 
 30-05-2023,Adults,Homestead Care Service,Home Care - Private Contractors Payment,786.99,0.00,COMMERCIAL SUPPLIER 
 03-05-2023,Adults,Hospiva Care & Associates Agency Ltd_a,Home Care - Private Contractors Payment,787.22,0.00,COMMERCIAL SUPPLIER 
 04-05-2023,Adults,Outlook Care - 76 Neave Crescent,Supported Other Accommodation - Private Contractors Payment,787.93,0.00,COMMERCIAL SUPPLIER 
 03-05-2023,Adults,Lodge Group Care UK Ltd,Home Care - Private Contractors Payment,788.45,0.00,COMMERCIAL SUPPLIER 
 30-05-2023,Adults,Homestead Care Service,Home Care - Private Contractors Payment,788.45,0.00,COMMERCIAL SUPPLIER 
 22-05-2023,Adults,John Stanleys Care Agency Ltd,Home Care - Private Contractors Payment,790.81,0.00,COMMERCIAL SUPPLIER 
 03-05-2023,Adults,Matrix SCM Ltd,Agency Staff,790.91,0.00,COMMERCIAL SUPPLIER 
 03-05-2023,Adults,Matrix SCM Ltd,Agency Staff,790.91,0.00,COMMERCIAL SUPPLIER 
 03-05-2023,Adults,Matrix SCM Ltd,Agency Staff,790.91,0.00,COMMERCIAL SUPPLIER 
 24-05-2023,Adults,Matrix SCM Ltd,Agency Staff,790.91,0.00,COMMERCIAL SUPPLIER 
 24-05-2023,Adults,Matrix SCM Ltd,Agency Staff,790.91,0.00,COMMERCIAL SUPPLIER 
 24-05-2023,Adults,Matrix SCM Ltd,Agency Staff,790.91,0.00,COMMERCIAL SUPPLIER 
 31-05-2023,Adults,Matrix SCM Ltd,Agency Staff,790.91,0.00,COMMERCIAL SUPPLIER 
 03-05-2023,Adults,Matrix SCM Ltd,Agency Staff,790.93,0.00,COMMERCIAL SUPPLIER 
 24-05-2023,Adults,Matrix SCM Ltd,Agency Staff,790.93,0.00,COMMERCIAL SUPPLIER 
 31-05-2023,Adults,Matrix SCM Ltd,Agency Staff,790.93,0.00,COMMERCIAL SUPPLIER 
 31-05-2023,Adults,Home Support Services (Havering & Essex) Ltd,Home Care - Private Contractors Payment,791.00,0.00,COMMERCIAL SUPPLIER 
 24-05-2023,Adults,Radfield Home Care Havering & Brentwood,Home Care - Private Contractors Payment,791.44,0.00,COMMERCIAL SUPPLIER 
 05-05-2023,Adults,Gilead Complete Care Group Ltd,Home Care - Private Contractors Payment,792.00,0.00,COMMERCIAL SUPPLIER 
 05-05-2023,Adults,Gilead Complete Care Group Ltd,Home Care - Private Contractors Payment,792.00,0.00,COMMERCIAL SUPPLIER 
 09-05-2023,Adults,Cera Care Operations Ltd,Home Care - Private Contractors Payment,792.09,0.00,COMMERCIAL SUPPLIER 
 09-05-2023,Adults,Cera Care Operations Ltd,Home Care - Private Contractors Payment,792.82,0.00,COMMERCIAL SUPPLIER 
 04-05-2023,Adults,Lodge Lane Care Home Limited,Respite Care - Private Contractors Payment,794.29,0.00,COMMERCIAL SUPPLIER 
 16-05-2023,Adults,Home Support Services (Havering & Essex) Ltd,Home Care - Private Contractors Payment,797.55,0.00,COMMERCIAL SUPPLIER 
 31-05-2023,Adults,Home Support Services (Havering & Essex) Ltd,Home Care - Private Contractors Payment,797.55,0.00,COMMERCIAL SUPPLIER 
 11-05-2023,Adults,Care-Away Ltd T/A Care Support,Home Care - Private Contractors Payment,801.72,0.00,COMMERCIAL SUPPLIER 
 09-05-2023,Adults,Cera Care Operations Ltd,Home Care - Private Contractors Payment,802.65,0.00,COMMERCIAL SUPPLIER 
 16-05-2023,Adults,Home Support Services (Havering & Essex) Ltd,Home Care - Private Contractors Payment,804.10,0.00,COMMERCIAL SUPPLIER 
 12-05-2023,Adults,Home Sweet Home Care Ltd,Home Care - Private Contractors Payment,805.20,0.00,COMMERCIAL SUPPLIER 
 04-05-2023,Adults,Ashgate House Ltd_a,Residential Placements - Private Contractors Payment,805.84,0.00,COMMERCIAL SUPPLIER 
 04-05-2023,Adults,Ashgate House Ltd_a,Residential Placements - Private Contractors Payment,805.84,0.00,COMMERCIAL SUPPLIER 
 22-05-2023,Adults,John Stanleys Care Agency Ltd,Home Care - Private Contractors Payment,807.21,0.00,COMMERCIAL SUPPLIER 
 02-05-2023,Adults,Morepower Ltd t/a Aqs Homecare,Home Care - Private Contractors Payment,808.10,0.00,COMMERCIAL SUPPLIER 
 09-05-2023,Adults,Cera Care Operations Ltd,Home Care - Private Contractors Payment,808.11,0.00,COMMERCIAL SUPPLIER 
 03-05-2023,Adults,Lodge Group Care UK Ltd,Home Care - Private Contractors Payment,811.38,0.00,COMMERCIAL SUPPLIER 
 26-05-2023,Adults,Prestige Care & Support Ltd,Home Care - Private Contractors Payment,811.74,0.00,COMMERCIAL SUPPLIER 
 04-05-2023,Adults,Coastal Supported Living CIC,Supported Other Accommodation - Private Contractors Payment,816.04,0.00,COMMERCIAL SUPPLIER 
 04-05-2023,Adults,Coastal Supported Living CIC,Supported Other Accommodation - Private Contractors Payment,816.04,0.00,COMMERCIAL SUPPLIER 
 31-05-2023,Adults,Home Support Services (Havering & Essex) Ltd,Home Care - Private Contractors Payment,816.12,0.00,COMMERCIAL SUPPLIER 
 03-05-2023,Adults,Matrix SCM Ltd,Agency Staff,816.90,0.00,COMMERCIAL SUPPLIER 
 24-05-2023,Adults,Matrix SCM Ltd,Agency Staff,816.90,0.00,COMMERCIAL SUPPLIER 
 04-05-2023,Adults,Inna Care Ltd,Home Care - Private Contractors Payment,819.03,0.00,COMMERCIAL SUPPLIER 
 09-05-2023,Adults,Cera Care Operations Ltd,Home Care - Private Contractors Payment,819.03,0.00,COMMERCIAL SUPPLIER 
 31-05-2023,Adults,Home Support Services (Havering & Essex) Ltd,Home Care - Private Contractors Payment,820.84,0.00,COMMERCIAL SUPPLIER 
 05-05-2023,Adults,Gims Care Solution Ltd_a,Home Care - Private Contractors Payment,821.69,0.00,NON COMMERCIAL SUPPLIER 
 04-05-2023,Adults,Crystalize Care Services Ltd,Home Care - Private Contractors Payment,826.56,0.00,COMMERCIAL SUPPLIER 
 04-05-2023,Adults,Inna Care Ltd,Home Care - Private Contractors Payment,826.56,0.00,COMMERCIAL SUPPLIER 
 16-05-2023,Adults,New Opportunity Groups Havering,Daycare - Private Contractors Payment,828.00,0.00,COMMERCIAL SUPPLIER 
 31-05-2023,Adults,Matrix SCM Ltd,Agency Staff,828.57,0.00,COMMERCIAL SUPPLIER 
 04-05-2023,Adults,Inna Care Ltd,Home Care - Private Contractors Payment,829.95,0.00,COMMERCIAL SUPPLIER 
 04-05-2023,Adults,Inna Care Ltd,Home Care - Private Contractors Payment,829.95,0.00,COMMERCIAL SUPPLIER 
 25-05-2023,Adults,Inna Care Ltd,Home Care - Private Contractors Payment,829.95,0.00,COMMERCIAL SUPPLIER 
 31-05-2023,Adults,Anytime Care 2020_a,Home Care - Private Contractors Payment,832.47,0.00,COMMERCIAL SUPPLIER 
 04-05-2023,Adults,Chosen Care Group Ltd,Supported Other Accommodation - Private Contractors Payment,834.40,0.00,COMMERCIAL SUPPLIER 
 04-05-2023,Adults,Chosen Care Group Ltd,Supported Other Accommodation - Private Contractors Payment,834.40,0.00,COMMERCIAL SUPPLIER 
 25-05-2023,Adults,Personal Information - Redacted,Home Care - Private Contractors Payment,834.40,0.00,INDIVIDUALS 
 24-05-2023,Adults,Matrix SCM Ltd,Agency Staff,834.74,0.00,COMMERCIAL SUPPLIER 
 24-05-2023,Adults,Matrix SCM Ltd,Agency Staff,834.74,0.00,COMMERCIAL SUPPLIER 
 04-05-2023,Adults,BeTo Solutions Ltd,Supported Other Accommodation - Private Contractors Payment,835.92,0.00,COMMERCIAL SUPPLIER 
 04-05-2023,Adults,BeTo Solutions Ltd,Supported Other Accommodation - Private Contractors Payment,835.92,0.00,COMMERCIAL SUPPLIER 
 02-05-2023,Adults,Morepower Ltd t/a Aqs Homecare,Home Care - Private Contractors Payment,836.86,0.00,COMMERCIAL SUPPLIER 
 17-05-2023,Adults,Matrix SCM Ltd,Agency Staff,836.94,0.00,COMMERCIAL SUPPLIER 
 22-05-2023,Adults,John Stanleys Care Agency Ltd,Home Care - Private Contractors Payment,837.71,0.00,COMMERCIAL SUPPLIER 
 02-05-2023,Adults,Morepower Ltd t/a Aqs Homecare,Home Care - Private Contractors Payment,839.77,0.00,COMMERCIAL SUPPLIER 
 09-05-2023,Adults,R G Care Ltd ,Daycare - Private Contractors Payment,840.00,0.00,COMMERCIAL SUPPLIER 
 31-05-2023,Adults,Home Support Services (Havering & Essex) Ltd,Home Care - Private Contractors Payment,841.23,0.00,COMMERCIAL SUPPLIER 
 03-05-2023,Adults,Matrix SCM Ltd,Agency Staff,842.75,0.00,COMMERCIAL SUPPLIER 
 24-05-2023,Adults,Matrix SCM Ltd,Agency Staff,842.75,0.00,COMMERCIAL SUPPLIER 
 31-05-2023,Adults,Matrix SCM Ltd,Agency Staff,842.75,0.00,COMMERCIAL SUPPLIER 
 16-05-2023,Adults,Care-Away Ltd T/A Care Support,Home Care - Private Contractors Payment,843.64,0.00,COMMERCIAL SUPPLIER 
 16-05-2023,Adults,Care-Away Ltd T/A Care Support,Home Care - Private Contractors Payment,843.64,0.00,COMMERCIAL SUPPLIER 
 16-05-2023,Adults,Care-Away Ltd T/A Care Support,Home Care - Private Contractors Payment,843.64,0.00,COMMERCIAL SUPPLIER 
 16-05-2023,Adults,Care-Away Ltd T/A Care Support,Home Care - Private Contractors Payment,843.64,0.00,COMMERCIAL SUPPLIER 
 18-05-2023,Adults,Care-Away Ltd T/A Care Support,Home Care - Private Contractors Payment,843.64,0.00,COMMERCIAL SUPPLIER 
 18-05-2023,Adults,Care-Away Ltd T/A Care Support,Home Care - Private Contractors Payment,843.64,0.00,COMMERCIAL SUPPLIER 
 18-05-2023,Adults,Care-Away Ltd T/A Care Support,Home Care - Private Contractors Payment,843.64,0.00,COMMERCIAL SUPPLIER 
 18-05-2023,Adults,Care-Away Ltd T/A Care Support,Home Care - Private Contractors Payment,843.64,0.00,COMMERCIAL SUPPLIER 
 03-05-2023,Adults,Lodge Group Care UK Ltd,Home Care - Private Contractors Payment,848.14,0.00,COMMERCIAL SUPPLIER 
 09-05-2023,Adults,Cera Care Operations Ltd,Home Care - Private Contractors Payment,849.24,0.00,COMMERCIAL SUPPLIER 
 19-05-2023,Adults,BeTo Solutions Ltd,Supported Other Accommodation - Private Contractors Payment,850.50,0.00,COMMERCIAL SUPPLIER 
 02-05-2023,Adults,Morepower Ltd t/a Aqs Homecare,Home Care - Private Contractors Payment,851.76,0.00,COMMERCIAL SUPPLIER 
 03-05-2023,Adults,Hospiva Care & Associates Agency Ltd_a,Home Care - Private Contractors Payment,853.97,0.00,COMMERCIAL SUPPLIER 
 04-05-2023,Adults,Topaz Care and Support Co Ltd,Supported Other Accommodation - Private Contractors Payment,854.20,0.00,COMMERCIAL SUPPLIER 
 04-05-2023,Adults,One Tree Estates Ltd t/a Ashbrook Nursing Home,Respite Care - Private Contractors Payment,857.14,0.00,COMMERCIAL SUPPLIER 
 04-05-2023,Adults,Willows Care Home - Churchgate Healthcare (Willows) Ltd,Nursing Homes - Private Contractors Payment,857.14,0.00,COMMERCIAL SUPPLIER 
 04-05-2023,Adults,Outlook Care - 76 Neave Crescent,Supported Other Accommodation - Private Contractors Payment,860.72,0.00,COMMERCIAL SUPPLIER 
 04-05-2023,Adults,Outlook Care - 76 Neave Crescent,Supported Other Accommodation - Private Contractors Payment,860.72,0.00,COMMERCIAL SUPPLIER 
 17-05-2023,Adults,Pleasant Home Healthcare Ltd,Home Care - Private Contractors Payment,861.00,0.00,COMMERCIAL SUPPLIER 
 24-05-2023,Adults,Radfield Home Care Havering & Brentwood,Home Care - Private Contractors Payment,862.67,0.00,COMMERCIAL SUPPLIER 
 09-05-2023,Adults,Cera Care Operations Ltd,Home Care - Private Contractors Payment,865.26,0.00,COMMERCIAL SUPPLIER 
 04-05-2023,Adults,Ashgate House Ltd_a,Residential Placements - Private Contractors Payment,867.24,0.00,COMMERCIAL SUPPLIER 
 04-05-2023,Adults,Willows Care Home - Churchgate Healthcare (Willows) Ltd,Nursing Care Income,867.33,0.00,COMMERCIAL SUPPLIER 
 16-05-2023,Adults,Home Support Services (Havering & Essex) Ltd,Home Care - Private Contractors Payment,869.63,0.00,COMMERCIAL SUPPLIER 
 26-05-2023,Adults,Prior Care Ltd_a,Home Care - Private Contractors Payment,873.63,0.00,COMMERCIAL SUPPLIER 
 30-05-2023,Adults,Homestead Care Service,Home Care - Private Contractors Payment,873.63,0.00,COMMERCIAL SUPPLIER 
 18-05-2023,Adults,Care-Away Ltd T/A Care Support,Home Care - Private Contractors Payment,873.77,0.00,COMMERCIAL SUPPLIER 
 18-05-2023,Adults,Care-Away Ltd T/A Care Support,Home Care - Private Contractors Payment,873.77,0.00,COMMERCIAL SUPPLIER 
 26-05-2023,Adults,Prior Care Ltd_a,Home Care - Private Contractors Payment,875.00,0.00,COMMERCIAL SUPPLIER 
 03-05-2023,Adults,Hospiva Care & Associates Agency Ltd_a,Home Care - Private Contractors Payment,875.09,0.00,COMMERCIAL SUPPLIER 
 02-05-2023,Adults,Passion Tree Care Services Ltd,Home Care - Private Contractors Payment,879.09,0.00,COMMERCIAL SUPPLIER 
 03-05-2023,Adults,Lodge Group Care UK Ltd,Home Care - Private Contractors Payment,880.91,0.00,COMMERCIAL SUPPLIER 
 03-05-2023,Adults,London Care Plc_a,Home Care - Private Contractors Payment,881.27,0.00,COMMERCIAL SUPPLIER 
 04-05-2023,Adults,Genesis Residential Homes Ltd - Dothan House,Residential Placements - Private Contractors Payment,881.66,0.00,COMMERCIAL SUPPLIER 
 03-05-2023,Adults,Lodge Group Care UK Ltd,Home Care - Private Contractors Payment,882.00,0.00,COMMERCIAL SUPPLIER 
 24-05-2023,Adults,Phoenix Care Havering Ltd,Home Care - Private Contractors Payment,884.55,0.00,COMMERCIAL SUPPLIER 
 03-05-2023,Adults,Lodge Group Care UK Ltd,Home Care - Private Contractors Payment,890.01,0.00,COMMERCIAL SUPPLIER 
 09-05-2023,Adults,Bluebird Care Havering,Home Care - Private Contractors Payment,890.10,0.00,COMMERCIAL SUPPLIER 
 22-05-2023,Adults,Bluebird Care Havering,Home Care - Private Contractors Payment,890.10,0.00,COMMERCIAL SUPPLIER 
 26-05-2023,Adults,Prestige Care & Support Ltd,Home Care - Private Contractors Payment,893.64,0.00,COMMERCIAL SUPPLIER 
 24-05-2023,Adults,IJB Healthcare Ltd,Home Care - Private Contractors Payment,895.46,0.00,COMMERCIAL SUPPLIER 
 16-05-2023,Adults,Home Support Services (Havering & Essex) Ltd,Home Care - Private Contractors Payment,895.47,0.00,COMMERCIAL SUPPLIER 
 09-05-2023,Adults,Cera Care Operations Ltd,Home Care - Private Contractors Payment,895.84,0.00,COMMERCIAL SUPPLIER 
 12-05-2023,Adults,Home Sweet Home Care Ltd,Home Care - Private Contractors Payment,895.84,0.00,COMMERCIAL SUPPLIER 
 09-05-2023,Adults,R G Care Ltd ,Daycare - Private Contractors Payment,900.00,0.00,COMMERCIAL SUPPLIER 
 02-05-2023,Adults,Morepower Ltd t/a Aqs Homecare,Home Care - Private Contractors Payment,901.66,0.00,COMMERCIAL SUPPLIER 
 03-05-2023,Adults,Lodge Group Care UK Ltd,Home Care - Private Contractors Payment,901.66,0.00,COMMERCIAL SUPPLIER 
 02-05-2023,Adults,Morepower Ltd t/a Aqs Homecare,Home Care - Private Contractors Payment,902.02,0.00,COMMERCIAL SUPPLIER 
 18-05-2023,Adults,Care-Away Ltd T/A Care Support,Home Care - Private Contractors Payment,903.90,0.00,COMMERCIAL SUPPLIER 
 04-05-2023,Adults,Pathways Care Group Ltd,Residential Placements - Private Contractors Payment,904.04,0.00,COMMERCIAL SUPPLIER 
 26-05-2023,Adults,Prior Care Ltd_a,Home Care - Private Contractors Payment,906.76,0.00,COMMERCIAL SUPPLIER 
 12-05-2023,Adults,Home Sweet Home Care Ltd,Home Care - Private Contractors Payment,908.21,0.00,COMMERCIAL SUPPLIER 
 12-05-2023,Adults,Home Sweet Home Care Ltd,Home Care - Private Contractors Payment,908.58,0.00,COMMERCIAL SUPPLIER 
 30-05-2023,Adults,Homestead Care Service,Home Care - Private Contractors Payment,908.58,0.00,COMMERCIAL SUPPLIER 
 03-05-2023,Adults,Matrix SCM Ltd,Agency Staff,908.64,0.00,COMMERCIAL SUPPLIER 
 31-05-2023,Adults,Matrix SCM Ltd,Agency Staff,908.64,0.00,COMMERCIAL SUPPLIER 
 11-05-2023,Adults,Care-Away Ltd T/A Care Support,Home Care - Private Contractors Payment,909.14,0.00,COMMERCIAL SUPPLIER 
 09-05-2023,Adults,Cera Care Operations Ltd,Home Care - Private Contractors Payment,912.56,0.00,COMMERCIAL SUPPLIER 
 24-05-2023,Adults,IJB Healthcare Ltd,Home Care - Private Contractors Payment,917.29,0.00,COMMERCIAL SUPPLIER 
 25-05-2023,Adults,Haven Care Ltd.,Home Care - Private Contractors Payment,917.30,0.00,COMMERCIAL SUPPLIER 
 25-05-2023,Adults,Personal Information - Redacted,Home Care - Private Contractors Payment,917.30,0.00,INDIVIDUALS 
 22-05-2023,Adults,Passion Tree Care Services Ltd,Home Care - Private Contractors Payment,917.31,0.00,COMMERCIAL SUPPLIER 
 22-05-2023,Adults,Outreach Support Services Ltd,Home Care - Private Contractors Payment,917.31,0.00,COMMERCIAL SUPPLIER 
 25-05-2023,Adults,Inna Care Ltd,Home Care - Private Contractors Payment,917.31,0.00,COMMERCIAL SUPPLIER 
 25-05-2023,Adults,Inna Care Ltd,Home Care - Private Contractors Payment,917.31,0.00,COMMERCIAL SUPPLIER 
 25-05-2023,Adults,Inna Care Ltd,Home Care - Private Contractors Payment,917.31,0.00,COMMERCIAL SUPPLIER 
 25-05-2023,Adults,Inna Care Ltd,Home Care - Private Contractors Payment,917.31,0.00,COMMERCIAL SUPPLIER 
 25-05-2023,Adults,Inna Care Ltd,Home Care - Private Contractors Payment,917.31,0.00,COMMERCIAL SUPPLIER 
 25-05-2023,Adults,Personal Information - Redacted,Home Care - Private Contractors Payment,917.31,0.00,INDIVIDUALS 
 25-05-2023,Adults,Personal Information - Redacted,Home Care - Private Contractors Payment,917.31,0.00,INDIVIDUALS 
 25-05-2023,Adults,Personal Information - Redacted,Home Care - Private Contractors Payment,917.31,0.00,INDIVIDUALS 
 26-05-2023,Adults,Prestige Care & Support Ltd,Home Care - Private Contractors Payment,917.31,0.00,COMMERCIAL SUPPLIER 
 31-05-2023,Adults,Home Support Services (Havering & Essex) Ltd,Home Care - Private Contractors Payment,917.68,0.00,COMMERCIAL SUPPLIER 
 25-05-2023,Adults,Personal Information - Redacted,Home Care - Private Contractors Payment,917.88,0.00,INDIVIDUALS 
 04-05-2023,Adults,Moreland House_a,Respite Care - Private Contractors Payment,918.21,0.00,COMMERCIAL SUPPLIER 
 04-05-2023,Adults,Omega Elifar Ltd,Residential Placements - Private Contractors Payment,918.40,0.00,COMMERCIAL SUPPLIER 
 16-05-2023,Adults,Care-Away Ltd T/A Care Support,Home Care - Private Contractors Payment,918.96,0.00,COMMERCIAL SUPPLIER 
 26-05-2023,Adults,Prestige Care & Support Ltd,Home Care - Private Contractors Payment,919.13,0.00,COMMERCIAL SUPPLIER 
 31-05-2023,Adults,Anytime Care 2020_a,Home Care - Private Contractors Payment,919.50,0.00,COMMERCIAL SUPPLIER 
 04-05-2023,Adults,Ashgate House Ltd_a,Residential Placements - Private Contractors Payment,919.80,0.00,COMMERCIAL SUPPLIER 
 31-05-2023,Adults,Home Support Services (Havering & Essex) Ltd,Home Care - Private Contractors Payment,920.23,0.00,COMMERCIAL SUPPLIER 
 30-05-2023,Adults,Homestead Care Service,Home Care - Private Contractors Payment,920.95,0.00,COMMERCIAL SUPPLIER 
 03-05-2023,Adults,Lodge Group Care UK Ltd,Home Care - Private Contractors Payment,921.31,0.00,COMMERCIAL SUPPLIER 
 26-05-2023,Adults,Prestige Care & Support Ltd,Home Care - Private Contractors Payment,921.32,0.00,COMMERCIAL SUPPLIER 
 31-05-2023,Adults,Anytime Care 2020_a,Home Care - Private Contractors Payment,921.32,0.00,COMMERCIAL SUPPLIER 
 31-05-2023,Adults,Home Support Services (Havering & Essex) Ltd,Home Care - Private Contractors Payment,921.32,0.00,COMMERCIAL SUPPLIER 
 04-05-2023,Adults,Kadmiel Projects Ltd,Supported Other Accommodation - Private Contractors Payment,922.40,0.00,COMMERCIAL SUPPLIER 
 04-05-2023,Adults,Kadmiel Projects Ltd,Supported Other Accommodation - Private Contractors Payment,922.40,0.00,COMMERCIAL SUPPLIER 
 30-05-2023,Adults,Homestead Care Service,Home Care - Private Contractors Payment,922.41,0.00,COMMERCIAL SUPPLIER 
 31-05-2023,Adults,Anytime Care 2020_a,Home Care - Private Contractors Payment,922.77,0.00,COMMERCIAL SUPPLIER 
 30-05-2023,Adults,Homestead Care Service,Home Care - Private Contractors Payment,923.87,0.00,COMMERCIAL SUPPLIER 
 26-05-2023,Adults,Prestige Care & Support Ltd,Home Care - Private Contractors Payment,925.32,0.00,COMMERCIAL SUPPLIER 
 03-05-2023,Adults,Matrix SCM Ltd,Agency Staff,926.52,0.00,COMMERCIAL SUPPLIER 
 31-05-2023,Adults,Home Support Services (Havering & Essex) Ltd,Home Care - Private Contractors Payment,926.78,0.00,COMMERCIAL SUPPLIER 
 31-05-2023,Adults,Home Support Services (Havering & Essex) Ltd,Home Care - Private Contractors Payment,928.23,0.00,COMMERCIAL SUPPLIER 
 16-05-2023,Adults,Home Support Services (Havering & Essex) Ltd,Home Care - Private Contractors Payment,928.96,0.00,COMMERCIAL SUPPLIER 
 31-05-2023,Adults,Home Support Services (Havering & Essex) Ltd,Home Care - Private Contractors Payment,928.96,0.00,COMMERCIAL SUPPLIER 
 26-05-2023,Adults,Prestige Care & Support Ltd,Home Care - Private Contractors Payment,929.69,0.00,COMMERCIAL SUPPLIER 
 24-05-2023,Adults,Action First Assessments Ltd,Private Contractors Payment - Other,930.00,0.00,COMMERCIAL SUPPLIER 
 12-05-2023,Adults,Home Sweet Home Care Ltd,Home Care - Private Contractors Payment,930.42,0.00,COMMERCIAL SUPPLIER 
 30-05-2023,Adults,Homestead Care Service,Home Care - Private Contractors Payment,932.97,0.00,COMMERCIAL SUPPLIER 
 12-05-2023,Adults,Home Sweet Home Care Ltd,Home Care - Private Contractors Payment,933.33,0.00,COMMERCIAL SUPPLIER 
 30-05-2023,Adults,Homestead Care Service,Home Care - Private Contractors Payment,933.33,0.00,COMMERCIAL SUPPLIER 
 16-05-2023,Adults,Home Support Services (Havering & Essex) Ltd,Home Care - Private Contractors Payment,935.88,0.00,COMMERCIAL SUPPLIER 
 30-05-2023,Adults,Homestead Care Service,Home Care - Private Contractors Payment,938.06,0.00,COMMERCIAL SUPPLIER 
 01-05-2023,Adults,Amachyck Care Solution Ltd.,Home Care - Private Contractors Payment,939.14,0.00,COMMERCIAL SUPPLIER 
 31-05-2023,Adults,Home Support Services (Havering & Essex) Ltd,Home Care - Private Contractors Payment,939.15,0.00,COMMERCIAL SUPPLIER 
 22-05-2023,Adults,John Stanleys Care Agency Ltd,Home Care - Private Contractors Payment,943.33,0.00,COMMERCIAL SUPPLIER 
 16-05-2023,Adults,Care-Away Ltd T/A Care Support,Home Care - Private Contractors Payment,949.10,0.00,COMMERCIAL SUPPLIER 
 16-05-2023,Adults,Care-Away Ltd T/A Care Support,Home Care - Private Contractors Payment,949.10,0.00,COMMERCIAL SUPPLIER 
 18-05-2023,Adults,Care-Away Ltd T/A Care Support,Home Care - Private Contractors Payment,949.10,0.00,COMMERCIAL SUPPLIER 
 10-05-2023,Adults,Rosemont Care Limited,Home Care - Private Contractors Payment,950.07,0.00,COMMERCIAL SUPPLIER 
 16-05-2023,Adults,Home Support Services (Havering & Essex) Ltd,Home Care - Private Contractors Payment,950.44,0.00,COMMERCIAL SUPPLIER 
 04-05-2023,Adults,Ebony Health Care Services Limited,Supported Other Accommodation - Private Contractors Payment,952.00,0.00,COMMERCIAL SUPPLIER 
 04-05-2023,Adults,Ebony Health Care Services Limited,Supported Other Accommodation - Private Contractors Payment,952.00,0.00,COMMERCIAL SUPPLIER 
 03-05-2023,Adults,Lodge Group Care UK Ltd,Home Care - Private Contractors Payment,952.62,0.00,COMMERCIAL SUPPLIER 
 02-05-2023,Adults,Morepower Ltd t/a Aqs Homecare,Home Care - Private Contractors Payment,952.98,0.00,COMMERCIAL SUPPLIER 
 02-05-2023,Adults,Morepower Ltd t/a Aqs Homecare,Home Care - Private Contractors Payment,952.98,0.00,COMMERCIAL SUPPLIER 
 30-05-2023,Adults,Care-Away Ltd T/A Care Support,Home Care - Private Contractors Payment,953.68,0.00,COMMERCIAL SUPPLIER 
 12-05-2023,Adults,Home Sweet Home Care Ltd,Home Care - Private Contractors Payment,955.53,0.00,COMMERCIAL SUPPLIER 
 12-05-2023,Adults,Home Sweet Home Care Ltd,Home Care - Private Contractors Payment,956.99,0.00,COMMERCIAL SUPPLIER 
 04-05-2023,Adults,Ladyville Lodge_a,Residential Placements - Private Contractors Payment,960.00,0.00,COMMERCIAL SUPPLIER 
 04-05-2023,Adults,Ladyville Lodge_a,Residential Placements - Private Contractors Payment,960.00,0.00,COMMERCIAL SUPPLIER 
 04-05-2023,Adults,Crystalize Care Services Ltd,Home Care - Private Contractors Payment,960.99,0.00,COMMERCIAL SUPPLIER 
 26-05-2023,Adults,Prestige Care & Support Ltd,Home Care - Private Contractors Payment,963.54,0.00,COMMERCIAL SUPPLIER 
 17-05-2023,Adults,Matrix SCM Ltd,Agency Staff,964.33,0.00,COMMERCIAL SUPPLIER 
 04-05-2023,Adults,Treal Care Limited,Home Care - Private Contractors Payment,965.25,0.00,COMMERCIAL SUPPLIER 
 03-05-2023,Adults,Matrix SCM Ltd,Agency Staff,966.37,0.00,COMMERCIAL SUPPLIER 
 04-05-2023,Adults,Fresh Tree Care Services,Supported Other Accommodation - Private Contractors Payment,967.68,0.00,COMMERCIAL SUPPLIER 
 04-05-2023,Adults,Fresh Tree Care Services,Supported Other Accommodation - Private Contractors Payment,967.68,0.00,COMMERCIAL SUPPLIER 
 12-05-2023,Adults,Home Sweet Home Care Ltd,Home Care - Private Contractors Payment,968.27,0.00,COMMERCIAL SUPPLIER 
 17-05-2023,Adults,Matrix SCM Ltd,Agency Staff,969.17,0.00,COMMERCIAL SUPPLIER 
 17-05-2023,Adults,Matrix SCM Ltd,Agency Staff,969.17,0.00,COMMERCIAL SUPPLIER 
 01-05-2023,Adults,Marlow,Residential Placements - Private Contractors Payment,969.58,0.00,COMMERCIAL SUPPLIER 
 31-05-2023,Adults,Home Support Services (Havering & Essex) Ltd,Home Care - Private Contractors Payment,970.46,0.00,COMMERCIAL SUPPLIER 
 04-05-2023,Adults,Lodge Lane Care Home Limited,Respite Care - Private Contractors Payment,971.43,0.00,COMMERCIAL SUPPLIER 
 12-05-2023,Adults,Home Sweet Home Care Ltd,Home Care - Private Contractors Payment,971.92,0.00,COMMERCIAL SUPPLIER 
 19-05-2023,Adults,BeTo Solutions Ltd,Supported Other Accommodation - Private Contractors Payment,972.00,0.00,COMMERCIAL SUPPLIER 
 12-05-2023,Adults,Home Sweet Home Care Ltd,Home Care - Private Contractors Payment,972.28,0.00,COMMERCIAL SUPPLIER 
 12-05-2023,Adults,Home Sweet Home Care Ltd,Home Care - Private Contractors Payment,973.01,0.00,COMMERCIAL SUPPLIER 
 12-05-2023,Adults,Home Sweet Home Care Ltd,Home Care - Private Contractors Payment,974.10,0.00,COMMERCIAL SUPPLIER 
 31-05-2023,Adults,Home Support Services (Havering & Essex) Ltd,Home Care - Private Contractors Payment,974.83,0.00,COMMERCIAL SUPPLIER 
 23-05-2023,Adults,Ace Outreach Ltd,Home Care - Private Contractors Payment,975.85,0.00,COMMERCIAL SUPPLIER 
 22-05-2023,Adults,Tapestry_a.,Daycare - Private Contractors Payment,976.00,0.00,COMMERCIAL SUPPLIER 
 22-05-2023,Adults,Tapestry_a.,Daycare - Private Contractors Payment,976.00,0.00,COMMERCIAL SUPPLIER 
 22-05-2023,Adults,Tapestry_a.,Daycare - Private Contractors Payment,976.00,0.00,COMMERCIAL SUPPLIER 
 23-05-2023,Adults,Tapestry_a.,Daycare - Private Contractors Payment,976.00,0.00,COMMERCIAL SUPPLIER 
 23-05-2023,Adults,Tapestry_a.,Daycare - Private Contractors Payment,976.00,0.00,COMMERCIAL SUPPLIER 
 16-05-2023,Adults,Home Support Services (Havering & Essex) Ltd,Home Care - Private Contractors Payment,980.29,0.00,COMMERCIAL SUPPLIER 
 30-05-2023,Adults,Homestead Care Service,Home Care - Private Contractors Payment,981.01,0.00,COMMERCIAL SUPPLIER 
 26-05-2023,Adults,Carers Trust East Midlands,Home Care - Private Contractors Payment,982.80,0.00,COMMERCIAL SUPPLIER 
 03-05-2023,Adults,Lodge Group Care UK Ltd,Home Care - Private Contractors Payment,982.84,0.00,COMMERCIAL SUPPLIER 
 09-05-2023,Adults,Cera Care Operations Ltd,Home Care - Private Contractors Payment,982.84,0.00,COMMERCIAL SUPPLIER 
 12-05-2023,Adults,Home Sweet Home Care Ltd,Home Care - Private Contractors Payment,982.84,0.00,COMMERCIAL SUPPLIER 
 12-05-2023,Adults,Home Sweet Home Care Ltd,Home Care - Private Contractors Payment,984.29,0.00,COMMERCIAL SUPPLIER 
 12-05-2023,Adults,Home Sweet Home Care Ltd,Home Care - Private Contractors Payment,985.02,0.00,COMMERCIAL SUPPLIER 
 12-05-2023,Adults,Home Sweet Home Care Ltd,Home Care - Private Contractors Payment,985.37,0.00,COMMERCIAL SUPPLIER 
 03-05-2023,Adults,London Care Plc_a,Home Care - Private Contractors Payment,985.38,0.00,COMMERCIAL SUPPLIER 
 17-05-2023,Adults,Matrix SCM Ltd,Agency Staff,986.70,0.00,COMMERCIAL SUPPLIER 
 30-05-2023,Adults,Homestead Care Service,Home Care - Private Contractors Payment,987.57,0.00,COMMERCIAL SUPPLIER 
 30-05-2023,Adults,Homestead Care Service,Home Care - Private Contractors Payment,988.28,0.00,COMMERCIAL SUPPLIER 
 04-05-2023,Adults,The Cedars,Supported Other Accommodation - Private Contractors Payment,988.40,0.00,COMMERCIAL SUPPLIER 
 04-05-2023,Adults,The Cedars,Supported Other Accommodation - Private Contractors Payment,988.40,0.00,COMMERCIAL SUPPLIER 
 10-05-2023,Adults,Romford Private Hire Ltd,Client Transport,990.00,0.00,COMMERCIAL SUPPLIER 
 30-05-2023,Adults,Homestead Care Service,Home Care - Private Contractors Payment,990.11,0.00,COMMERCIAL SUPPLIER 
 09-05-2023,Adults,Cera Care Operations Ltd,Home Care - Private Contractors Payment,990.48,0.00,COMMERCIAL SUPPLIER 
 04-05-2023,Adults,Outlook Care - 4 Peel Way,Supported Other Accommodation - Private Contractors Payment,991.00,0.00,COMMERCIAL SUPPLIER 
 04-05-2023,Adults,Outlook Care - 4 Peel Way,Supported Other Accommodation - Private Contractors Payment,991.00,0.00,COMMERCIAL SUPPLIER 
 17-05-2023,Adults,Matrix SCM Ltd,Agency Staff,991.30,0.00,COMMERCIAL SUPPLIER 
 17-05-2023,Adults,Matrix SCM Ltd,Agency Staff,991.30,0.00,COMMERCIAL SUPPLIER 
 04-05-2023,Adults,Masumin Ltd t/s Abbeleigh House,Residential Placements - Private Contractors Payment,991.86,0.00,COMMERCIAL SUPPLIER 
 04-05-2023,Adults,Oaks Residential Home,Residential Placements - Private Contractors Payment,991.86,0.00,COMMERCIAL SUPPLIER 
 04-05-2023,Adults,Lodge Lane Care Home Limited,Residential Placements - Private Contractors Payment,992.86,0.00,COMMERCIAL SUPPLIER 
 30-05-2023,Adults,Homestead Care Service,Home Care - Private Contractors Payment,993.39,0.00,COMMERCIAL SUPPLIER 
 04-05-2023,Adults,Inna Care Ltd,Home Care - Private Contractors Payment,993.75,0.00,COMMERCIAL SUPPLIER 
 12-05-2023,Adults,Home Sweet Home Care Ltd,Home Care - Private Contractors Payment,993.76,0.00,COMMERCIAL SUPPLIER 
 12-05-2023,Adults,Home Sweet Home Care Ltd,Home Care - Private Contractors Payment,994.48,0.00,COMMERCIAL SUPPLIER 
 16-05-2023,Adults,Home Support Services (Havering & Essex) Ltd,Home Care - Private Contractors Payment,996.30,0.00,COMMERCIAL SUPPLIER 
 16-05-2023,Adults,Care-Away Ltd T/A Care Support,Home Care - Private Contractors Payment,996.91,0.00,COMMERCIAL SUPPLIER 
 31-05-2023,Adults,Home Support Services (Havering & Essex) Ltd,Home Care - Private Contractors Payment,997.03,0.00,COMMERCIAL SUPPLIER 
 04-05-2023,Adults,Meadowbanks,Residential Placements - Private Contractors Payment,997.41,0.00,COMMERCIAL SUPPLIER 
 12-05-2023,Adults,Home Sweet Home Care Ltd,Home Care - Private Contractors Payment,999.22,0.00,COMMERCIAL SUPPLIER 
 17-05-2023,Adults,Matrix SCM Ltd,Agency Staff,999.92,0.00,COMMERCIAL SUPPLIER 
 17-05-2023,Adults,Matrix SCM Ltd,Agency Staff,999.92,0.00,COMMERCIAL SUPPLIER 
 17-05-2023,Adults,Matrix SCM Ltd,Agency Staff,999.92,0.00,COMMERCIAL SUPPLIER 
 04-05-2023,Adults,One Tree Estates Ltd t/a Ashbrook Nursing Home,Nursing Homes - Private Contractors Payment,1000.00,0.00,COMMERCIAL SUPPLIER 
 31-05-2023,Adults,Anytime Care 2020_a,Home Care - Private Contractors Payment,1001.76,0.00,COMMERCIAL SUPPLIER 
 09-05-2023,Adults,Cera Care Operations Ltd,Home Care - Private Contractors Payment,1002.49,0.00,COMMERCIAL SUPPLIER 
 12-05-2023,Adults,Home Sweet Home Care Ltd,Home Care - Private Contractors Payment,1002.49,0.00,COMMERCIAL SUPPLIER 
 17-05-2023,Adults,Matrix SCM Ltd,Agency Staff,1002.54,0.00,COMMERCIAL SUPPLIER 
 09-05-2023,Adults,Cera Care Operations Ltd,Home Care - Private Contractors Payment,1003.22,0.00,COMMERCIAL SUPPLIER 
 04-05-2023,Adults,Crystalize Care Services Ltd,Home Care - Private Contractors Payment,1004.66,0.00,COMMERCIAL SUPPLIER 
 04-05-2023,Adults,Crystalize Care Services Ltd,Home Care - Private Contractors Payment,1004.66,0.00,COMMERCIAL SUPPLIER 
 04-05-2023,Adults,Inna Care Ltd,Home Care - Private Contractors Payment,1004.66,0.00,COMMERCIAL SUPPLIER 
 04-05-2023,Adults,Inna Care Ltd,Home Care - Private Contractors Payment,1004.66,0.00,COMMERCIAL SUPPLIER 
 02-05-2023,Adults,Recruitcare Professionals Ltd ,Home Care - Private Contractors Payment,1004.68,0.00,COMMERCIAL SUPPLIER 
 02-05-2023,Adults,Passion Tree Care Services Ltd,Home Care - Private Contractors Payment,1004.68,0.00,COMMERCIAL SUPPLIER 
 02-05-2023,Adults,Passion Tree Care Services Ltd,Home Care - Private Contractors Payment,1004.68,0.00,COMMERCIAL SUPPLIER 
 03-05-2023,Adults,Lodge Group Care UK Ltd,Home Care - Private Contractors Payment,1004.68,0.00,COMMERCIAL SUPPLIER 
 03-05-2023,Adults,Lodge Group Care UK Ltd,Home Care - Private Contractors Payment,1004.68,0.00,COMMERCIAL SUPPLIER 
 03-05-2023,Adults,Lodge Group Care UK Ltd,Home Care - Private Contractors Payment,1004.68,0.00,COMMERCIAL SUPPLIER 
 03-05-2023,Adults,Lodge Group Care UK Ltd,Home Care - Private Contractors Payment,1004.68,0.00,COMMERCIAL SUPPLIER 
 03-05-2023,Adults,Lodge Group Care UK Ltd,Home Care - Private Contractors Payment,1004.68,0.00,COMMERCIAL SUPPLIER 
 03-05-2023,Adults,Lodge Group Care UK Ltd,Home Care - Private Contractors Payment,1004.68,0.00,COMMERCIAL SUPPLIER 
 04-05-2023,Adults,Inna Care Ltd,Home Care - Private Contractors Payment,1004.68,0.00,COMMERCIAL SUPPLIER 
 04-05-2023,Adults,Inna Care Ltd,Home Care - Private Contractors Payment,1004.68,0.00,COMMERCIAL SUPPLIER 
 04-05-2023,Adults,Inna Care Ltd,Home Care - Private Contractors Payment,1004.68,0.00,COMMERCIAL SUPPLIER 
 04-05-2023,Adults,Inna Care Ltd,Home Care - Private Contractors Payment,1004.68,0.00,COMMERCIAL SUPPLIER 
 04-05-2023,Adults,Inna Care Ltd,Home Care - Private Contractors Payment,1004.68,0.00,COMMERCIAL SUPPLIER 
 10-05-2023,Adults,Rosemont Care Limited,Home Care - Private Contractors Payment,1004.68,0.00,COMMERCIAL SUPPLIER 
 10-05-2023,Adults,Rosemont Care Limited,Home Care - Private Contractors Payment,1004.68,0.00,COMMERCIAL SUPPLIER 
 10-05-2023,Adults,Rosemont Care Limited,Home Care - Private Contractors Payment,1004.68,0.00,COMMERCIAL SUPPLIER 
 10-05-2023,Adults,Rosemont Care Limited,Home Care - Private Contractors Payment,1004.68,0.00,COMMERCIAL SUPPLIER 
 10-05-2023,Adults,Rosemont Care Limited,Home Care - Private Contractors Payment,1004.68,0.00,COMMERCIAL SUPPLIER 
 10-05-2023,Adults,Rosemont Care Limited,Home Care - Private Contractors Payment,1004.68,0.00,COMMERCIAL SUPPLIER 
 12-05-2023,Adults,Home Sweet Home Care Ltd,Home Care - Private Contractors Payment,1004.68,0.00,COMMERCIAL SUPPLIER 
 12-05-2023,Adults,Home Sweet Home Care Ltd,Home Care - Private Contractors Payment,1004.68,0.00,COMMERCIAL SUPPLIER 
 12-05-2023,Adults,Home Sweet Home Care Ltd,Home Care - Private Contractors Payment,1004.68,0.00,COMMERCIAL SUPPLIER 
 16-05-2023,Adults,Home Support Services (Havering & Essex) Ltd,Home Care - Private Contractors Payment,1004.68,0.00,COMMERCIAL SUPPLIER 
 16-05-2023,Adults,Home Support Services (Havering & Essex) Ltd,Home Care - Private Contractors Payment,1004.68,0.00,COMMERCIAL SUPPLIER 
 16-05-2023,Adults,Home Support Services (Havering & Essex) Ltd,Home Care - Private Contractors Payment,1004.68,0.00,COMMERCIAL SUPPLIER 
 16-05-2023,Adults,Home Support Services (Havering & Essex) Ltd,Home Care - Private Contractors Payment,1004.68,0.00,COMMERCIAL SUPPLIER 
 16-05-2023,Adults,Home Support Services (Havering & Essex) Ltd,Home Care - Private Contractors Payment,1004.68,0.00,COMMERCIAL SUPPLIER 
 16-05-2023,Adults,Home Support Services (Havering & Essex) Ltd,Home Care - Private Contractors Payment,1004.68,0.00,COMMERCIAL SUPPLIER 
 25-05-2023,Adults,Inna Care Ltd,Home Care - Private Contractors Payment,1004.68,0.00,COMMERCIAL SUPPLIER 
 25-05-2023,Adults,Personal Information - Redacted,Home Care - Private Contractors Payment,1004.68,0.00,INDIVIDUALS 
 03-05-2023,Adults,Lodge Group Care UK Ltd,Home Care - Private Contractors Payment,1005.04,0.00,COMMERCIAL SUPPLIER 
 03-05-2023,Adults,Lodge Group Care UK Ltd,Home Care - Private Contractors Payment,1005.77,0.00,COMMERCIAL SUPPLIER 
 12-05-2023,Adults,Home Sweet Home Care Ltd,Home Care - Private Contractors Payment,1005.77,0.00,COMMERCIAL SUPPLIER 
 12-05-2023,Adults,Home Sweet Home Care Ltd,Home Care - Private Contractors Payment,1005.77,0.00,COMMERCIAL SUPPLIER 
 12-05-2023,Adults,Home Sweet Home Care Ltd,Home Care - Private Contractors Payment,1006.13,0.00,COMMERCIAL SUPPLIER 
 12-05-2023,Adults,Home Sweet Home Care Ltd,Home Care - Private Contractors Payment,1006.13,0.00,COMMERCIAL SUPPLIER 
 12-05-2023,Adults,Home Sweet Home Care Ltd,Home Care - Private Contractors Payment,1006.50,0.00,COMMERCIAL SUPPLIER 
 12-05-2023,Adults,Home Sweet Home Care Ltd,Home Care - Private Contractors Payment,1006.50,0.00,COMMERCIAL SUPPLIER 
 17-05-2023,Adults,Matrix SCM Ltd,Agency Staff,1006.88,0.00,COMMERCIAL SUPPLIER 
 17-05-2023,Adults,Matrix SCM Ltd,Agency Staff,1007.13,0.00,COMMERCIAL SUPPLIER 
 02-05-2023,Adults,Morepower Ltd t/a Aqs Homecare,Home Care - Private Contractors Payment,1007.22,0.00,COMMERCIAL SUPPLIER 
 03-05-2023,Adults,Lodge Group Care UK Ltd,Home Care - Private Contractors Payment,1007.22,0.00,COMMERCIAL SUPPLIER 
 12-05-2023,Adults,Home Sweet Home Care Ltd,Home Care - Private Contractors Payment,1007.59,0.00,COMMERCIAL SUPPLIER 
 31-05-2023,Adults,Home Support Services (Havering & Essex) Ltd,Home Care - Private Contractors Payment,1007.59,0.00,COMMERCIAL SUPPLIER 
 09-05-2023,Adults,Cera Care Operations Ltd,Home Care - Private Contractors Payment,1007.95,0.00,COMMERCIAL SUPPLIER 
 12-05-2023,Adults,Home Sweet Home Care Ltd,Home Care - Private Contractors Payment,1007.95,0.00,COMMERCIAL SUPPLIER 
 03-05-2023,Adults,Lodge Group Care UK Ltd,Home Care - Private Contractors Payment,1008.32,0.00,COMMERCIAL SUPPLIER 
 03-05-2023,Adults,Lodge Group Care UK Ltd,Home Care - Private Contractors Payment,1008.68,0.00,COMMERCIAL SUPPLIER 
 12-05-2023,Adults,Home Sweet Home Care Ltd,Home Care - Private Contractors Payment,1008.68,0.00,COMMERCIAL SUPPLIER 
 30-05-2023,Adults,Care-Away Ltd T/A Care Support,Home Care - Private Contractors Payment,1008.70,0.00,COMMERCIAL SUPPLIER 
 03-05-2023,Adults,Lodge Group Care UK Ltd,Home Care - Private Contractors Payment,1009.04,0.00,COMMERCIAL SUPPLIER 
 03-05-2023,Adults,Lodge Group Care UK Ltd,Home Care - Private Contractors Payment,1009.04,0.00,COMMERCIAL SUPPLIER 
 16-05-2023,Adults,Home Support Services (Havering & Essex) Ltd,Home Care - Private Contractors Payment,1009.04,0.00,COMMERCIAL SUPPLIER 
 31-05-2023,Adults,Home Support Services (Havering & Essex) Ltd,Home Care - Private Contractors Payment,1009.04,0.00,COMMERCIAL SUPPLIER 
 03-05-2023,Adults,Lodge Group Care UK Ltd,Home Care - Private Contractors Payment,1009.41,0.00,COMMERCIAL SUPPLIER 
 03-05-2023,Adults,Lodge Group Care UK Ltd,Home Care - Private Contractors Payment,1010.14,0.00,COMMERCIAL SUPPLIER 
 03-05-2023,Adults,Lodge Group Care UK Ltd,Home Care - Private Contractors Payment,1010.14,0.00,COMMERCIAL SUPPLIER 
 12-05-2023,Adults,Home Sweet Home Care Ltd,Home Care - Private Contractors Payment,1010.14,0.00,COMMERCIAL SUPPLIER 
 12-05-2023,Adults,Home Sweet Home Care Ltd,Home Care - Private Contractors Payment,1010.50,0.00,COMMERCIAL SUPPLIER 
 22-05-2023,Adults,John Stanleys Care Agency Ltd,Home Care - Private Contractors Payment,1010.90,0.00,COMMERCIAL SUPPLIER 
 03-05-2023,Adults,Hospiva Care & Associates Agency Ltd_a,Home Care - Private Contractors Payment,1011.59,0.00,COMMERCIAL SUPPLIER 
 16-05-2023,Adults,Home Support Services (Havering & Essex) Ltd,Home Care - Private Contractors Payment,1011.59,0.00,COMMERCIAL SUPPLIER 
 02-05-2023,Adults,Morepower Ltd t/a Aqs Homecare,Home Care - Private Contractors Payment,1011.96,0.00,COMMERCIAL SUPPLIER 
 03-05-2023,Adults,Lodge Group Care UK Ltd,Home Care - Private Contractors Payment,1014.50,0.00,COMMERCIAL SUPPLIER 
 12-05-2023,Adults,Home Sweet Home Care Ltd,Home Care - Private Contractors Payment,1014.87,0.00,COMMERCIAL SUPPLIER 
 04-05-2023,Adults,Efficiency - For Care,Supported Other Accommodation - Private Contractors Payment,1015.00,0.00,COMMERCIAL SUPPLIER 
 12-05-2023,Adults,Home Sweet Home Care Ltd,Home Care - Private Contractors Payment,1015.23,0.00,COMMERCIAL SUPPLIER 
 12-05-2023,Adults,Home Sweet Home Care Ltd,Home Care - Private Contractors Payment,1015.60,0.00,COMMERCIAL SUPPLIER 
 22-05-2023,Adults,John Stanleys Care Agency Ltd,Home Care - Private Contractors Payment,1016.14,0.00,COMMERCIAL SUPPLIER 
 12-05-2023,Adults,Home Sweet Home Care Ltd,Home Care - Private Contractors Payment,1016.32,0.00,COMMERCIAL SUPPLIER 
 12-05-2023,Adults,Home Sweet Home Care Ltd,Home Care - Private Contractors Payment,1016.32,0.00,COMMERCIAL SUPPLIER 
 03-05-2023,Adults,Lodge Group Care UK Ltd,Home Care - Private Contractors Payment,1016.69,0.00,COMMERCIAL SUPPLIER 
 12-05-2023,Adults,Home Sweet Home Care Ltd,Home Care - Private Contractors Payment,1017.42,0.00,COMMERCIAL SUPPLIER 
 03-05-2023,Adults,Lodge Group Care UK Ltd,Home Care - Private Contractors Payment,1017.78,0.00,COMMERCIAL SUPPLIER 
 12-05-2023,Adults,Home Sweet Home Care Ltd,Home Care - Private Contractors Payment,1018.14,0.00,COMMERCIAL SUPPLIER 
 09-05-2023,Adults,Cera Care Operations Ltd,Home Care - Private Contractors Payment,1018.51,0.00,COMMERCIAL SUPPLIER 
 12-05-2023,Adults,Home Sweet Home Care Ltd,Home Care - Private Contractors Payment,1019.24,0.00,COMMERCIAL SUPPLIER 
 16-05-2023,Adults,Home Support Services (Havering & Essex) Ltd,Home Care - Private Contractors Payment,1019.60,0.00,COMMERCIAL SUPPLIER 
 17-05-2023,Adults,Matrix SCM Ltd,Agency Staff,1020.05,0.00,COMMERCIAL SUPPLIER 
 09-05-2023,Adults,Cera Care Operations Ltd,Home Care - Private Contractors Payment,1020.69,0.00,COMMERCIAL SUPPLIER 
 31-05-2023,Adults,Home Support Services (Havering & Essex) Ltd,Home Care - Private Contractors Payment,1022.88,0.00,COMMERCIAL SUPPLIER 
 03-05-2023,Adults,Lodge Group Care UK Ltd,Home Care - Private Contractors Payment,1023.61,0.00,COMMERCIAL SUPPLIER 
 30-05-2023,Adults,Homestead Care Service,Home Care - Private Contractors Payment,1024.69,0.00,COMMERCIAL SUPPLIER 
 03-05-2023,Adults,Lodge Group Care UK Ltd,Home Care - Private Contractors Payment,1025.42,0.00,COMMERCIAL SUPPLIER 
 17-05-2023,Adults,Matrix SCM Ltd,Agency Staff,1025.75,0.00,COMMERCIAL SUPPLIER 
 02-05-2023,Adults,Morepower Ltd t/a Aqs Homecare,Home Care - Private Contractors Payment,1026.88,0.00,COMMERCIAL SUPPLIER 
 12-05-2023,Adults,Home Sweet Home Care Ltd,Home Care - Private Contractors Payment,1026.88,0.00,COMMERCIAL SUPPLIER 
 03-05-2023,Adults,Lodge Group Care UK Ltd,Home Care - Private Contractors Payment,1027.61,0.00,COMMERCIAL SUPPLIER 
 02-05-2023,Adults,Morepower Ltd t/a Aqs Homecare,Home Care - Private Contractors Payment,1027.97,0.00,COMMERCIAL SUPPLIER 
 12-05-2023,Adults,Home Sweet Home Care Ltd,Home Care - Private Contractors Payment,1028.33,0.00,COMMERCIAL SUPPLIER 
 31-05-2023,Adults,Home Support Services (Havering & Essex) Ltd,Home Care - Private Contractors Payment,1029.07,0.00,COMMERCIAL SUPPLIER 
 17-05-2023,Adults,Matrix SCM Ltd,Agency Staff,1029.28,0.00,COMMERCIAL SUPPLIER 
 12-05-2023,Adults,Home Sweet Home Care Ltd,Home Care - Private Contractors Payment,1030.16,0.00,COMMERCIAL SUPPLIER 
 16-05-2023,Adults,Home Support Services (Havering & Essex) Ltd,Home Care - Private Contractors Payment,1031.61,0.00,COMMERCIAL SUPPLIER 
 04-05-2023,Adults,Bupa Care Homes (HVC) - Havering Court,Nursing Homes - Private Contractors Payment,1032.99,0.00,COMMERCIAL SUPPLIER 
 12-05-2023,Adults,Home Sweet Home Care Ltd,Home Care - Private Contractors Payment,1034.16,0.00,COMMERCIAL SUPPLIER 
 17-05-2023,Adults,Matrix SCM Ltd,Agency Staff,1034.16,0.00,COMMERCIAL SUPPLIER 
 31-05-2023,Adults,Matrix SCM Ltd,Agency Staff,1034.16,0.00,COMMERCIAL SUPPLIER 
 24-05-2023,Adults,Matrix SCM Ltd,Agency Staff,1034.40,0.00,COMMERCIAL SUPPLIER 
 31-05-2023,Adults,Matrix SCM Ltd,Agency Staff,1034.40,0.00,COMMERCIAL SUPPLIER 
 03-05-2023,Adults,Lodge Group Care UK Ltd,Home Care - Private Contractors Payment,1035.62,0.00,COMMERCIAL SUPPLIER 
 09-05-2023,Adults,Cera Care Operations Ltd,Home Care - Private Contractors Payment,1036.34,0.00,COMMERCIAL SUPPLIER 
 03-05-2023,Adults,Lodge Group Care UK Ltd,Home Care - Private Contractors Payment,1037.44,0.00,COMMERCIAL SUPPLIER 
 12-05-2023,Adults,Home Sweet Home Care Ltd,Home Care - Private Contractors Payment,1037.80,0.00,COMMERCIAL SUPPLIER 
 31-05-2023,Adults,Home Support Services (Havering & Essex) Ltd,Home Care - Private Contractors Payment,1037.80,0.00,COMMERCIAL SUPPLIER 
 02-05-2023,Adults,Morepower Ltd t/a Aqs Homecare,Home Care - Private Contractors Payment,1038.16,0.00,COMMERCIAL SUPPLIER 
 30-05-2023,Adults,Homestead Care Service,Home Care - Private Contractors Payment,1039.25,0.00,COMMERCIAL SUPPLIER 
 12-05-2023,Adults,Home Sweet Home Care Ltd,Home Care - Private Contractors Payment,1039.62,0.00,COMMERCIAL SUPPLIER 
 22-05-2023,Adults,John Stanleys Care Agency Ltd,Home Care - Private Contractors Payment,1039.76,0.00,COMMERCIAL SUPPLIER 
 04-05-2023,Adults,2 Peel Way - Outlook Care,Supported Other Accommodation - Private Contractors Payment,1041.04,0.00,NON COMMERCIAL SUPPLIER 
 04-05-2023,Adults,2 Peel Way - Outlook Care,Supported Other Accommodation - Private Contractors Payment,1041.04,0.00,NON COMMERCIAL SUPPLIER 
 09-05-2023,Adults,Cera Care Operations Ltd,Home Care - Private Contractors Payment,1041.44,0.00,COMMERCIAL SUPPLIER 
 04-05-2023,Adults,IECC Care,Supported Other Accommodation - Private Contractors Payment,1041.48,0.00,COMMERCIAL SUPPLIER 
 04-05-2023,Adults,IECC Care,Supported Other Accommodation - Private Contractors Payment,1041.48,0.00,COMMERCIAL SUPPLIER 
 04-05-2023,Adults,2 Peel Way - Outlook Care,Supported Other Accommodation - Private Contractors Payment,1041.60,0.00,NON COMMERCIAL SUPPLIER 
 02-05-2023,Adults,Morepower Ltd t/a Aqs Homecare,Home Care - Private Contractors Payment,1042.17,0.00,COMMERCIAL SUPPLIER 
 16-05-2023,Adults,Home Support Services (Havering & Essex) Ltd,Home Care - Private Contractors Payment,1042.53,0.00,COMMERCIAL SUPPLIER 
 02-05-2023,Adults,Morepower Ltd t/a Aqs Homecare,Home Care - Private Contractors Payment,1044.35,0.00,COMMERCIAL SUPPLIER 
 02-05-2023,Adults,Morepower Ltd t/a Aqs Homecare,Home Care - Private Contractors Payment,1044.35,0.00,COMMERCIAL SUPPLIER 
 12-05-2023,Adults,Home Sweet Home Care Ltd,Home Care - Private Contractors Payment,1044.72,0.00,COMMERCIAL SUPPLIER 
 30-05-2023,Adults,Care-Away Ltd T/A Care Support,Home Care - Private Contractors Payment,1045.38,0.00,COMMERCIAL SUPPLIER 
 12-05-2023,Adults,Home Sweet Home Care Ltd,Home Care - Private Contractors Payment,1045.44,0.00,COMMERCIAL SUPPLIER 
 03-05-2023,Adults,Lodge Group Care UK Ltd,Home Care - Private Contractors Payment,1046.54,0.00,COMMERCIAL SUPPLIER 
 12-05-2023,Adults,Home Sweet Home Care Ltd,Home Care - Private Contractors Payment,1046.54,0.00,COMMERCIAL SUPPLIER 
 22-05-2023,Adults,Passion Tree Care Services Ltd,Home Care - Private Contractors Payment,1048.33,0.00,COMMERCIAL SUPPLIER 
 16-05-2023,Adults,Home Support Services (Havering & Essex) Ltd,Home Care - Private Contractors Payment,1049.45,0.00,COMMERCIAL SUPPLIER 
 03-05-2023,Adults,Lodge Group Care UK Ltd,Home Care - Private Contractors Payment,1051.63,0.00,COMMERCIAL SUPPLIER 
 30-05-2023,Adults,Homestead Care Service,Home Care - Private Contractors Payment,1051.63,0.00,COMMERCIAL SUPPLIER 
 03-05-2023,Adults,Lodge Group Care UK Ltd,Home Care - Private Contractors Payment,1052.72,0.00,COMMERCIAL SUPPLIER 
 09-05-2023,Adults,Cera Care Operations Ltd,Home Care - Private Contractors Payment,1052.72,0.00,COMMERCIAL SUPPLIER 
 16-05-2023,Adults,Care-Away Ltd T/A Care Support,Home Care - Private Contractors Payment,1054.55,0.00,COMMERCIAL SUPPLIER 
 18-05-2023,Adults,Care-Away Ltd T/A Care Support,Home Care - Private Contractors Payment,1054.55,0.00,COMMERCIAL SUPPLIER 
 04-05-2023,Adults,Ash Grove Residential Care Home,Residential Care Income,1054.64,0.00,COMMERCIAL SUPPLIER 
 04-05-2023,Adults,Ash Grove Residential Care Home,Residential Care Income,1054.64,0.00,COMMERCIAL SUPPLIER 
 04-05-2023,Adults,Ash Grove Residential Care Home,Residential Care Income,1054.64,0.00,COMMERCIAL SUPPLIER 
 04-05-2023,Adults,Ash Grove Residential Care Home,Residential Care Income,1054.64,0.00,COMMERCIAL SUPPLIER 
 04-05-2023,Adults,Ash Grove Residential Care Home,Residential Care Income,1054.64,0.00,COMMERCIAL SUPPLIER 
 04-05-2023,Adults,Ash Grove Residential Care Home,Residential Care Income,1054.64,0.00,COMMERCIAL SUPPLIER 
 02-05-2023,Adults,Morepower Ltd t/a Aqs Homecare,Home Care - Private Contractors Payment,1055.27,0.00,COMMERCIAL SUPPLIER 
 31-05-2023,Adults,Matrix SCM Ltd,Agency Staff,1056.85,0.00,COMMERCIAL SUPPLIER 
 12-05-2023,Adults,Home Sweet Home Care Ltd,Home Care - Private Contractors Payment,1059.64,0.00,COMMERCIAL SUPPLIER 
 12-05-2023,Adults,Home Sweet Home Care Ltd,Home Care - Private Contractors Payment,1060.00,0.00,COMMERCIAL SUPPLIER 
 09-05-2023,Adults,Cera Care Operations Ltd,Home Care - Private Contractors Payment,1061.82,0.00,COMMERCIAL SUPPLIER 
 09-05-2023,Adults,Cera Care Operations Ltd,Home Care - Private Contractors Payment,1062.19,0.00,COMMERCIAL SUPPLIER 
 30-05-2023,Adults,Homestead Care Service,Home Care - Private Contractors Payment,1062.54,0.00,COMMERCIAL SUPPLIER 
 16-05-2023,Adults,Home Support Services (Havering & Essex) Ltd,Home Care - Private Contractors Payment,1062.55,0.00,COMMERCIAL SUPPLIER 
 04-05-2023,Adults,Lodge Lane Care Home Limited,Residential Placements - Private Contractors Payment,1064.00,0.00,COMMERCIAL SUPPLIER 
 03-05-2023,Adults,Lodge Group Care UK Ltd,Home Care - Private Contractors Payment,1065.83,0.00,COMMERCIAL SUPPLIER 
 24-05-2023,Adults,Matrix SCM Ltd,Agency Staff,1066.80,0.00,COMMERCIAL SUPPLIER 
 04-05-2023,Adults,Ash Grove Residential Care Home,Residential Care Income,1067.99,0.00,COMMERCIAL SUPPLIER 
 16-05-2023,Adults,Home Support Services (Havering & Essex) Ltd,Home Care - Private Contractors Payment,1068.01,0.00,COMMERCIAL SUPPLIER 
 03-05-2023,Adults,Lodge Group Care UK Ltd,Home Care - Private Contractors Payment,1069.47,0.00,COMMERCIAL SUPPLIER 
 25-05-2023,Adults,Personal Information - Redacted,Home Care - Private Contractors Payment,1070.18,0.00,INDIVIDUALS 
 22-05-2023,Adults,Passion Tree Care Services Ltd,Home Care - Private Contractors Payment,1070.19,0.00,COMMERCIAL SUPPLIER 
 02-05-2023,Adults,Passion Tree Care Services Ltd,Home Care - Private Contractors Payment,1070.20,0.00,COMMERCIAL SUPPLIER 
 04-05-2023,Adults,Inna Care Ltd,Home Care - Private Contractors Payment,1070.20,0.00,COMMERCIAL SUPPLIER 
 04-05-2023,Adults,Alpine Resources UK Ltd,Supported Other Accommodation - Private Contractors Payment,1071.43,0.00,COMMERCIAL SUPPLIER 
 04-05-2023,Adults,Ebony Health Care Services Limited,Supported Other Accommodation - Private Contractors Payment,1071.60,0.00,COMMERCIAL SUPPLIER 
 04-05-2023,Adults,Ebony Health Care Services Limited,Supported Other Accommodation - Private Contractors Payment,1071.60,0.00,COMMERCIAL SUPPLIER 
 03-05-2023,Adults,Lodge Group Care UK Ltd,Home Care - Private Contractors Payment,1073.11,0.00,COMMERCIAL SUPPLIER 
 16-05-2023,Adults,Home Support Services (Havering & Essex) Ltd,Home Care - Private Contractors Payment,1075.29,0.00,COMMERCIAL SUPPLIER 
 04-05-2023,Adults,Ash Grove Residential Care Home,Residential Care Income,1075.68,0.00,COMMERCIAL SUPPLIER 
 09-05-2023,Adults,Cera Care Operations Ltd,Home Care - Private Contractors Payment,1076.82,0.00,COMMERCIAL SUPPLIER 
 16-05-2023,Adults,Home Support Services (Havering & Essex) Ltd,Home Care - Private Contractors Payment,1079.66,0.00,COMMERCIAL SUPPLIER 
 10-05-2023,Adults,Trinity London Care Ltd,Daycare - Private Contractors Payment,1080.00,0.00,COMMERCIAL SUPPLIER 
 10-05-2023,Adults,Trinity London Care Ltd,Daycare - Private Contractors Payment,1080.00,0.00,COMMERCIAL SUPPLIER 
 10-05-2023,Adults,Trinity London Care Ltd,Daycare - Private Contractors Payment,1080.00,0.00,COMMERCIAL SUPPLIER 
 02-05-2023,Adults,Morepower Ltd t/a Aqs Homecare,Home Care - Private Contractors Payment,1081.48,0.00,COMMERCIAL SUPPLIER 
 02-05-2023,Adults,Morepower Ltd t/a Aqs Homecare,Home Care - Private Contractors Payment,1081.48,0.00,COMMERCIAL SUPPLIER 
 03-05-2023,Adults,Lodge Group Care UK Ltd,Home Care - Private Contractors Payment,1081.48,0.00,COMMERCIAL SUPPLIER 
 04-05-2023,Adults,Coastal Supported Living CIC,Supported Other Accommodation - Private Contractors Payment,1082.76,0.00,COMMERCIAL SUPPLIER 
 04-05-2023,Adults,Coastal Supported Living CIC,Supported Other Accommodation - Private Contractors Payment,1082.76,0.00,COMMERCIAL SUPPLIER 
 22-05-2023,Adults,John Stanleys Care Agency Ltd,Home Care - Private Contractors Payment,1084.37,0.00,COMMERCIAL SUPPLIER 
 03-05-2023,Adults,Lodge Group Care UK Ltd,Home Care - Private Contractors Payment,1084.39,0.00,COMMERCIAL SUPPLIER 
 04-05-2023,Adults,Efficiency - For Care,Supported Other Accommodation - Private Contractors Payment,1085.00,0.00,COMMERCIAL SUPPLIER 
 04-05-2023,Adults,Efficiency - For Care,Supported Other Accommodation - Private Contractors Payment,1085.00,0.00,COMMERCIAL SUPPLIER 
 04-05-2023,Adults,Ash Grove Residential Care Home,Residential Care Income,1087.36,0.00,COMMERCIAL SUPPLIER 
 04-05-2023,Adults,Ash Grove Residential Care Home,Residential Care Income,1087.36,0.00,COMMERCIAL SUPPLIER 
 04-05-2023,Adults,Ash Grove Residential Care Home,Residential Care Income,1087.36,0.00,COMMERCIAL SUPPLIER 
 04-05-2023,Adults,Ash Grove Residential Care Home,Residential Care Income,1087.36,0.00,COMMERCIAL SUPPLIER 
 04-05-2023,Adults,Ash Grove Residential Care Home,Residential Care Income,1087.36,0.00,COMMERCIAL SUPPLIER 
 04-05-2023,Adults,Ash Grove Residential Care Home,Residential Care Income,1087.36,0.00,COMMERCIAL SUPPLIER 
 04-05-2023,Adults,Ash Grove Residential Care Home,Residential Care Income,1087.36,0.00,COMMERCIAL SUPPLIER 
 04-05-2023,Adults,Ash Grove Residential Care Home,Residential Care Income,1087.36,0.00,COMMERCIAL SUPPLIER 
 04-05-2023,Adults,Ash Grove Residential Care Home,Residential Care Income,1087.36,0.00,COMMERCIAL SUPPLIER 
 04-05-2023,Adults,Ash Grove Residential Care Home,Residential Care Income,1087.36,0.00,COMMERCIAL SUPPLIER 
 04-05-2023,Adults,Ash Grove Residential Care Home,Residential Care Income,1087.36,0.00,COMMERCIAL SUPPLIER 
 04-05-2023,Adults,Independent Community Support Ltd t/a Wingletye Lodge ,Supported Other Accommodation - Private Contractors Payment,1088.64,0.00,COMMERCIAL SUPPLIER 
 04-05-2023,Adults,Independent Community Support Ltd t/a Wingletye Lodge ,Supported Other Accommodation - Private Contractors Payment,1088.64,0.00,COMMERCIAL SUPPLIER 
 04-05-2023,Adults,Personal Information - Redacted,Supported Other Accommodation - Private Contractors Payment,1088.64,0.00,INDIVIDUALS 
 04-05-2023,Adults,Personal Information - Redacted,Supported Other Accommodation - Private Contractors Payment,1088.64,0.00,INDIVIDUALS 
 02-05-2023,Adults,Morepower Ltd t/a Aqs Homecare,Home Care - Private Contractors Payment,1089.85,0.00,COMMERCIAL SUPPLIER 
 02-05-2023,Adults,Morepower Ltd t/a Aqs Homecare,Home Care - Private Contractors Payment,1089.85,0.00,COMMERCIAL SUPPLIER 
 04-05-2023,Adults,Ebony Health Care Services Limited,Home Care - Private Contractors Payment,1091.96,0.00,COMMERCIAL SUPPLIER 
 04-05-2023,Adults,Ebony Health Care Services Limited,Home Care - Private Contractors Payment,1091.96,0.00,COMMERCIAL SUPPLIER 
 24-05-2023,Adults,IJB Healthcare Ltd,Home Care - Private Contractors Payment,1092.02,0.00,COMMERCIAL SUPPLIER 
 04-05-2023,Adults,Lodge Lane Care Home Limited,Respite Care - Private Contractors Payment,1092.14,0.00,COMMERCIAL SUPPLIER 
 04-05-2023,Adults,Lodge Lane Care Home Limited,Respite Care Income,1092.14,0.00,COMMERCIAL SUPPLIER 
 04-05-2023,Adults,Ash Grove Residential Care Home,Residential Care Income,1092.30,0.00,COMMERCIAL SUPPLIER 
 03-05-2023,Adults,Matrix SCM Ltd,Agency Staff,1094.74,0.00,COMMERCIAL SUPPLIER 
 31-05-2023,Adults,Matrix SCM Ltd,Agency Staff,1094.74,0.00,COMMERCIAL SUPPLIER 
 09-05-2023,Adults,Cera Care Operations Ltd,Home Care - Private Contractors Payment,1099.68,0.00,COMMERCIAL SUPPLIER 
 03-05-2023,Adults,Lodge Group Care UK Ltd,Home Care - Private Contractors Payment,1101.13,0.00,COMMERCIAL SUPPLIER 
 04-05-2023,Adults,Infinite Healthcare Services Ltd.,Supported Other Accommodation - Private Contractors Payment,1101.60,0.00,COMMERCIAL SUPPLIER 
 04-05-2023,Adults,Infinite Healthcare Services Ltd.,Supported Other Accommodation - Private Contractors Payment,1101.60,0.00,COMMERCIAL SUPPLIER 
 04-05-2023,Adults,Masumin Ltd t/s Abbeleigh House,Respite Care - Private Contractors Payment,1102.07,0.00,COMMERCIAL SUPPLIER 
 04-05-2023,Adults,The Cedars,Supported Other Accommodation - Private Contractors Payment,1102.48,0.00,COMMERCIAL SUPPLIER 
 04-05-2023,Adults,The Cedars,Supported Other Accommodation - Private Contractors Payment,1102.48,0.00,COMMERCIAL SUPPLIER 
 17-05-2023,Adults,Matrix SCM Ltd,Agency Staff,1103.36,0.00,COMMERCIAL SUPPLIER 
 22-05-2023,Adults,John Stanleys Care Agency Ltd,Home Care - Private Contractors Payment,1103.39,0.00,COMMERCIAL SUPPLIER 
 04-05-2023,Adults,Ashgate House Ltd_a,Residential Placements - Private Contractors Payment,1103.76,0.00,COMMERCIAL SUPPLIER 
 04-05-2023,Adults,One Tree Estates Ltd t/a Ashbrook Nursing Home,Nursing Homes - Private Contractors Payment,1104.00,0.00,COMMERCIAL SUPPLIER 
 16-05-2023,Adults,Home Support Services (Havering & Essex) Ltd,Home Care - Private Contractors Payment,1104.78,0.00,COMMERCIAL SUPPLIER 
 03-05-2023,Adults,London Care Plc_a,Home Care - Private Contractors Payment,1105.14,0.00,COMMERCIAL SUPPLIER 
 22-05-2023,Adults,John Stanleys Care Agency Ltd,Home Care - Private Contractors Payment,1105.36,0.00,COMMERCIAL SUPPLIER 
 12-05-2023,Adults,Home Sweet Home Care Ltd,Home Care - Private Contractors Payment,1109.87,0.00,COMMERCIAL SUPPLIER 
 03-05-2023,Adults,Lodge Group Care UK Ltd,Home Care - Private Contractors Payment,1110.24,0.00,COMMERCIAL SUPPLIER 
 31-05-2023,Adults,Home Support Services (Havering & Essex) Ltd,Home Care - Private Contractors Payment,1111.70,0.00,COMMERCIAL SUPPLIER 
 30-05-2023,Adults,Homestead Care Service,Home Care - Private Contractors Payment,1112.05,0.00,COMMERCIAL SUPPLIER 
 17-05-2023,Adults,Matrix SCM Ltd,Agency Staff,1114.63,0.00,COMMERCIAL SUPPLIER 
 18-05-2023,Adults,Care-Away Ltd T/A Care Support,Home Care - Private Contractors Payment,1114.81,0.00,COMMERCIAL SUPPLIER 
 02-05-2023,Adults,Morepower Ltd t/a Aqs Homecare,Home Care - Private Contractors Payment,1114.97,0.00,COMMERCIAL SUPPLIER 
 19-05-2023,Adults,BeTo Solutions Ltd,Supported Other Accommodation - Private Contractors Payment,1116.00,0.00,COMMERCIAL SUPPLIER 
 12-05-2023,Adults,Home Sweet Home Care Ltd,Home Care - Private Contractors Payment,1116.06,0.00,COMMERCIAL SUPPLIER 
 22-05-2023,Adults,John Stanleys Care Agency Ltd,Home Care - Private Contractors Payment,1117.82,0.00,COMMERCIAL SUPPLIER 
 04-05-2023,Adults,Outlook Care - 4 Peel Way,Supported Other Accommodation - Private Contractors Payment,1117.88,0.00,COMMERCIAL SUPPLIER 
 04-05-2023,Adults,Outlook Care - 4 Peel Way,Supported Other Accommodation - Private Contractors Payment,1117.88,0.00,COMMERCIAL SUPPLIER 
 12-05-2023,Adults,Home Sweet Home Care Ltd,Home Care - Private Contractors Payment,1117.88,0.00,COMMERCIAL SUPPLIER 
 02-05-2023,Adults,Morepower Ltd t/a Aqs Homecare,Home Care - Private Contractors Payment,1119.34,0.00,COMMERCIAL SUPPLIER 
 12-05-2023,Adults,Home Sweet Home Care Ltd,Home Care - Private Contractors Payment,1120.06,0.00,COMMERCIAL SUPPLIER 
 03-05-2023,Adults,London Care Plc_a,Home Care - Private Contractors Payment,1120.43,0.00,COMMERCIAL SUPPLIER 
 03-05-2023,Adults,Hospiva Care & Associates Agency Ltd_a,Home Care - Private Contractors Payment,1121.16,0.00,COMMERCIAL SUPPLIER 
 09-05-2023,Adults,Cera Care Operations Ltd,Home Care - Private Contractors Payment,1121.16,0.00,COMMERCIAL SUPPLIER 
 22-05-2023,Adults,John Stanleys Care Agency Ltd,Home Care - Private Contractors Payment,1122.74,0.00,COMMERCIAL SUPPLIER 
 22-05-2023,Adults,John Stanleys Care Agency Ltd,Home Care - Private Contractors Payment,1122.74,0.00,COMMERCIAL SUPPLIER 
 09-05-2023,Adults,Cera Care Operations Ltd,Home Care - Private Contractors Payment,1122.97,0.00,COMMERCIAL SUPPLIER 
 04-05-2023,Adults,The Cottage Residential Care Home,Residential Placements - Private Contractors Payment,1123.52,0.00,COMMERCIAL SUPPLIER 
 04-05-2023,Adults,The Cottage Residential Care Home,Residential Placements - Private Contractors Payment,1123.52,0.00,COMMERCIAL SUPPLIER 
 22-05-2023,Adults,John Stanleys Care Agency Ltd,Home Care - Private Contractors Payment,1125.04,0.00,COMMERCIAL SUPPLIER 
 04-05-2023,Adults,Ash Grove Residential Care Home,Residential Care Income,1126.19,0.00,COMMERCIAL SUPPLIER 
 31-05-2023,Adults,Home Support Services (Havering & Essex) Ltd,Home Care - Private Contractors Payment,1126.25,0.00,COMMERCIAL SUPPLIER 
 16-05-2023,Adults,Home Support Services (Havering & Essex) Ltd,Home Care - Private Contractors Payment,1128.80,0.00,COMMERCIAL SUPPLIER 
 22-05-2023,Adults,Delight Supported Living Ltd,Home Care - Private Contractors Payment,1129.28,0.00,COMMERCIAL SUPPLIER 
 22-05-2023,Adults,Delight Supported Living Ltd,Home Care - Private Contractors Payment,1129.28,0.00,COMMERCIAL SUPPLIER 
 16-05-2023,Adults,Care-Away Ltd T/A Care Support,Home Care - Private Contractors Payment,1129.87,0.00,COMMERCIAL SUPPLIER 
 22-05-2023,Adults,John Stanleys Care Agency Ltd,Home Care - Private Contractors Payment,1129.96,0.00,COMMERCIAL SUPPLIER 
 04-05-2023,Adults,Inna Care Ltd,Home Care - Private Contractors Payment,1130.25,0.00,COMMERCIAL SUPPLIER 
 04-05-2023,Adults,Inna Care Ltd,Home Care - Private Contractors Payment,1130.25,0.00,COMMERCIAL SUPPLIER 
 02-05-2023,Adults,Passion Tree Care Services Ltd,Home Care - Private Contractors Payment,1130.26,0.00,COMMERCIAL SUPPLIER 
 02-05-2023,Adults,Passion Tree Care Services Ltd,Home Care - Private Contractors Payment,1130.26,0.00,COMMERCIAL SUPPLIER 
 02-05-2023,Adults,Passion Tree Care Services Ltd,Home Care - Private Contractors Payment,1130.26,0.00,COMMERCIAL SUPPLIER 
 03-05-2023,Adults,Dignified Homecare,Home Care - Private Contractors Payment,1130.26,0.00,COMMERCIAL SUPPLIER 
 04-05-2023,Adults,Crystalize Care Services Ltd,Home Care - Private Contractors Payment,1130.26,0.00,COMMERCIAL SUPPLIER 
 04-05-2023,Adults,Crystalize Care Services Ltd,Home Care - Private Contractors Payment,1130.26,0.00,COMMERCIAL SUPPLIER 
 04-05-2023,Adults,Inna Care Ltd,Home Care - Private Contractors Payment,1130.26,0.00,COMMERCIAL SUPPLIER 
 04-05-2023,Adults,Inna Care Ltd,Home Care - Private Contractors Payment,1130.26,0.00,COMMERCIAL SUPPLIER 
 04-05-2023,Adults,Ashgate House Ltd_a,Residential Placements - Private Contractors Payment,1130.32,0.00,COMMERCIAL SUPPLIER 
 04-05-2023,Adults,Care Management Group Ltd - The Ridgeway,Supported Other Accommodation - Private Contractors Payment,1131.60,0.00,COMMERCIAL SUPPLIER 
 04-05-2023,Adults,Care Management Group Ltd - The Ridgeway,Supported Other Accommodation - Private Contractors Payment,1131.60,0.00,COMMERCIAL SUPPLIER 
 31-05-2023,Adults,Home Support Services (Havering & Essex) Ltd,Home Care - Private Contractors Payment,1133.90,0.00,COMMERCIAL SUPPLIER 
 04-05-2023,Adults,Gims Care Solution Ltd_a,Supported Other Accommodation - Private Contractors Payment,1134.00,0.00,NON COMMERCIAL SUPPLIER 
 04-05-2023,Adults,Gims Care Solution Ltd_a,Supported Other Accommodation - Private Contractors Payment,1134.00,0.00,NON COMMERCIAL SUPPLIER 
 04-05-2023,Adults,Protecthand Care Ltd ,Supported Other Accommodation - Private Contractors Payment,1134.00,0.00,COMMERCIAL SUPPLIER 
 04-05-2023,Adults,Protecthand Care Ltd ,Supported Other Accommodation - Private Contractors Payment,1134.00,0.00,COMMERCIAL SUPPLIER 
 26-05-2023,Adults,Prestige Care & Support Ltd,Home Care - Private Contractors Payment,1134.62,0.00,COMMERCIAL SUPPLIER 
 26-05-2023,Adults,Prior Care Ltd_a,Home Care - Private Contractors Payment,1136.45,0.00,COMMERCIAL SUPPLIER 
 02-05-2023,Adults,Morepower Ltd t/a Aqs Homecare,Home Care - Private Contractors Payment,1137.90,0.00,COMMERCIAL SUPPLIER 
 09-05-2023,Adults,Cera Care Operations Ltd,Home Care - Private Contractors Payment,1139.72,0.00,COMMERCIAL SUPPLIER 
 30-05-2023,Adults,Homestead Care Service,Home Care - Private Contractors Payment,1140.44,0.00,COMMERCIAL SUPPLIER 
 03-05-2023,Adults,Lodge Group Care UK Ltd,Home Care - Private Contractors Payment,1142.27,0.00,COMMERCIAL SUPPLIER 
 03-05-2023,Adults,Lodge Group Care UK Ltd,Home Care - Private Contractors Payment,1142.63,0.00,COMMERCIAL SUPPLIER 
 04-05-2023,Adults,Outreach Support Services Ltd,Supported Other Accommodation - Private Contractors Payment,1143.08,0.00,COMMERCIAL SUPPLIER 
 04-05-2023,Adults,Outreach Support Services Ltd,Supported Other Accommodation - Private Contractors Payment,1143.08,0.00,COMMERCIAL SUPPLIER 
 03-05-2023,Adults,Lodge Group Care UK Ltd,Home Care - Private Contractors Payment,1143.72,0.00,COMMERCIAL SUPPLIER 
 30-05-2023,Adults,Homestead Care Service,Home Care - Private Contractors Payment,1143.73,0.00,COMMERCIAL SUPPLIER 
 03-05-2023,Adults,Lodge Group Care UK Ltd,Home Care - Private Contractors Payment,1147.73,0.00,COMMERCIAL SUPPLIER 
 03-05-2023,Adults,Lodge Group Care UK Ltd,Home Care - Private Contractors Payment,1148.44,0.00,COMMERCIAL SUPPLIER 
 16-05-2023,Adults,Care-Away Ltd T/A Care Support,Home Care - Private Contractors Payment,1150.84,0.00,COMMERCIAL SUPPLIER 
 16-05-2023,Adults,Care-Away Ltd T/A Care Support,Home Care - Private Contractors Payment,1150.84,0.00,COMMERCIAL SUPPLIER 
 31-05-2023,Adults,Home Support Services (Havering & Essex) Ltd,Home Care - Private Contractors Payment,1152.10,0.00,COMMERCIAL SUPPLIER 
 30-05-2023,Adults,Homestead Care Service,Home Care - Private Contractors Payment,1155.37,0.00,COMMERCIAL SUPPLIER 
 17-05-2023,Adults,Matrix SCM Ltd,Agency Staff,1157.12,0.00,COMMERCIAL SUPPLIER 
 31-05-2023,Adults,Home Support Services (Havering & Essex) Ltd,Home Care - Private Contractors Payment,1158.29,0.00,COMMERCIAL SUPPLIER 
 23-05-2023,Adults,Tapestry_a.,Daycare - Private Contractors Payment,1159.00,0.00,COMMERCIAL SUPPLIER 
 04-05-2023,Adults,The Riverside Group,Supported Other Accommodation - Private Contractors Payment,1160.00,0.00, 
 04-05-2023,Adults,The Riverside Group,Supported Other Accommodation - Private Contractors Payment,1160.00,0.00, 
 04-05-2023,Adults,The Riverside Group,Supported Other Accommodation - Private Contractors Payment,1160.00,0.00, 
 04-05-2023,Adults,The Riverside Group,Supported Other Accommodation - Private Contractors Payment,1160.00,0.00, 
 04-05-2023,Adults,The Riverside Group,Supported Other Accommodation - Private Contractors Payment,1160.00,0.00, 
 04-05-2023,Adults,The Riverside Group,Supported Other Accommodation - Private Contractors Payment,1160.00,0.00, 
 04-05-2023,Adults,The Riverside Group,Supported Other Accommodation - Private Contractors Payment,1160.00,0.00, 
 04-05-2023,Adults,The Riverside Group,Supported Other Accommodation - Private Contractors Payment,1160.00,0.00, 
 16-05-2023,Adults,Home Support Services (Havering & Essex) Ltd,Home Care - Private Contractors Payment,1161.56,0.00,COMMERCIAL SUPPLIER 
 04-05-2023,Adults,Ash Grove Residential Care Home,Residential Care Income,1161.87,0.00,COMMERCIAL SUPPLIER 
 03-05-2023,Adults,Hospiva Care & Associates Agency Ltd_a,Home Care - Private Contractors Payment,1162.29,0.00,COMMERCIAL SUPPLIER 
 03-05-2023,Adults,Hospiva Care & Associates Agency Ltd_a,Home Care - Private Contractors Payment,1162.29,0.00,COMMERCIAL SUPPLIER 
 04-05-2023,Adults,Crystalize Care Services Ltd,Home Care - Private Contractors Payment,1163.93,0.00,COMMERCIAL SUPPLIER 
 03-05-2023,Adults,Hospiva Care & Associates Agency Ltd_a,Home Care - Private Contractors Payment,1166.29,0.00,COMMERCIAL SUPPLIER 
 03-05-2023,Adults,Matrix SCM Ltd,Agency Staff,1169.28,0.00,COMMERCIAL SUPPLIER 
 17-05-2023,Adults,Matrix SCM Ltd,Agency Staff,1169.28,0.00,COMMERCIAL SUPPLIER 
 24-05-2023,Adults,Matrix SCM Ltd,Agency Staff,1169.28,0.00,COMMERCIAL SUPPLIER 
 31-05-2023,Adults,Matrix SCM Ltd,Agency Staff,1169.28,0.00,COMMERCIAL SUPPLIER 
 22-05-2023,Adults,John Stanleys Care Agency Ltd,Home Care - Private Contractors Payment,1169.32,0.00,COMMERCIAL SUPPLIER 
 22-05-2023,Adults,John Stanleys Care Agency Ltd,Home Care - Private Contractors Payment,1171.94,0.00,COMMERCIAL SUPPLIER 
 03-05-2023,Adults,Lodge Group Care UK Ltd,Home Care - Private Contractors Payment,1172.48,0.00,COMMERCIAL SUPPLIER 
 30-05-2023,Adults,Homestead Care Service,Home Care - Private Contractors Payment,1178.67,0.00,COMMERCIAL SUPPLIER 
 25-05-2023,Adults,Inna Care Ltd,Home Care - Private Contractors Payment,1179.40,0.00,COMMERCIAL SUPPLIER 
 30-05-2023,Adults,Homestead Care Service,Home Care - Private Contractors Payment,1179.77,0.00,COMMERCIAL SUPPLIER 
 26-05-2023,Adults,Prior Care Ltd_a,Home Care - Private Contractors Payment,1180.13,0.00,COMMERCIAL SUPPLIER 
 03-05-2023,Adults,Matrix SCM Ltd,Agency Staff,1181.15,0.00,COMMERCIAL SUPPLIER 
 17-05-2023,Adults,Matrix SCM Ltd,Agency Staff,1181.15,0.00,COMMERCIAL SUPPLIER 
 31-05-2023,Adults,Matrix SCM Ltd,Agency Staff,1181.15,0.00,COMMERCIAL SUPPLIER 
 12-05-2023,Adults,Home Sweet Home Care Ltd,Home Care - Private Contractors Payment,1184.86,0.00,COMMERCIAL SUPPLIER 
 12-05-2023,Adults,Home Sweet Home Care Ltd,Home Care - Private Contractors Payment,1187.40,0.00,COMMERCIAL SUPPLIER 
 23-05-2023,Adults,Ace Outreach Ltd,Home Care - Private Contractors Payment,1188.00,0.00,COMMERCIAL SUPPLIER 
 23-05-2023,Adults,Ace Outreach Ltd,Home Care - Private Contractors Payment,1188.00,0.00,COMMERCIAL SUPPLIER 
 30-05-2023,Adults,Homestead Care Service,Home Care - Private Contractors Payment,1190.32,0.00,COMMERCIAL SUPPLIER 
 31-05-2023,Adults,Home Support Services (Havering & Essex) Ltd,Home Care - Private Contractors Payment,1201.24,0.00,COMMERCIAL SUPPLIER 
 26-05-2023,Adults,Prior Care Ltd_a,Home Care - Private Contractors Payment,1203.43,0.00,COMMERCIAL SUPPLIER 
 30-05-2023,Adults,Homestead Care Service,Home Care - Private Contractors Payment,1203.43,0.00,COMMERCIAL SUPPLIER 
 31-05-2023,Adults,Home Support Services (Havering & Essex) Ltd,Home Care - Private Contractors Payment,1205.61,0.00,COMMERCIAL SUPPLIER 
 03-05-2023,Adults,Matrix SCM Ltd,Agency Staff,1205.63,0.00,COMMERCIAL SUPPLIER 
 24-05-2023,Adults,Matrix SCM Ltd,Agency Staff,1205.63,0.00,COMMERCIAL SUPPLIER 
 31-05-2023,Adults,Matrix SCM Ltd,Agency Staff,1205.63,0.00,COMMERCIAL SUPPLIER 
 30-05-2023,Adults,Homestead Care Service,Home Care - Private Contractors Payment,1206.70,0.00,COMMERCIAL SUPPLIER 
 03-05-2023,Adults,Matrix SCM Ltd,Agency Staff,1209.60,0.00,COMMERCIAL SUPPLIER 
 17-05-2023,Adults,Matrix SCM Ltd,Agency Staff,1209.60,0.00,COMMERCIAL SUPPLIER 
 31-05-2023,Adults,Matrix SCM Ltd,Agency Staff,1209.60,0.00,COMMERCIAL SUPPLIER 
 30-05-2023,Adults,Homestead Care Service,Home Care - Private Contractors Payment,1209.96,0.00,COMMERCIAL SUPPLIER 
 22-05-2023,Adults,John Stanleys Care Agency Ltd,Home Care - Private Contractors Payment,1210.98,0.00,COMMERCIAL SUPPLIER 
 30-05-2023,Adults,Homestead Care Service,Home Care - Private Contractors Payment,1211.07,0.00,COMMERCIAL SUPPLIER 
 04-05-2023,Adults,Masumin Ltd t/s Abbeleigh House,Respite Care - Private Contractors Payment,1212.28,0.00,COMMERCIAL SUPPLIER 
 04-05-2023,Adults,Lodge Lane Care Home Limited,Respite Care - Private Contractors Payment,1212.28,0.00,COMMERCIAL SUPPLIER 
 16-05-2023,Adults,Home Support Services (Havering & Essex) Ltd,Home Care - Private Contractors Payment,1212.88,0.00,COMMERCIAL SUPPLIER 
 03-05-2023,Adults,Matrix SCM Ltd,Agency Staff,1213.57,0.00,COMMERCIAL SUPPLIER 
 24-05-2023,Adults,Matrix SCM Ltd,Agency Staff,1213.57,0.00,COMMERCIAL SUPPLIER 
 26-05-2023,Adults,Prestige Care & Support Ltd,Home Care - Private Contractors Payment,1213.98,0.00,COMMERCIAL SUPPLIER 
 04-05-2023,Adults,Langley House,Respite Care - Private Contractors Payment,1214.29,0.00,COMMERCIAL SUPPLIER 
 04-05-2023,Adults,Lodge Lane Care Home Limited,Respite Care - Private Contractors Payment,1214.29,0.00,COMMERCIAL SUPPLIER 
 26-05-2023,Adults,Prior Care Ltd_a,Home Care - Private Contractors Payment,1214.35,0.00,COMMERCIAL SUPPLIER 
 22-05-2023,Adults,John Stanleys Care Agency Ltd,Home Care - Private Contractors Payment,1214.58,0.00,COMMERCIAL SUPPLIER 
 30-05-2023,Adults,Homestead Care Service,Home Care - Private Contractors Payment,1214.71,0.00,COMMERCIAL SUPPLIER 
 30-05-2023,Adults,Homestead Care Service,Home Care - Private Contractors Payment,1214.71,0.00,COMMERCIAL SUPPLIER 
 31-05-2023,Adults,Anytime Care 2020_a,Home Care - Private Contractors Payment,1214.71,0.00,COMMERCIAL SUPPLIER 
 31-05-2023,Adults,Home Support Services (Havering & Essex) Ltd,Home Care - Private Contractors Payment,1216.53,0.00,COMMERCIAL SUPPLIER 
 24-05-2023,Adults,Matrix SCM Ltd,Agency Staff,1216.68,0.00,COMMERCIAL SUPPLIER 
 16-05-2023,Adults,Home Support Services (Havering & Essex) Ltd,Home Care - Private Contractors Payment,1217.26,0.00,COMMERCIAL SUPPLIER 
 26-05-2023,Adults,Prior Care Ltd_a,Home Care - Private Contractors Payment,1217.26,0.00,COMMERCIAL SUPPLIER 
 30-05-2023,Adults,Homestead Care Service,Home Care - Private Contractors Payment,1217.62,0.00,COMMERCIAL SUPPLIER 
 30-05-2023,Adults,Homestead Care Service,Home Care - Private Contractors Payment,1219.81,0.00,COMMERCIAL SUPPLIER 
 22-05-2023,Adults,Tapestry_a.,Daycare - Private Contractors Payment,1220.00,0.00,COMMERCIAL SUPPLIER 
 22-05-2023,Adults,Tapestry_a.,Daycare - Private Contractors Payment,1220.00,0.00,COMMERCIAL SUPPLIER 
 22-05-2023,Adults,Tapestry_a.,Daycare - Private Contractors Payment,1220.00,0.00,COMMERCIAL SUPPLIER 
 30-05-2023,Adults,Homestead Care Service,Home Care - Private Contractors Payment,1220.17,0.00,COMMERCIAL SUPPLIER 
 24-05-2023,Adults,IJB Healthcare Ltd,Home Care - Private Contractors Payment,1223.05,0.00,COMMERCIAL SUPPLIER 
 25-05-2023,Adults,Personal Information - Redacted,Home Care - Private Contractors Payment,1223.05,0.00,INDIVIDUALS 
 25-05-2023,Adults,Inna Care Ltd,Home Care - Private Contractors Payment,1223.06,0.00,COMMERCIAL SUPPLIER 
 22-05-2023,Adults,Passion Tree Care Services Ltd,Home Care - Private Contractors Payment,1223.08,0.00,COMMERCIAL SUPPLIER 
 22-05-2023,Adults,Passion Tree Care Services Ltd,Home Care - Private Contractors Payment,1223.08,0.00,COMMERCIAL SUPPLIER 
 22-05-2023,Adults,London Homecare Ltd,Home Care - Private Contractors Payment,1223.08,0.00,COMMERCIAL SUPPLIER 
 22-05-2023,Adults,London Homecare Ltd,Home Care - Private Contractors Payment,1223.08,0.00,COMMERCIAL SUPPLIER 
 22-05-2023,Adults,London Homecare Ltd,Home Care - Private Contractors Payment,1223.08,0.00,COMMERCIAL SUPPLIER 
 22-05-2023,Adults,Outreach Support Services Ltd,Home Care - Private Contractors Payment,1223.08,0.00,COMMERCIAL SUPPLIER 
 22-05-2023,Adults,Outreach Support Services Ltd,Home Care - Private Contractors Payment,1223.08,0.00,COMMERCIAL SUPPLIER 
 22-05-2023,Adults,Outreach Support Services Ltd,Home Care - Private Contractors Payment,1223.08,0.00,COMMERCIAL SUPPLIER 
 22-05-2023,Adults,Outreach Support Services Ltd,Home Care - Private Contractors Payment,1223.08,0.00,COMMERCIAL SUPPLIER 
 22-05-2023,Adults,Outreach Support Services Ltd,Home Care - Private Contractors Payment,1223.08,0.00,COMMERCIAL SUPPLIER 
 22-05-2023,Adults,Outreach Support Services Ltd,Home Care - Private Contractors Payment,1223.08,0.00,COMMERCIAL SUPPLIER 
 22-05-2023,Adults,Premier Carewaiting Ltd,Home Care - Private Contractors Payment,1223.08,0.00,COMMERCIAL SUPPLIER 
 24-05-2023,Adults,IJB Healthcare Ltd,Home Care - Private Contractors Payment,1223.08,0.00,COMMERCIAL SUPPLIER 
 25-05-2023,Adults,Inna Care Ltd,Home Care - Private Contractors Payment,1223.08,0.00,COMMERCIAL SUPPLIER 
 25-05-2023,Adults,Inna Care Ltd,Home Care - Private Contractors Payment,1223.08,0.00,COMMERCIAL SUPPLIER 
 25-05-2023,Adults,Inna Care Ltd,Home Care - Private Contractors Payment,1223.08,0.00,COMMERCIAL SUPPLIER 
 25-05-2023,Adults,Inna Care Ltd,Home Care - Private Contractors Payment,1223.08,0.00,COMMERCIAL SUPPLIER 
 25-05-2023,Adults,Personal Information - Redacted,Home Care - Private Contractors Payment,1223.08,0.00,INDIVIDUALS 
 25-05-2023,Adults,Personal Information - Redacted,Home Care - Private Contractors Payment,1223.08,0.00,INDIVIDUALS 
 25-05-2023,Adults,Personal Information - Redacted,Home Care - Private Contractors Payment,1223.08,0.00,INDIVIDUALS 
 25-05-2023,Adults,Personal Information - Redacted,Home Care - Private Contractors Payment,1223.08,0.00,INDIVIDUALS 
 25-05-2023,Adults,Personal Information - Redacted,Home Care - Private Contractors Payment,1223.08,0.00,INDIVIDUALS 
 26-05-2023,Adults,Prestige Care & Support Ltd,Home Care - Private Contractors Payment,1223.08,0.00,COMMERCIAL SUPPLIER 
 26-05-2023,Adults,Prior Care Ltd_a,Home Care - Private Contractors Payment,1223.08,0.00,COMMERCIAL SUPPLIER 
 26-05-2023,Adults,Prior Care Ltd_a,Home Care - Private Contractors Payment,1223.08,0.00,COMMERCIAL SUPPLIER 
 30-05-2023,Adults,Recruitcare Professionals Ltd ,Home Care - Private Contractors Payment,1223.08,0.00,COMMERCIAL SUPPLIER 
 31-05-2023,Adults,Home Support Services (Havering & Essex) Ltd,Home Care - Private Contractors Payment,1223.08,0.00,COMMERCIAL SUPPLIER 
 30-05-2023,Adults,Homestead Care Service,Home Care - Private Contractors Payment,1223.45,0.00,COMMERCIAL SUPPLIER 
 31-05-2023,Adults,Home Support Services (Havering & Essex) Ltd,Home Care - Private Contractors Payment,1223.45,0.00,COMMERCIAL SUPPLIER 
 26-05-2023,Adults,Prior Care Ltd_a,Home Care - Private Contractors Payment,1223.81,0.00,COMMERCIAL SUPPLIER 
 26-05-2023,Adults,Prior Care Ltd_a,Home Care - Private Contractors Payment,1223.81,0.00,COMMERCIAL SUPPLIER 
 02-05-2023,Adults,Morepower Ltd t/a Aqs Homecare,Home Care - Private Contractors Payment,1224.17,0.00,COMMERCIAL SUPPLIER 
 26-05-2023,Adults,Prestige Care & Support Ltd,Home Care - Private Contractors Payment,1224.18,0.00,COMMERCIAL SUPPLIER 
 31-05-2023,Adults,Home Support Services (Havering & Essex) Ltd,Home Care - Private Contractors Payment,1224.18,0.00,COMMERCIAL SUPPLIER 
 31-05-2023,Adults,Home Support Services (Havering & Essex) Ltd,Home Care - Private Contractors Payment,1224.54,0.00,COMMERCIAL SUPPLIER 
 26-05-2023,Adults,Prestige Care & Support Ltd,Home Care - Private Contractors Payment,1224.90,0.00,COMMERCIAL SUPPLIER 
 30-05-2023,Adults,Homestead Care Service,Home Care - Private Contractors Payment,1225.27,0.00,COMMERCIAL SUPPLIER 
 30-05-2023,Adults,Homestead Care Service,Home Care - Private Contractors Payment,1225.63,0.00,COMMERCIAL SUPPLIER 
 03-05-2023,Adults,Matrix SCM Ltd,Agency Staff,1225.69,0.00,COMMERCIAL SUPPLIER 
 03-05-2023,Adults,Lodge Group Care UK Ltd,Home Care - Private Contractors Payment,1226.36,0.00,COMMERCIAL SUPPLIER 
 30-05-2023,Adults,Homestead Care Service,Home Care - Private Contractors Payment,1226.36,0.00,COMMERCIAL SUPPLIER 
 31-05-2023,Adults,Home Support Services (Havering & Essex) Ltd,Home Care - Private Contractors Payment,1226.36,0.00,COMMERCIAL SUPPLIER 
 26-05-2023,Adults,Prior Care Ltd_a,Home Care - Private Contractors Payment,1227.09,0.00,COMMERCIAL SUPPLIER 
 26-05-2023,Adults,Prior Care Ltd_a,Home Care - Private Contractors Payment,1228.53,0.00,COMMERCIAL SUPPLIER 
 30-05-2023,Adults,Homestead Care Service,Home Care - Private Contractors Payment,1228.91,0.00,COMMERCIAL SUPPLIER 
 30-05-2023,Adults,Homestead Care Service,Home Care - Private Contractors Payment,1228.91,0.00,COMMERCIAL SUPPLIER 
 31-05-2023,Adults,Home Support Services (Havering & Essex) Ltd,Home Care - Private Contractors Payment,1228.91,0.00,COMMERCIAL SUPPLIER 
 30-05-2023,Adults,Homestead Care Service,Home Care - Private Contractors Payment,1229.64,0.00,COMMERCIAL SUPPLIER 
 30-05-2023,Adults,Homestead Care Service,Home Care - Private Contractors Payment,1230.00,0.00,COMMERCIAL SUPPLIER 
 30-05-2023,Adults,Homestead Care Service,Home Care - Private Contractors Payment,1230.36,0.00,COMMERCIAL SUPPLIER 
 30-05-2023,Adults,Homestead Care Service,Home Care - Private Contractors Payment,1230.73,0.00,COMMERCIAL SUPPLIER 
 31-05-2023,Adults,Anytime Care 2020_a,Home Care - Private Contractors Payment,1230.73,0.00,COMMERCIAL SUPPLIER 
 30-05-2023,Adults,Homestead Care Service,Home Care - Private Contractors Payment,1231.09,0.00,COMMERCIAL SUPPLIER 
 30-05-2023,Adults,Homestead Care Service,Home Care - Private Contractors Payment,1231.46,0.00,COMMERCIAL SUPPLIER 
 30-05-2023,Adults,Homestead Care Service,Home Care - Private Contractors Payment,1231.46,0.00,COMMERCIAL SUPPLIER 
 03-05-2023,Adults,London Care Plc_a,Home Care - Private Contractors Payment,1233.27,0.00,COMMERCIAL SUPPLIER 
 30-05-2023,Adults,Homestead Care Service,Home Care - Private Contractors Payment,1233.28,0.00,COMMERCIAL SUPPLIER 
 31-05-2023,Adults,Home Support Services (Havering & Essex) Ltd,Home Care - Private Contractors Payment,1234.01,0.00,COMMERCIAL SUPPLIER 
 30-05-2023,Adults,Homestead Care Service,Home Care - Private Contractors Payment,1235.10,0.00,COMMERCIAL SUPPLIER 
 24-05-2023,Adults,Matrix SCM Ltd,Agency Staff,1235.52,0.00,COMMERCIAL SUPPLIER 
 31-05-2023,Adults,Matrix SCM Ltd,Agency Staff,1235.52,0.00,COMMERCIAL SUPPLIER 
 30-05-2023,Adults,Homestead Care Service,Home Care - Private Contractors Payment,1235.82,0.00,COMMERCIAL SUPPLIER 
 31-05-2023,Adults,Home Support Services (Havering & Essex) Ltd,Home Care - Private Contractors Payment,1235.82,0.00,COMMERCIAL SUPPLIER 
 30-05-2023,Adults,Homestead Care Service,Home Care - Private Contractors Payment,1236.19,0.00,COMMERCIAL SUPPLIER 
 30-05-2023,Adults,Homestead Care Service,Home Care - Private Contractors Payment,1236.92,0.00,COMMERCIAL SUPPLIER 
 31-05-2023,Adults,Anytime Care 2020_a,Home Care - Private Contractors Payment,1236.92,0.00,COMMERCIAL SUPPLIER 
 26-05-2023,Adults,Prior Care Ltd_a,Home Care - Private Contractors Payment,1237.28,0.00,COMMERCIAL SUPPLIER 
 30-05-2023,Adults,Homestead Care Service,Home Care - Private Contractors Payment,1238.01,0.00,COMMERCIAL SUPPLIER 
 30-05-2023,Adults,Homestead Care Service,Home Care - Private Contractors Payment,1238.37,0.00,COMMERCIAL SUPPLIER 
 03-05-2023,Adults,Lodge Group Care UK Ltd,Home Care - Private Contractors Payment,1239.82,0.00,COMMERCIAL SUPPLIER 
 03-05-2023,Adults,London Care Plc_a,Home Care - Private Contractors Payment,1240.91,0.00,COMMERCIAL SUPPLIER 
 03-05-2023,Adults,Matrix SCM Ltd,Agency Staff,1241.28,0.00,COMMERCIAL SUPPLIER 
 03-05-2023,Adults,Matrix SCM Ltd,Agency Staff,1241.28,0.00,COMMERCIAL SUPPLIER 
 03-05-2023,Adults,Matrix SCM Ltd,Agency Staff,1241.28,0.00,COMMERCIAL SUPPLIER 
 03-05-2023,Adults,Matrix SCM Ltd,Agency Staff,1241.28,0.00,COMMERCIAL SUPPLIER 
 03-05-2023,Adults,Matrix SCM Ltd,Agency Staff,1241.28,0.00,COMMERCIAL SUPPLIER 
 03-05-2023,Adults,Matrix SCM Ltd,Agency Staff,1241.28,0.00,COMMERCIAL SUPPLIER 
 03-05-2023,Adults,Matrix SCM Ltd,Agency Staff,1241.28,0.00,COMMERCIAL SUPPLIER 
 03-05-2023,Adults,Matrix SCM Ltd,Agency Staff,1241.28,0.00,COMMERCIAL SUPPLIER 
 24-05-2023,Adults,Matrix SCM Ltd,Agency Staff,1241.28,0.00,COMMERCIAL SUPPLIER 
 24-05-2023,Adults,Matrix SCM Ltd,Agency Staff,1241.28,0.00,COMMERCIAL SUPPLIER 
 24-05-2023,Adults,Matrix SCM Ltd,Agency Staff,1241.28,0.00,COMMERCIAL SUPPLIER 
 24-05-2023,Adults,Matrix SCM Ltd,Agency Staff,1241.28,0.00,COMMERCIAL SUPPLIER 
 31-05-2023,Adults,Home Support Services (Havering & Essex) Ltd,Home Care - Private Contractors Payment,1241.28,0.00,COMMERCIAL SUPPLIER 
 31-05-2023,Adults,Matrix SCM Ltd,Agency Staff,1241.28,0.00,COMMERCIAL SUPPLIER 
 31-05-2023,Adults,Matrix SCM Ltd,Agency Staff,1241.28,0.00,COMMERCIAL SUPPLIER 
 31-05-2023,Adults,Matrix SCM Ltd,Agency Staff,1241.28,0.00,COMMERCIAL SUPPLIER 
 31-05-2023,Adults,Matrix SCM Ltd,Agency Staff,1241.28,0.00,COMMERCIAL SUPPLIER 
 31-05-2023,Adults,Anytime Care 2020_a,Home Care - Private Contractors Payment,1242.74,0.00,COMMERCIAL SUPPLIER 
 31-05-2023,Adults,Home Support Services (Havering & Essex) Ltd,Home Care - Private Contractors Payment,1242.74,0.00,COMMERCIAL SUPPLIER 
 24-05-2023,Adults,Matrix SCM Ltd,Agency Staff,1244.51,0.00,COMMERCIAL SUPPLIER 
 31-05-2023,Adults,Matrix SCM Ltd,Agency Staff,1244.51,0.00,COMMERCIAL SUPPLIER 
 03-05-2023,Adults,Matrix SCM Ltd,Agency Staff,1244.52,0.00,COMMERCIAL SUPPLIER 
 30-05-2023,Adults,Homestead Care Service,Home Care - Private Contractors Payment,1244.92,0.00,COMMERCIAL SUPPLIER 
 30-05-2023,Adults,Homestead Care Service,Home Care - Private Contractors Payment,1245.65,0.00,COMMERCIAL SUPPLIER 
 30-05-2023,Adults,Homestead Care Service,Home Care - Private Contractors Payment,1247.11,0.00,COMMERCIAL SUPPLIER 
 30-05-2023,Adults,Homestead Care Service,Home Care - Private Contractors Payment,1247.11,0.00,COMMERCIAL SUPPLIER 
 26-05-2023,Adults,Prior Care Ltd_a,Home Care - Private Contractors Payment,1247.47,0.00,COMMERCIAL SUPPLIER 
 19-05-2023,Adults,BeTo Solutions Ltd,Supported Other Accommodation - Private Contractors Payment,1249.71,0.00,COMMERCIAL SUPPLIER 
 03-05-2023,Adults,Matrix SCM Ltd,Agency Staff,1249.92,0.00,COMMERCIAL SUPPLIER 
 03-05-2023,Adults,Matrix SCM Ltd,Agency Staff,1249.92,0.00,COMMERCIAL SUPPLIER 
 24-05-2023,Adults,Matrix SCM Ltd,Agency Staff,1249.92,0.00,COMMERCIAL SUPPLIER 
 31-05-2023,Adults,Matrix SCM Ltd,Agency Staff,1249.92,0.00,COMMERCIAL SUPPLIER 
 03-05-2023,Adults,Lodge Group Care UK Ltd,Home Care - Private Contractors Payment,1250.38,0.00,COMMERCIAL SUPPLIER 
 03-05-2023,Adults,Lodge Group Care UK Ltd,Home Care - Private Contractors Payment,1253.29,0.00,COMMERCIAL SUPPLIER 
 30-05-2023,Adults,Homestead Care Service,Home Care - Private Contractors Payment,1253.66,0.00,COMMERCIAL SUPPLIER 
 03-05-2023,Adults,Lodge Group Care UK Ltd,Home Care - Private Contractors Payment,1254.38,0.00,COMMERCIAL SUPPLIER 
 31-05-2023,Adults,Home Support Services (Havering & Essex) Ltd,Home Care - Private Contractors Payment,1254.38,0.00,COMMERCIAL SUPPLIER 
 19-05-2023,Adults,BeTo Solutions Ltd,Supported Other Accommodation - Private Contractors Payment,1255.50,0.00,COMMERCIAL SUPPLIER 
 19-05-2023,Adults,BeTo Solutions Ltd,Supported Other Accommodation - Private Contractors Payment,1255.50,0.00,COMMERCIAL SUPPLIER 
 04-05-2023,Adults,Crystalize Care Services Ltd,Home Care - Private Contractors Payment,1255.83,0.00,COMMERCIAL SUPPLIER 
 03-05-2023,Adults,Hospiva Care & Associates Agency Ltd_a,Home Care - Private Contractors Payment,1255.84,0.00,COMMERCIAL SUPPLIER 
 03-05-2023,Adults,Hospiva Care & Associates Agency Ltd_a,Home Care - Private Contractors Payment,1255.84,0.00,COMMERCIAL SUPPLIER 
 16-05-2023,Adults,Home Support Services (Havering & Essex) Ltd,Home Care - Private Contractors Payment,1256.21,0.00,COMMERCIAL SUPPLIER 
 26-05-2023,Adults,Prestige Care & Support Ltd,Home Care - Private Contractors Payment,1256.57,0.00,COMMERCIAL SUPPLIER 
 31-05-2023,Adults,Home Support Services (Havering & Essex) Ltd,Home Care - Private Contractors Payment,1259.12,0.00,COMMERCIAL SUPPLIER 
 31-05-2023,Adults,Anytime Care 2020_a,Home Care - Private Contractors Payment,1259.48,0.00,COMMERCIAL SUPPLIER 
 04-05-2023,Adults,Alpine Resources UK Ltd,Supported Other Accommodation - Private Contractors Payment,1260.00,0.00,COMMERCIAL SUPPLIER 
 04-05-2023,Adults,Alpine Resources UK Ltd,Supported Other Accommodation - Private Contractors Payment,1260.00,0.00,COMMERCIAL SUPPLIER 
 04-05-2023,Adults,Alpine Resources UK Ltd,Supported Other Accommodation - Private Contractors Payment,1260.00,0.00,COMMERCIAL SUPPLIER 
 04-05-2023,Adults,Alpine Resources UK Ltd,Supported Other Accommodation - Private Contractors Payment,1260.00,0.00,COMMERCIAL SUPPLIER 
 04-05-2023,Adults,Alpine Resources UK Ltd,Supported Other Accommodation - Private Contractors Payment,1260.00,0.00,COMMERCIAL SUPPLIER 
 04-05-2023,Adults,Alpine Resources UK Ltd,Supported Other Accommodation - Private Contractors Payment,1260.00,0.00,COMMERCIAL SUPPLIER 
 04-05-2023,Adults,Alpine Resources UK Ltd,Supported Other Accommodation - Private Contractors Payment,1260.00,0.00,COMMERCIAL SUPPLIER 
 04-05-2023,Adults,Alpine Resources UK Ltd,Supported Other Accommodation - Private Contractors Payment,1260.00,0.00,COMMERCIAL SUPPLIER 
 04-05-2023,Adults,Alpine Resources UK Ltd,Supported Other Accommodation - Private Contractors Payment,1260.00,0.00,COMMERCIAL SUPPLIER 
 04-05-2023,Adults,Alpine Resources UK Ltd,Supported Other Accommodation - Private Contractors Payment,1260.00,0.00,COMMERCIAL SUPPLIER 
 04-05-2023,Adults,Alpine Resources UK Ltd,Supported Other Accommodation - Private Contractors Payment,1260.00,0.00,COMMERCIAL SUPPLIER 
 30-05-2023,Adults,Homestead Care Service,Home Care - Private Contractors Payment,1262.40,0.00,COMMERCIAL SUPPLIER 
 31-05-2023,Adults,Home Support Services (Havering & Essex) Ltd,Home Care - Private Contractors Payment,1262.40,0.00,COMMERCIAL SUPPLIER 
 03-05-2023,Adults,Hospiva Care & Associates Agency Ltd_a,Home Care - Private Contractors Payment,1264.94,0.00,COMMERCIAL SUPPLIER 
 16-05-2023,Adults,Care-Away Ltd T/A Care Support,Home Care - Private Contractors Payment,1265.46,0.00,COMMERCIAL SUPPLIER 
 18-05-2023,Adults,Care-Away Ltd T/A Care Support,Home Care - Private Contractors Payment,1265.46,0.00,COMMERCIAL SUPPLIER 
 16-05-2023,Adults,Home Support Services (Havering & Essex) Ltd,Home Care - Private Contractors Payment,1266.77,0.00,COMMERCIAL SUPPLIER 
 16-05-2023,Adults,Home Support Services (Havering & Essex) Ltd,Home Care - Private Contractors Payment,1267.13,0.00,COMMERCIAL SUPPLIER 
 30-05-2023,Adults,Homestead Care Service,Home Care - Private Contractors Payment,1268.95,0.00,COMMERCIAL SUPPLIER 
 04-05-2023,Adults,Ashgate House Ltd_a,Residential Placements - Private Contractors Payment,1269.24,0.00,COMMERCIAL SUPPLIER 
 04-05-2023,Adults,Ashgate House Ltd_a,Residential Placements - Private Contractors Payment,1269.24,0.00,COMMERCIAL SUPPLIER 
 04-05-2023,Adults,Footsteps Support Ltd_a,Supported Other Accommodation - Private Contractors Payment,1270.08,0.00,COMMERCIAL SUPPLIER 
 04-05-2023,Adults,Footsteps Support Ltd_a,Supported Other Accommodation - Private Contractors Payment,1270.08,0.00,COMMERCIAL SUPPLIER 
 03-05-2023,Adults,Lodge Group Care UK Ltd,Home Care - Private Contractors Payment,1273.31,0.00,COMMERCIAL SUPPLIER 
 31-05-2023,Adults,Matrix SCM Ltd,Agency Staff,1273.32,0.00,COMMERCIAL SUPPLIER 
 24-05-2023,Adults,Matrix SCM Ltd,Agency Staff,1273.33,0.00,COMMERCIAL SUPPLIER 
 03-05-2023,Adults,Matrix SCM Ltd,Agency Staff,1274.05,0.00,COMMERCIAL SUPPLIER 
 17-05-2023,Adults,Matrix SCM Ltd,Agency Staff,1274.05,0.00,COMMERCIAL SUPPLIER 
 30-05-2023,Adults,Homestead Care Service,Home Care - Private Contractors Payment,1275.50,0.00,COMMERCIAL SUPPLIER 
 04-05-2023,Adults,Accomplish Group Support Ltd,Residential Placements - Private Contractors Payment,1276.00,0.00,COMMERCIAL SUPPLIER 
 26-05-2023,Adults,Prestige Care & Support Ltd,Home Care - Private Contractors Payment,1276.96,0.00,COMMERCIAL SUPPLIER 
 24-05-2023,Adults,Matrix SCM Ltd,Agency Staff,1277.28,0.00,COMMERCIAL SUPPLIER 
 31-05-2023,Adults,Matrix SCM Ltd,Agency Staff,1277.28,0.00,COMMERCIAL SUPPLIER 
 30-05-2023,Adults,Homestead Care Service,Home Care - Private Contractors Payment,1278.78,0.00,COMMERCIAL SUPPLIER 
 03-05-2023,Adults,Matrix SCM Ltd,Agency Staff,1280.09,0.00,COMMERCIAL SUPPLIER 
 03-05-2023,Adults,London Care Plc_a,Home Care - Private Contractors Payment,1281.32,0.00,COMMERCIAL SUPPLIER 
 03-05-2023,Adults,Matrix SCM Ltd,Agency Staff,1281.60,0.00,COMMERCIAL SUPPLIER 
 17-05-2023,Adults,Matrix SCM Ltd,Agency Staff,1281.60,0.00,COMMERCIAL SUPPLIER 
 24-05-2023,Adults,Matrix SCM Ltd,Agency Staff,1281.60,0.00,COMMERCIAL SUPPLIER 
 31-05-2023,Adults,Matrix SCM Ltd,Agency Staff,1281.60,0.00,COMMERCIAL SUPPLIER 
 30-05-2023,Adults,Homestead Care Service,Home Care - Private Contractors Payment,1281.69,0.00,COMMERCIAL SUPPLIER 
 30-05-2023,Adults,Homestead Care Service,Home Care - Private Contractors Payment,1281.69,0.00,COMMERCIAL SUPPLIER 
 03-05-2023,Adults,Matrix SCM Ltd,Agency Staff,1282.32,0.00,COMMERCIAL SUPPLIER 
 17-05-2023,Adults,Matrix SCM Ltd,Agency Staff,1282.34,0.00,COMMERCIAL SUPPLIER 
 17-05-2023,Adults,Matrix SCM Ltd,Agency Staff,1282.34,0.00,COMMERCIAL SUPPLIER 
 31-05-2023,Adults,Matrix SCM Ltd,Agency Staff,1282.34,0.00,COMMERCIAL SUPPLIER 
 31-05-2023,Adults,Matrix SCM Ltd,Agency Staff,1282.34,0.00,COMMERCIAL SUPPLIER 
 30-05-2023,Adults,Homestead Care Service,Home Care - Private Contractors Payment,1283.51,0.00,COMMERCIAL SUPPLIER 
 03-05-2023,Adults,Matrix SCM Ltd,Agency Staff,1283.78,0.00,COMMERCIAL SUPPLIER 
 31-05-2023,Adults,Home Support Services (Havering & Essex) Ltd,Home Care - Private Contractors Payment,1283.87,0.00,COMMERCIAL SUPPLIER 
 03-05-2023,Adults,Matrix SCM Ltd,Agency Staff,1286.60,0.00,COMMERCIAL SUPPLIER 
 03-05-2023,Adults,Lodge Group Care UK Ltd,Home Care - Private Contractors Payment,1286.78,0.00,COMMERCIAL SUPPLIER 
 30-05-2023,Adults,Homestead Care Service,Home Care - Private Contractors Payment,1286.78,0.00,COMMERCIAL SUPPLIER 
 30-05-2023,Adults,Homestead Care Service,Home Care - Private Contractors Payment,1288.24,0.00,COMMERCIAL SUPPLIER 
 03-05-2023,Adults,Matrix SCM Ltd,Agency Staff,1288.45,0.00,COMMERCIAL SUPPLIER 
 04-05-2023,Adults,Optimal Care Services Ltd,Supported Other Accommodation - Private Contractors Payment,1288.76,0.00,COMMERCIAL SUPPLIER 
 04-05-2023,Adults,Optimal Care Services Ltd,Supported Other Accommodation - Private Contractors Payment,1288.76,0.00,COMMERCIAL SUPPLIER 
 16-05-2023,Adults,Home Support Services (Havering & Essex) Ltd,Home Care - Private Contractors Payment,1295.88,0.00,COMMERCIAL SUPPLIER 
 05-05-2023,Adults,Osborne Partnership,Daycare - Private Contractors Payment,1297.86,0.00,COMMERCIAL SUPPLIER 
 04-05-2023,Adults,Florijn Care Ltd,Residential Placements - Private Contractors Payment,1298.57,0.00,COMMERCIAL SUPPLIER 
 26-05-2023,Adults,Prior Care Ltd_a,Home Care - Private Contractors Payment,1300.98,0.00,COMMERCIAL SUPPLIER 
 04-05-2023,Adults,2 Peel Way - Outlook Care,Supported Other Accommodation - Private Contractors Payment,1301.63,0.00,NON COMMERCIAL SUPPLIER 
 16-05-2023,Adults,Home Support Services (Havering & Essex) Ltd,Home Care - Private Contractors Payment,1303.17,0.00,COMMERCIAL SUPPLIER 
 31-05-2023,Adults,Home Support Services (Havering & Essex) Ltd,Home Care - Private Contractors Payment,1303.53,0.00,COMMERCIAL SUPPLIER 
 30-05-2023,Adults,Homestead Care Service,Home Care - Private Contractors Payment,1304.98,0.00,COMMERCIAL SUPPLIER 
 04-05-2023,Adults,Alpine Resources UK Ltd,Supported Other Accommodation - Private Contractors Payment,1305.00,0.00,COMMERCIAL SUPPLIER 
 04-05-2023,Adults,Independent Community Support Ltd t/a Wingletye Lodge ,Supported Other Accommodation - Private Contractors Payment,1306.36,0.00,COMMERCIAL SUPPLIER 
 04-05-2023,Adults,Independent Community Support Ltd t/a Wingletye Lodge ,Supported Other Accommodation - Private Contractors Payment,1306.36,0.00,COMMERCIAL SUPPLIER 
 26-05-2023,Adults,Carers Trust East Midlands,Home Care - Private Contractors Payment,1310.41,0.00,COMMERCIAL SUPPLIER 
 22-05-2023,Adults,Premier Carewaiting Ltd,Home Care - Private Contractors Payment,1310.44,0.00,COMMERCIAL SUPPLIER 
 22-05-2023,Adults,Passion Tree Care Services Ltd,Home Care - Private Contractors Payment,1310.45,0.00,COMMERCIAL SUPPLIER 
 31-05-2023,Adults,Home Support Services (Havering & Essex) Ltd,Home Care - Private Contractors Payment,1310.81,0.00,COMMERCIAL SUPPLIER 
 03-05-2023,Adults,London Care Plc_a,Home Care - Private Contractors Payment,1311.16,0.00,COMMERCIAL SUPPLIER 
 04-05-2023,Adults,Ashgate House Ltd_a,Residential Placements - Private Contractors Payment,1314.57,0.00,COMMERCIAL SUPPLIER 
 03-05-2023,Adults,London Care Plc_a,Home Care - Private Contractors Payment,1319.90,0.00,COMMERCIAL SUPPLIER 
 04-05-2023,Adults,Voyage Ltd - Drakes Place,Residential Placements - Private Contractors Payment,1321.68,0.00,COMMERCIAL SUPPLIER 
 24-05-2023,Adults,Matrix SCM Ltd,Agency Staff,1323.36,0.00,COMMERCIAL SUPPLIER 
 31-05-2023,Adults,Home Support Services (Havering & Essex) Ltd,Home Care - Private Contractors Payment,1323.91,0.00,COMMERCIAL SUPPLIER 
 30-05-2023,Adults,Homestead Care Service,Home Care - Private Contractors Payment,1326.10,0.00,COMMERCIAL SUPPLIER 
 30-05-2023,Adults,Homestead Care Service,Home Care - Private Contractors Payment,1327.55,0.00,COMMERCIAL SUPPLIER 
 30-05-2023,Adults,Homestead Care Service,Home Care - Private Contractors Payment,1327.55,0.00,COMMERCIAL SUPPLIER 
 05-05-2023,Adults,Gims Care Solution Ltd_a,Home Care - Private Contractors Payment,1328.60,0.00,NON COMMERCIAL SUPPLIER 
 16-05-2023,Adults,Home Support Services (Havering & Essex) Ltd,Home Care - Private Contractors Payment,1330.47,0.00,COMMERCIAL SUPPLIER 
 26-05-2023,Adults,Prestige Care & Support Ltd,Home Care - Private Contractors Payment,1332.65,0.00,COMMERCIAL SUPPLIER 
 04-05-2023,Adults,The Avenues Trust Support Services Glebe House,Nursing Homes - Private Contractors Payment,1339.82,0.00,COMMERCIAL SUPPLIER 
 02-05-2023,Adults,Morepower Ltd t/a Aqs Homecare,Home Care - Private Contractors Payment,1345.38,0.00,COMMERCIAL SUPPLIER 
 26-05-2023,Adults,Prestige Care & Support Ltd,Home Care - Private Contractors Payment,1347.21,0.00,COMMERCIAL SUPPLIER 
 30-05-2023,Adults,Homestead Care Service,Home Care - Private Contractors Payment,1348.66,0.00,COMMERCIAL SUPPLIER 
 30-05-2023,Adults,Homestead Care Service,Home Care - Private Contractors Payment,1349.03,0.00,COMMERCIAL SUPPLIER 
 17-05-2023,Adults,Matrix SCM Ltd,Agency Staff,1349.28,0.00,COMMERCIAL SUPPLIER 
 04-05-2023,Adults,Crystalize Care Services Ltd,Home Care - Private Contractors Payment,1354.11,0.00,COMMERCIAL SUPPLIER 
 31-05-2023,Adults,Anytime Care 2020_a,Home Care - Private Contractors Payment,1354.13,0.00,COMMERCIAL SUPPLIER 
 31-05-2023,Adults,Matrix SCM Ltd,Agency Staff,1355.39,0.00,COMMERCIAL SUPPLIER 
 30-05-2023,Adults,Homestead Care Service,Home Care - Private Contractors Payment,1362.86,0.00,COMMERCIAL SUPPLIER 
 30-05-2023,Adults,Homestead Care Service,Home Care - Private Contractors Payment,1370.14,0.00,COMMERCIAL SUPPLIER 
 11-05-2023,Adults,Care-Away Ltd T/A Care Support,Home Care - Private Contractors Payment,1370.92,0.00,COMMERCIAL SUPPLIER 
 04-05-2023,Adults,One Tree Estates Ltd t/a Ashbrook Nursing Home,Nursing Homes - Private Contractors Payment,1371.43,0.00,COMMERCIAL SUPPLIER 
 09-05-2023,Adults,Cera Care Operations Ltd,Home Care - Private Contractors Payment,1371.96,0.00,COMMERCIAL SUPPLIER 
 25-05-2023,Adults,Inna Care Ltd,Home Care - Private Contractors Payment,1375.95,0.00,COMMERCIAL SUPPLIER 
 25-05-2023,Adults,Inna Care Ltd,Home Care - Private Contractors Payment,1375.95,0.00,COMMERCIAL SUPPLIER 
 03-05-2023,Adults,Lodge Group Care UK Ltd,Home Care - Private Contractors Payment,1375.96,0.00,COMMERCIAL SUPPLIER 
 22-05-2023,Adults,Passion Tree Care Services Ltd,Home Care - Private Contractors Payment,1375.96,0.00,COMMERCIAL SUPPLIER 
 22-05-2023,Adults,Passion Tree Care Services Ltd,Home Care - Private Contractors Payment,1375.96,0.00,COMMERCIAL SUPPLIER 
 22-05-2023,Adults,Passion Tree Care Services Ltd,Home Care - Private Contractors Payment,1375.96,0.00,COMMERCIAL SUPPLIER 
 22-05-2023,Adults,London Homecare Ltd,Home Care - Private Contractors Payment,1375.96,0.00,COMMERCIAL SUPPLIER 
 22-05-2023,Adults,London Homecare Ltd,Home Care - Private Contractors Payment,1375.96,0.00,COMMERCIAL SUPPLIER 
 22-05-2023,Adults,London Homecare Ltd,Home Care - Private Contractors Payment,1375.96,0.00,COMMERCIAL SUPPLIER 
 22-05-2023,Adults,London Homecare Ltd,Home Care - Private Contractors Payment,1375.96,0.00,COMMERCIAL SUPPLIER 
 22-05-2023,Adults,London Homecare Ltd,Home Care - Private Contractors Payment,1375.96,0.00,COMMERCIAL SUPPLIER 
 22-05-2023,Adults,Outreach Support Services Ltd,Home Care - Private Contractors Payment,1375.96,0.00,COMMERCIAL SUPPLIER 
 22-05-2023,Adults,Outreach Support Services Ltd,Home Care - Private Contractors Payment,1375.96,0.00,COMMERCIAL SUPPLIER 
 22-05-2023,Adults,Outreach Support Services Ltd,Home Care - Private Contractors Payment,1375.96,0.00,COMMERCIAL SUPPLIER 
 25-05-2023,Adults,Inna Care Ltd,Home Care - Private Contractors Payment,1375.96,0.00,COMMERCIAL SUPPLIER 
 25-05-2023,Adults,Inna Care Ltd,Home Care - Private Contractors Payment,1375.96,0.00,COMMERCIAL SUPPLIER 
 25-05-2023,Adults,Personal Information - Redacted,Home Care - Private Contractors Payment,1375.96,0.00,INDIVIDUALS 
 04-05-2023,Adults,Inna Care Ltd,Home Care - Private Contractors Payment,1377.60,0.00,COMMERCIAL SUPPLIER 
 17-05-2023,Adults,Matrix SCM Ltd,Agency Staff,1384.58,0.00,COMMERCIAL SUPPLIER 
 24-05-2023,Adults,Matrix SCM Ltd,Agency Staff,1384.58,0.00,COMMERCIAL SUPPLIER 
 24-05-2023,Adults,Matrix SCM Ltd,Agency Staff,1385.28,0.00,COMMERCIAL SUPPLIER 
 31-05-2023,Adults,Matrix SCM Ltd,Agency Staff,1385.28,0.00,COMMERCIAL SUPPLIER 
 30-05-2023,Adults,Homestead Care Service,Home Care - Private Contractors Payment,1390.16,0.00,COMMERCIAL SUPPLIER 
 24-05-2023,Adults,Matrix SCM Ltd,Agency Staff,1395.71,0.00,COMMERCIAL SUPPLIER 
 31-05-2023,Adults,Matrix SCM Ltd,Agency Staff,1395.73,0.00,COMMERCIAL SUPPLIER 
 25-05-2023,Adults,Personal Information - Redacted,Home Care - Private Contractors Payment,1397.81,0.00,INDIVIDUALS 
 04-05-2023,Adults,Independant Community Support Ltd T/A Heaton Lodge,Supported Other Accommodation - Private Contractors Payment,1399.68,0.00,COMMERCIAL SUPPLIER 
 04-05-2023,Adults,Independant Community Support Ltd T/A Heaton Lodge,Supported Other Accommodation - Private Contractors Payment,1399.68,0.00,COMMERCIAL SUPPLIER 
 31-05-2023,Adults,Home Support Services (Havering & Essex) Ltd,Home Care - Private Contractors Payment,1404.36,0.00,COMMERCIAL SUPPLIER 
 26-05-2023,Adults,Prior Care Ltd_a,Home Care - Private Contractors Payment,1405.45,0.00,COMMERCIAL SUPPLIER 
 04-05-2023,Adults,Ashgate House Ltd_a,Residential Placements - Private Contractors Payment,1408.12,0.00,COMMERCIAL SUPPLIER 
 04-05-2023,Adults,Ashgate House Ltd_a,Residential Placements - Private Contractors Payment,1408.12,0.00,COMMERCIAL SUPPLIER 
 31-05-2023,Adults,Home Support Services (Havering & Essex) Ltd,Home Care - Private Contractors Payment,1411.27,0.00,COMMERCIAL SUPPLIER 
 18-05-2023,Adults,Care-Away Ltd T/A Care Support,Home Care - Private Contractors Payment,1416.11,0.00,COMMERCIAL SUPPLIER 
 04-05-2023,Adults,Crystalize Care Services Ltd,Home Care - Private Contractors Payment,1416.96,0.00,COMMERCIAL SUPPLIER 
 22-05-2023,Adults,London Homecare Ltd,Home Care - Private Contractors Payment,1419.63,0.00,COMMERCIAL SUPPLIER 
 04-05-2023,Adults,L & Q Living (SWIFT Payments),Supported Other Accommodation - Private Contractors Payment,1424.20,0.00,COMMERCIAL SUPPLIER 
 04-05-2023,Adults,L & Q Living (SWIFT Payments),Supported Other Accommodation - Private Contractors Payment,1424.20,0.00,COMMERCIAL SUPPLIER 
 03-05-2023,Adults,Hospiva Care & Associates Agency Ltd_a,Home Care - Private Contractors Payment,1425.46,0.00,COMMERCIAL SUPPLIER 
 03-05-2023,Adults,Matrix SCM Ltd,Agency Staff,1436.42,0.00,COMMERCIAL SUPPLIER 
 31-05-2023,Adults,Matrix SCM Ltd,Agency Staff,1436.42,0.00,COMMERCIAL SUPPLIER 
 03-05-2023,Adults,Lodge Group Care UK Ltd,Home Care - Private Contractors Payment,1438.20,0.00,COMMERCIAL SUPPLIER 
 25-05-2023,Adults,Personal Information - Redacted,Home Care - Private Contractors Payment,1441.47,0.00,INDIVIDUALS 
 04-05-2023,Adults,Inna Care Ltd,Home Care - Private Contractors Payment,1441.48,0.00,COMMERCIAL SUPPLIER 
 04-05-2023,Adults,Masumin Ltd t/s Abbeleigh House,Residential Placements - Private Contractors Payment,1446.92,0.00,COMMERCIAL SUPPLIER 
 04-05-2023,Adults,Masumin Ltd t/s Abbeleigh House,Residential Placements - Private Contractors Payment,1448.11,0.00,COMMERCIAL SUPPLIER 
 04-05-2023,Adults,Shalom Community Support Services,Supported Other Accommodation - Private Contractors Payment,1451.52,0.00,COMMERCIAL SUPPLIER 
 04-05-2023,Adults,Shalom Community Support Services,Supported Other Accommodation - Private Contractors Payment,1451.52,0.00,COMMERCIAL SUPPLIER 
 26-05-2023,Adults,Prestige Care & Support Ltd,Home Care - Private Contractors Payment,1452.41,0.00,COMMERCIAL SUPPLIER 
 09-05-2023,Adults,Bluebird Care Havering,Home Care - Private Contractors Payment,1453.20,0.00,COMMERCIAL SUPPLIER 
 22-05-2023,Adults,Bluebird Care Havering,Home Care - Private Contractors Payment,1453.20,0.00,COMMERCIAL SUPPLIER 
 31-05-2023,Adults,Home Support Services (Havering & Essex) Ltd,Home Care - Private Contractors Payment,1461.14,0.00,COMMERCIAL SUPPLIER 
 22-05-2023,Adults,London Homecare Ltd,Home Care - Private Contractors Payment,1463.32,0.00,COMMERCIAL SUPPLIER 
 04-05-2023,Adults,Black Swan International Ltd - Drummonds,Residential Placements - Private Contractors Payment,1470.00,0.00,COMMERCIAL SUPPLIER 
 31-05-2023,Adults,Home Support Services (Havering & Essex) Ltd,Home Care - Private Contractors Payment,1478.61,0.00,COMMERCIAL SUPPLIER 
 04-05-2023,Adults,Bettertogether Limited,Supported Other Accommodation - Private Contractors Payment,1491.43,0.00,NON COMMERCIAL SUPPLIER 
 04-05-2023,Adults,Alpine Resources UK Ltd,Supported Other Accommodation - Private Contractors Payment,1500.00,0.00,COMMERCIAL SUPPLIER 
 04-05-2023,Adults,Alpine Resources UK Ltd,Supported Other Accommodation - Private Contractors Payment,1500.00,0.00,COMMERCIAL SUPPLIER 
 04-05-2023,Adults,Alpine Resources UK Ltd,Supported Other Accommodation - Private Contractors Payment,1500.00,0.00,COMMERCIAL SUPPLIER 
 04-05-2023,Adults,Alpine Resources UK Ltd,Supported Other Accommodation - Private Contractors Payment,1500.00,0.00,COMMERCIAL SUPPLIER 
 04-05-2023,Adults,Alpine Resources UK Ltd,Supported Other Accommodation - Private Contractors Payment,1500.00,0.00,COMMERCIAL SUPPLIER 
 04-05-2023,Adults,Alpine Resources UK Ltd,Supported Other Accommodation - Private Contractors Payment,1500.00,0.00,COMMERCIAL SUPPLIER 
 04-05-2023,Adults,Alpine Resources UK Ltd,Supported Other Accommodation - Private Contractors Payment,1500.00,0.00,COMMERCIAL SUPPLIER 
 04-05-2023,Adults,Alpine Resources UK Ltd,Supported Other Accommodation - Private Contractors Payment,1500.00,0.00,COMMERCIAL SUPPLIER 
 04-05-2023,Adults,Alpine Resources UK Ltd,Supported Other Accommodation - Private Contractors Payment,1500.00,0.00,COMMERCIAL SUPPLIER 
 04-05-2023,Adults,Alpine Resources UK Ltd,Supported Other Accommodation - Private Contractors Payment,1500.00,0.00,COMMERCIAL SUPPLIER 
 04-05-2023,Adults,Alpine Resources UK Ltd,Supported Other Accommodation - Private Contractors Payment,1500.00,0.00,COMMERCIAL SUPPLIER 
 04-05-2023,Adults,Alpine Resources UK Ltd,Supported Other Accommodation - Private Contractors Payment,1500.00,0.00,COMMERCIAL SUPPLIER 
 04-05-2023,Adults,Alpine Resources UK Ltd,Supported Other Accommodation - Private Contractors Payment,1500.00,0.00,COMMERCIAL SUPPLIER 
 04-05-2023,Adults,Alpine Resources UK Ltd,Supported Other Accommodation - Private Contractors Payment,1500.00,0.00,COMMERCIAL SUPPLIER 
 03-05-2023,Adults,Hospiva Care & Associates Agency Ltd_a,Home Care - Private Contractors Payment,1501.95,0.00,COMMERCIAL SUPPLIER 
 16-05-2023,Adults,Home Support Services (Havering & Essex) Ltd,Home Care - Private Contractors Payment,1502.64,0.00,COMMERCIAL SUPPLIER 
 12-05-2023,Adults,Home Sweet Home Care Ltd,Home Care - Private Contractors Payment,1503.36,0.00,COMMERCIAL SUPPLIER 
 30-05-2023,Adults,Homestead Care Service,Home Care - Private Contractors Payment,1504.10,0.00,COMMERCIAL SUPPLIER 
 04-05-2023,Adults,Inna Care Ltd,Home Care - Private Contractors Payment,1507.00,0.00,COMMERCIAL SUPPLIER 
 16-05-2023,Adults,Home Support Services (Havering & Essex) Ltd,Home Care - Private Contractors Payment,1507.02,0.00,COMMERCIAL SUPPLIER 
 16-05-2023,Adults,Home Support Services (Havering & Essex) Ltd,Home Care - Private Contractors Payment,1507.02,0.00,COMMERCIAL SUPPLIER 
 02-05-2023,Adults,Morepower Ltd t/a Aqs Homecare,Home Care - Private Contractors Payment,1507.34,0.00,COMMERCIAL SUPPLIER 
 16-05-2023,Adults,Home Support Services (Havering & Essex) Ltd,Home Care - Private Contractors Payment,1509.20,0.00,COMMERCIAL SUPPLIER 
 16-05-2023,Adults,Home Support Services (Havering & Essex) Ltd,Home Care - Private Contractors Payment,1509.20,0.00,COMMERCIAL SUPPLIER 
 04-05-2023,Adults,Care Square Ltd.,Supported Other Accommodation - Private Contractors Payment,1522.71,0.00,COMMERCIAL SUPPLIER 
 22-05-2023,Adults,London Homecare Ltd,Home Care - Private Contractors Payment,1528.84,0.00,COMMERCIAL SUPPLIER 
 25-05-2023,Adults,Personal Information - Redacted,Home Care - Private Contractors Payment,1528.84,0.00,INDIVIDUALS 
 31-05-2023,Adults,Home Support Services (Havering & Essex) Ltd,Home Care - Private Contractors Payment,1528.86,0.00,COMMERCIAL SUPPLIER 
 31-05-2023,Adults,Home Support Services (Havering & Essex) Ltd,Home Care - Private Contractors Payment,1530.31,0.00,COMMERCIAL SUPPLIER 
 31-05-2023,Adults,Home Support Services (Havering & Essex) Ltd,Home Care - Private Contractors Payment,1536.50,0.00,COMMERCIAL SUPPLIER 
 04-05-2023,Adults,GCH - Hillside Nursing Home,Nursing Homes - Private Contractors Payment,1537.34,0.00,COMMERCIAL SUPPLIER 
 04-05-2023,Adults,One Tree Estates Ltd t/a Ashbrook Nursing Home,Respite Care - Private Contractors Payment,1542.86,0.00,COMMERCIAL SUPPLIER 
 04-05-2023,Adults,Masumin Ltd t/s Abbeleigh House,Respite Care - Private Contractors Payment,1542.90,0.00,COMMERCIAL SUPPLIER 
 04-05-2023,Adults,Lodge Lane Care Home Limited,Respite Care - Private Contractors Payment,1542.90,0.00,COMMERCIAL SUPPLIER 
 04-05-2023,Adults,Genesis Residential Homes Ltd - Dothan House,Residential Placements - Private Contractors Payment,1542.90,0.00,COMMERCIAL SUPPLIER 
 30-05-2023,Adults,Homestead Care Service,Home Care - Private Contractors Payment,1543.77,0.00,COMMERCIAL SUPPLIER 
 25-05-2023,Adults,Personal Information - Redacted,Home Care - Private Contractors Payment,1550.69,0.00,INDIVIDUALS 
 02-05-2023,Adults,London Borough of Barking & Dagenham_a,Daycare - Private Contractors Payment,1552.00,0.00,LOCAL AUTHORITY SERVICES 
 02-05-2023,Adults,London Borough of Barking & Dagenham_a,Daycare - Private Contractors Payment,1552.00,0.00,LOCAL AUTHORITY SERVICES 
 30-05-2023,Adults,London Borough of Barking & Dagenham_a,Daycare - Private Contractors Payment,1552.00,0.00,LOCAL AUTHORITY SERVICES 
 30-05-2023,Adults,London Borough of Barking & Dagenham_a,Daycare - Private Contractors Payment,1552.00,0.00,LOCAL AUTHORITY SERVICES 
 31-05-2023,Adults,Home Support Services (Havering & Essex) Ltd,Home Care - Private Contractors Payment,1552.14,0.00,COMMERCIAL SUPPLIER 
 04-05-2023,Adults,Alpine Resources UK Ltd,Supported Other Accommodation - Private Contractors Payment,1553.57,0.00,COMMERCIAL SUPPLIER 
 04-05-2023,Adults,Alpine Resources UK Ltd,Supported Other Accommodation - Private Contractors Payment,1553.57,0.00,COMMERCIAL SUPPLIER 
 26-05-2023,Adults,Prior Care Ltd_a,Home Care - Private Contractors Payment,1560.00,0.00,COMMERCIAL SUPPLIER 
 30-05-2023,Adults,Homestead Care Service,Home Care - Private Contractors Payment,1561.60,0.00,COMMERCIAL SUPPLIER 
 04-05-2023,Adults,Outlook Care - 86 Veronica Close,Residential Placements - Private Contractors Payment,1565.56,0.00,COMMERCIAL SUPPLIER 
 30-05-2023,Adults,Homestead Care Service,Home Care - Private Contractors Payment,1566.70,0.00,COMMERCIAL SUPPLIER 
 04-05-2023,Adults,Fountains Care Centre - Bondcare,Residential Care Income,1571.87,0.00,COMMERCIAL SUPPLIER 
 22-05-2023,Adults,Premier Carewaiting Ltd,Home Care - Private Contractors Payment,1572.52,0.00,COMMERCIAL SUPPLIER 
 16-05-2023,Adults,Home Support Services (Havering & Essex) Ltd,Home Care - Private Contractors Payment,1572.54,0.00,COMMERCIAL SUPPLIER 
 04-05-2023,Adults,Bupa Care Homes (HVC) - Havering Court,Nursing Homes - Private Contractors Payment,1573.87,0.00,COMMERCIAL SUPPLIER 
 04-05-2023,Adults,Alpine Resources UK Ltd,Supported Other Accommodation - Private Contractors Payment,1575.00,0.00,COMMERCIAL SUPPLIER 
 09-05-2023,Adults,Cera Care Operations Ltd,Home Care - Private Contractors Payment,1579.79,0.00,COMMERCIAL SUPPLIER 
 26-05-2023,Adults,Osborne Partnership,Daycare - Private Contractors Payment,1580.00,0.00,COMMERCIAL SUPPLIER 
 05-05-2023,Adults,Gilead Complete Care Group Ltd,Home Care - Private Contractors Payment,1584.00,0.00,COMMERCIAL SUPPLIER 
 26-05-2023,Adults,Prestige Care & Support Ltd,Home Care - Private Contractors Payment,1590.37,0.00,COMMERCIAL SUPPLIER 
 04-05-2023,Adults,Fari Care Ltd,Supported Other Accommodation - Private Contractors Payment,1596.00,0.00,COMMERCIAL SUPPLIER 
 04-05-2023,Adults,Fari Care Ltd,Supported Other Accommodation - Private Contractors Payment,1596.00,0.00,COMMERCIAL SUPPLIER 
 04-05-2023,Adults,Blueboard Care Services Ltd,Supported Other Accommodation - Private Contractors Payment,1596.68,0.00,COMMERCIAL SUPPLIER 
 04-05-2023,Adults,Blueboard Care Services Ltd,Supported Other Accommodation - Private Contractors Payment,1596.68,0.00,COMMERCIAL SUPPLIER 
 04-05-2023,Adults,Blueboard Care Services Ltd,Supported Other Accommodation - Private Contractors Payment,1596.68,0.00,COMMERCIAL SUPPLIER 
 04-05-2023,Adults,Blueboard Care Services Ltd,Supported Other Accommodation - Private Contractors Payment,1596.68,0.00,COMMERCIAL SUPPLIER 
 04-05-2023,Adults,The Cedars,Supported Other Accommodation - Private Contractors Payment,1597.56,0.00,COMMERCIAL SUPPLIER 
 04-05-2023,Adults,The Cedars,Supported Other Accommodation - Private Contractors Payment,1597.56,0.00,COMMERCIAL SUPPLIER 
 16-05-2023,Adults,Home Support Services (Havering & Essex) Ltd,Home Care - Private Contractors Payment,1603.48,0.00,COMMERCIAL SUPPLIER 
 04-05-2023,Adults,Ebony Health Care Services Limited,Supported Other Accommodation - Private Contractors Payment,1615.92,0.00,COMMERCIAL SUPPLIER 
 04-05-2023,Adults,Ebony Health Care Services Limited,Supported Other Accommodation - Private Contractors Payment,1615.92,0.00,COMMERCIAL SUPPLIER 
 04-05-2023,Adults,The Riverside Group,Supported Other Accommodation - Private Contractors Payment,1623.12,0.00, 
 16-05-2023,Adults,Home Support Services (Havering & Essex) Ltd,Home Care - Private Contractors Payment,1632.57,0.00,COMMERCIAL SUPPLIER 
 23-05-2023,Adults,Pleasant Home Healthcare Ltd,Home Care - Private Contractors Payment,1632.58,0.00,COMMERCIAL SUPPLIER 
 04-05-2023,Adults,Heath Care Services Ltd ,Supported Other Accommodation - Private Contractors Payment,1632.96,0.00,COMMERCIAL SUPPLIER 
 04-05-2023,Adults,Heath Care Services Ltd ,Supported Other Accommodation - Private Contractors Payment,1632.96,0.00,COMMERCIAL SUPPLIER 
 22-05-2023,Adults,London Homecare Ltd,Home Care - Private Contractors Payment,1638.05,0.00,COMMERCIAL SUPPLIER 
 26-05-2023,Adults,Certified Healthcare Solutions Ltd t/a In Home Care Havering,Home Care - Private Contractors Payment,1638.05,0.00,COMMERCIAL SUPPLIER 
 26-05-2023,Adults,Certified Healthcare Solutions Ltd t/a In Home Care Havering,Home Care - Private Contractors Payment,1638.05,0.00,COMMERCIAL SUPPLIER 
 16-05-2023,Adults,Home Support Services (Havering & Essex) Ltd,Home Care - Private Contractors Payment,1638.06,0.00,COMMERCIAL SUPPLIER 
 22-05-2023,Adults,John Stanleys Care Agency Ltd,Home Care - Private Contractors Payment,1645.25,0.00,COMMERCIAL SUPPLIER 
 24-05-2023,Adults,Matrix SCM Ltd,Agency Staff,1649.12,0.00,COMMERCIAL SUPPLIER 
 12-05-2023,Adults,Home Sweet Home Care Ltd,Home Care - Private Contractors Payment,1650.77,0.00,COMMERCIAL SUPPLIER 
 04-05-2023,Adults,Fari Care Ltd,Supported Other Accommodation - Private Contractors Payment,1653.00,0.00,COMMERCIAL SUPPLIER 
 04-05-2023,Adults,Crystalize Care Services Ltd,Home Care - Private Contractors Payment,1653.12,0.00,COMMERCIAL SUPPLIER 
 04-05-2023,Adults,The Cedars,Supported Other Accommodation - Private Contractors Payment,1653.48,0.00,COMMERCIAL SUPPLIER 
 04-05-2023,Adults,The Cedars,Supported Other Accommodation - Private Contractors Payment,1653.48,0.00,COMMERCIAL SUPPLIER 
 16-05-2023,Adults,Care-Away Ltd T/A Care Support,Home Care - Private Contractors Payment,1657.15,0.00,COMMERCIAL SUPPLIER 
 04-05-2023,Adults,Bupa Care Homes (HVC) - Havering Court,Nursing Homes - Private Contractors Payment,1665.41,0.00,COMMERCIAL SUPPLIER 
 30-05-2023,Adults,Care-Away Ltd T/A Care Support,Home Care - Private Contractors Payment,1668.94,0.00,COMMERCIAL SUPPLIER 
 04-05-2023,Adults,Bettertogether Limited,Supported Other Accommodation - Private Contractors Payment,1669.57,0.00,NON COMMERCIAL SUPPLIER 
 04-05-2023,Adults,Affinia Healthcare Ltd_a,Supported Other Accommodation - Private Contractors Payment,1674.24,0.00,COMMERCIAL SUPPLIER 
 04-05-2023,Adults,Affinia Healthcare Ltd_a,Supported Other Accommodation - Private Contractors Payment,1674.24,0.00,COMMERCIAL SUPPLIER 
 18-05-2023,Adults,Care-Away Ltd T/A Care Support,Home Care - Private Contractors Payment,1676.80,0.00,COMMERCIAL SUPPLIER 
 04-05-2023,Adults,Bupa Care Homes (HVC) - Havering Court,Nursing Homes - Private Contractors Payment,1678.62,0.00,COMMERCIAL SUPPLIER 
 21-05-2023,Adults,Bloomscare Ltd,Home Care - Private Contractors Payment,1681.71,0.00,COMMERCIAL SUPPLIER 
 21-05-2023,Adults,Bloomscare Ltd,Home Care - Private Contractors Payment,1681.71,0.00,COMMERCIAL SUPPLIER 
 31-05-2023,Adults,Matrix SCM Ltd,Agency Staff,1686.60,0.00,COMMERCIAL SUPPLIER 
 04-05-2023,Adults,Outlook Care - 76 Neave Crescent,Supported Other Accommodation - Private Contractors Payment,1686.96,0.00,COMMERCIAL SUPPLIER 
 04-05-2023,Adults,Outlook Care - 76 Neave Crescent,Supported Other Accommodation - Private Contractors Payment,1686.96,0.00,COMMERCIAL SUPPLIER 
 04-05-2023,Adults,Outlook Care - 76 Neave Crescent,Supported Other Accommodation - Private Contractors Payment,1686.96,0.00,COMMERCIAL SUPPLIER 
 04-05-2023,Adults,Outlook Care - 76 Neave Crescent,Supported Other Accommodation - Private Contractors Payment,1686.96,0.00,COMMERCIAL SUPPLIER 
 04-05-2023,Adults,Outlook Care - 76 Neave Crescent,Supported Other Accommodation - Private Contractors Payment,1686.96,0.00,COMMERCIAL SUPPLIER 
 04-05-2023,Adults,Outlook Care - 76 Neave Crescent,Supported Other Accommodation - Private Contractors Payment,1686.96,0.00,COMMERCIAL SUPPLIER 
 04-05-2023,Adults,Outlook Care - 76 Neave Crescent,Supported Other Accommodation - Private Contractors Payment,1686.96,0.00,COMMERCIAL SUPPLIER 
 04-05-2023,Adults,Outlook Care - 76 Neave Crescent,Supported Other Accommodation - Private Contractors Payment,1686.96,0.00,COMMERCIAL SUPPLIER 
 04-05-2023,Adults,Outlook Care - 76 Neave Crescent,Supported Other Accommodation - Private Contractors Payment,1686.96,0.00,COMMERCIAL SUPPLIER 
 04-05-2023,Adults,Outlook Care - 76 Neave Crescent,Supported Other Accommodation - Private Contractors Payment,1686.96,0.00,COMMERCIAL SUPPLIER 
 04-05-2023,Adults,Outlook Care - 76 Neave Crescent,Supported Other Accommodation - Private Contractors Payment,1686.96,0.00,COMMERCIAL SUPPLIER 
 04-05-2023,Adults,Outlook Care - 76 Neave Crescent,Supported Other Accommodation - Private Contractors Payment,1686.96,0.00,COMMERCIAL SUPPLIER 
 04-05-2023,Adults,Outlook Care - 76 Neave Crescent,Supported Other Accommodation - Private Contractors Payment,1686.96,0.00,COMMERCIAL SUPPLIER 
 04-05-2023,Adults,Outlook Care - 76 Neave Crescent,Supported Other Accommodation - Private Contractors Payment,1686.96,0.00,COMMERCIAL SUPPLIER 
 04-05-2023,Adults,Outlook Care - 76 Neave Crescent,Supported Other Accommodation - Private Contractors Payment,1686.96,0.00,COMMERCIAL SUPPLIER 
 04-05-2023,Adults,Outlook Care - 76 Neave Crescent,Supported Other Accommodation - Private Contractors Payment,1686.96,0.00,COMMERCIAL SUPPLIER 
 04-05-2023,Adults,Outlook Care - 76 Neave Crescent,Supported Other Accommodation - Private Contractors Payment,1691.92,0.00,COMMERCIAL SUPPLIER 
 04-05-2023,Adults,Outlook Care - 76 Neave Crescent,Supported Other Accommodation - Private Contractors Payment,1691.92,0.00,COMMERCIAL SUPPLIER 
 04-05-2023,Adults,Outlook Care - 76 Neave Crescent,Supported Other Accommodation - Private Contractors Payment,1691.92,0.00,COMMERCIAL SUPPLIER 
 04-05-2023,Adults,Outlook Care - 76 Neave Crescent,Supported Other Accommodation - Private Contractors Payment,1691.92,0.00,COMMERCIAL SUPPLIER 
 11-05-2023,Adults,Care-Away Ltd T/A Care Support,Home Care - Private Contractors Payment,1696.45,0.00,COMMERCIAL SUPPLIER 
 04-05-2023,Adults,Outlook Care - 4 Peel Way,Supported Other Accommodation - Private Contractors Payment,1696.48,0.00,COMMERCIAL SUPPLIER 
 04-05-2023,Adults,Outlook Care - 4 Peel Way,Supported Other Accommodation - Private Contractors Payment,1696.48,0.00,COMMERCIAL SUPPLIER 
 04-05-2023,Adults,Lodge Lane Care Home Limited,Respite Care - Private Contractors Payment,1700.00,0.00,COMMERCIAL SUPPLIER 
 04-05-2023,Adults,Langley House,Respite Care - Private Contractors Payment,1701.46,0.00,COMMERCIAL SUPPLIER 
 22-05-2023,Adults,Pleasant Home Healthcare Ltd,Home Care - Private Contractors Payment,1703.56,0.00,COMMERCIAL SUPPLIER 
 04-05-2023,Adults,GCH - Hillside Nursing Home,Residential Placements - Private Contractors Payment,1708.16,0.00,COMMERCIAL SUPPLIER 
 04-05-2023,Adults,Pathways Care and Support Services Ltd,Supported Other Accommodation - Private Contractors Payment,1708.24,0.00,COMMERCIAL SUPPLIER 
 04-05-2023,Adults,Pathways Care and Support Services Ltd,Supported Other Accommodation - Private Contractors Payment,1708.24,0.00,COMMERCIAL SUPPLIER 
 04-05-2023,Adults,Personal Information - Redacted,Supported Other Accommodation - Private Contractors Payment,1714.50,0.00,INDIVIDUALS 
 04-05-2023,Adults,Vibrance ,Residential Placements - Private Contractors Payment,1720.76,0.00,COMMERCIAL SUPPLIER 
 18-05-2023,Adults,Care-Away Ltd T/A Care Support,Home Care - Private Contractors Payment,1722.65,0.00,COMMERCIAL SUPPLIER 
 04-05-2023,Adults,Outlook Care - 76 Neave Crescent,Supported Other Accommodation - Private Contractors Payment,1725.76,0.00,COMMERCIAL SUPPLIER 
 04-05-2023,Adults,Outlook Care - 76 Neave Crescent,Supported Other Accommodation - Private Contractors Payment,1725.76,0.00,COMMERCIAL SUPPLIER 
 04-05-2023,Adults,Outlook Care - 76 Neave Crescent,Supported Other Accommodation - Private Contractors Payment,1725.76,0.00,COMMERCIAL SUPPLIER 
 04-05-2023,Adults,Outlook Care - 76 Neave Crescent,Supported Other Accommodation - Private Contractors Payment,1725.76,0.00,COMMERCIAL SUPPLIER 
 04-05-2023,Adults,Outlook Care - 76 Neave Crescent,Supported Other Accommodation - Private Contractors Payment,1725.76,0.00,COMMERCIAL SUPPLIER 
 04-05-2023,Adults,Outlook Care - 76 Neave Crescent,Supported Other Accommodation - Private Contractors Payment,1725.76,0.00,COMMERCIAL SUPPLIER 
 04-05-2023,Adults,Outlook Care - 76 Neave Crescent,Supported Other Accommodation - Private Contractors Payment,1725.76,0.00,COMMERCIAL SUPPLIER 
 04-05-2023,Adults,Outlook Care - 76 Neave Crescent,Supported Other Accommodation - Private Contractors Payment,1725.76,0.00,COMMERCIAL SUPPLIER 
 04-05-2023,Adults,Outreach Support Services Ltd,Supported Other Accommodation - Private Contractors Payment,1728.00,0.00,COMMERCIAL SUPPLIER 
 04-05-2023,Adults,Outreach Support Services Ltd,Supported Other Accommodation - Private Contractors Payment,1728.00,0.00,COMMERCIAL SUPPLIER 
 03-05-2023,Adults,Hospiva Care & Associates Agency Ltd_a,Home Care - Private Contractors Payment,1730.13,0.00,COMMERCIAL SUPPLIER 
 04-05-2023,Adults,Affinia Healthcare Ltd_a,Supported Other Accommodation - Private Contractors Payment,1732.76,0.00,COMMERCIAL SUPPLIER 
 04-05-2023,Adults,Affinia Healthcare Ltd_a,Supported Other Accommodation - Private Contractors Payment,1732.76,0.00,COMMERCIAL SUPPLIER 
 26-05-2023,Adults,Prestige Care & Support Ltd,Home Care - Private Contractors Payment,1736.71,0.00,COMMERCIAL SUPPLIER 
 04-05-2023,Adults,Ashking House Ltd,Residential Placements - Private Contractors Payment,1746.20,0.00,COMMERCIAL SUPPLIER 
 04-05-2023,Adults,Ashking House Ltd,Residential Placements - Private Contractors Payment,1746.20,0.00,COMMERCIAL SUPPLIER 
 30-05-2023,Adults,Flex360 Limited,Private Contractors Payment - Other,1750.00,0.00,COMMERCIAL SUPPLIER 
 16-05-2023,Adults,Home Support Services (Havering & Essex) Ltd,Home Care - Private Contractors Payment,1751.63,0.00,COMMERCIAL SUPPLIER 
 04-05-2023,Adults,GCH - Hillside Nursing Home,Nursing Homes - Private Contractors Payment,1773.18,0.00,COMMERCIAL SUPPLIER 
 04-05-2023,Adults,Fountains Care Centre - Bondcare,Residential Care Income,1776.92,0.00,COMMERCIAL SUPPLIER 
 04-05-2023,Adults,Affinia Healthcare Ltd_a,Supported Other Accommodation - Private Contractors Payment,1782.84,0.00,COMMERCIAL SUPPLIER 
 04-05-2023,Adults,Affinia Healthcare Ltd_a,Supported Other Accommodation - Private Contractors Payment,1782.84,0.00,COMMERCIAL SUPPLIER 
 22-05-2023,Adults,John Stanleys Care Agency Ltd,Home Care - Private Contractors Payment,1785.96,0.00,COMMERCIAL SUPPLIER 
 26-05-2023,Adults,Prestige Care & Support Ltd,Home Care - Private Contractors Payment,1792.04,0.00,COMMERCIAL SUPPLIER 
 04-05-2023,Adults,Kadmiel Projects Ltd,Supported Other Accommodation - Private Contractors Payment,1803.36,0.00,COMMERCIAL SUPPLIER 
 04-05-2023,Adults,Outlook Care - 76 Neave Crescent,Supported Other Accommodation - Private Contractors Payment,1812.16,0.00,COMMERCIAL SUPPLIER 
 04-05-2023,Adults,Outlook Care - 76 Neave Crescent,Supported Other Accommodation - Private Contractors Payment,1812.16,0.00,COMMERCIAL SUPPLIER 
 22-05-2023,Adults,Outreach Support Services Ltd,Home Care - Private Contractors Payment,1812.76,0.00,COMMERCIAL SUPPLIER 
 04-05-2023,Adults,Kadmiel Projects Ltd,Supported Other Accommodation - Private Contractors Payment,1812.88,0.00,COMMERCIAL SUPPLIER 
 04-05-2023,Adults,Protecthand Care Ltd ,Supported Other Accommodation - Private Contractors Payment,1814.40,0.00,COMMERCIAL SUPPLIER 
 04-05-2023,Adults,Protecthand Care Ltd ,Supported Other Accommodation - Private Contractors Payment,1814.40,0.00,COMMERCIAL SUPPLIER 
 31-05-2023,Adults,Home Support Services (Havering & Essex) Ltd,Home Care - Private Contractors Payment,1823.71,0.00,COMMERCIAL SUPPLIER 
 04-05-2023,Adults,GCH - Hillside Nursing Home,Nursing Homes - Private Contractors Payment,1826.04,0.00,COMMERCIAL SUPPLIER 
 04-05-2023,Adults,Bupa Care Homes (HVC) - Havering Court,Nursing Homes - Private Contractors Payment,1828.10,0.00,COMMERCIAL SUPPLIER 
 04-05-2023,Adults,Bupa Care Homes (HVC) - Havering Court,Nursing Homes - Private Contractors Payment,1831.64,0.00,COMMERCIAL SUPPLIER 
 22-05-2023,Adults,Outreach Support Services Ltd,Home Care - Private Contractors Payment,1834.60,0.00,COMMERCIAL SUPPLIER 
 22-05-2023,Adults,Premier Carewaiting Ltd,Home Care - Private Contractors Payment,1834.60,0.00,COMMERCIAL SUPPLIER 
 26-05-2023,Adults,Prestige Care & Support Ltd,Home Care - Private Contractors Payment,1834.63,0.00,COMMERCIAL SUPPLIER 
 31-05-2023,Adults,Home Support Services (Havering & Essex) Ltd,Home Care - Private Contractors Payment,1834.63,0.00,COMMERCIAL SUPPLIER 
 31-05-2023,Adults,Home Support Services (Havering & Essex) Ltd,Home Care - Private Contractors Payment,1834.63,0.00,COMMERCIAL SUPPLIER 
 31-05-2023,Adults,Home Support Services (Havering & Essex) Ltd,Home Care - Private Contractors Payment,1834.63,0.00,COMMERCIAL SUPPLIER 
 04-05-2023,Adults,Bettertogether Limited,Supported Other Accommodation - Private Contractors Payment,1839.43,0.00,NON COMMERCIAL SUPPLIER 
 16-05-2023,Adults,Home Support Services (Havering & Essex) Ltd,Home Care - Private Contractors Payment,1840.45,0.00,COMMERCIAL SUPPLIER 
 04-05-2023,Adults,Bupa Care Homes (HVC) - Havering Court,Nursing Homes - Private Contractors Payment,1840.48,0.00,COMMERCIAL SUPPLIER 
 04-05-2023,Adults,Affinia Healthcare Ltd_a,Supported Other Accommodation - Private Contractors Payment,1840.52,0.00,COMMERCIAL SUPPLIER 
 04-05-2023,Adults,Affinia Healthcare Ltd_a,Supported Other Accommodation - Private Contractors Payment,1840.52,0.00,COMMERCIAL SUPPLIER 
 31-05-2023,Adults,Home Support Services (Havering & Essex) Ltd,Home Care - Private Contractors Payment,1856.47,0.00,COMMERCIAL SUPPLIER 
 04-05-2023,Adults,Outlook Care - 4 Peel Way,Supported Other Accommodation - Private Contractors Payment,1857.40,0.00,COMMERCIAL SUPPLIER 
 04-05-2023,Adults,Outlook Care - 4 Peel Way,Supported Other Accommodation - Private Contractors Payment,1857.40,0.00,COMMERCIAL SUPPLIER 
 04-05-2023,Adults,Outlook Care - 76 Neave Crescent,Supported Other Accommodation - Private Contractors Payment,1857.48,0.00,COMMERCIAL SUPPLIER 
 04-05-2023,Adults,Outlook Care - 76 Neave Crescent,Supported Other Accommodation - Private Contractors Payment,1857.48,0.00,COMMERCIAL SUPPLIER 
 04-05-2023,Adults,Outlook Care - 76 Neave Crescent,Supported Other Accommodation - Private Contractors Payment,1857.48,0.00,COMMERCIAL SUPPLIER 
 04-05-2023,Adults,Outlook Care - 76 Neave Crescent,Supported Other Accommodation - Private Contractors Payment,1857.48,0.00,COMMERCIAL SUPPLIER 
 04-05-2023,Adults,2 Peel Way - Outlook Care,Supported Other Accommodation - Private Contractors Payment,1858.68,0.00,NON COMMERCIAL SUPPLIER 
 04-05-2023,Adults,2 Peel Way - Outlook Care,Supported Other Accommodation - Private Contractors Payment,1858.68,0.00,NON COMMERCIAL SUPPLIER 
 24-05-2023,Adults,Action First Assessments Ltd,Private Contractors Payment - Other,1860.00,0.00,COMMERCIAL SUPPLIER 
 16-05-2023,Adults,Home Support Services (Havering & Essex) Ltd,Home Care - Private Contractors Payment,1860.83,0.00,COMMERCIAL SUPPLIER 
 31-05-2023,Adults,Home Support Services (Havering & Essex) Ltd,Home Care - Private Contractors Payment,1863.75,0.00,COMMERCIAL SUPPLIER 
 22-05-2023,Adults,Outreach Support Services Ltd,Home Care - Private Contractors Payment,1863.99,0.00,COMMERCIAL SUPPLIER 
 22-05-2023,Adults,Outreach Support Services Ltd,Home Care - Private Contractors Payment,1863.99,0.00,COMMERCIAL SUPPLIER 
 31-05-2023,Adults,Home Support Services (Havering & Essex) Ltd,Home Care - Private Contractors Payment,1865.20,0.00,COMMERCIAL SUPPLIER 
 26-05-2023,Adults,Prestige Care & Support Ltd,Home Care - Private Contractors Payment,1867.75,0.00,COMMERCIAL SUPPLIER 
 04-05-2023,Adults,Affinia Healthcare Ltd_a,Supported Other Accommodation - Private Contractors Payment,1869.80,0.00,COMMERCIAL SUPPLIER 
 04-05-2023,Adults,Affinia Healthcare Ltd_a,Supported Other Accommodation - Private Contractors Payment,1869.80,0.00,COMMERCIAL SUPPLIER 
 30-05-2023,Adults,Care-Away Ltd T/A Care Support,Home Care - Private Contractors Payment,1870.68,0.00,COMMERCIAL SUPPLIER 
 04-05-2023,Adults,Masumin Ltd t/s Abbeleigh House,Respite Care - Private Contractors Payment,1873.52,0.00,COMMERCIAL SUPPLIER 
 24-05-2023,Adults,IJB Healthcare Ltd,Home Care - Private Contractors Payment,1878.28,0.00,COMMERCIAL SUPPLIER 
 04-05-2023,Adults,Optimal Care Services Ltd,Supported Other Accommodation - Private Contractors Payment,1879.20,0.00,COMMERCIAL SUPPLIER 
 04-05-2023,Adults,Optimal Care Services Ltd,Supported Other Accommodation - Private Contractors Payment,1879.20,0.00,COMMERCIAL SUPPLIER 
 31-05-2023,Adults,Home Support Services (Havering & Essex) Ltd,Home Care - Private Contractors Payment,1881.58,0.00,COMMERCIAL SUPPLIER 
 04-05-2023,Adults,Axcelence Limited,Supported Other Accommodation - Private Contractors Payment,1882.27,0.00,COMMERCIAL SUPPLIER 
 03-05-2023,Adults,Hospiva Care & Associates Agency Ltd_a,Home Care - Private Contractors Payment,1888.48,0.00,COMMERCIAL SUPPLIER 
 04-05-2023,Adults,Affinia Healthcare Ltd_a,Supported Other Accommodation - Private Contractors Payment,1891.20,0.00,COMMERCIAL SUPPLIER 
 04-05-2023,Adults,Affinia Healthcare Ltd_a,Supported Other Accommodation - Private Contractors Payment,1891.20,0.00,COMMERCIAL SUPPLIER 
 04-05-2023,Adults,Affinia Healthcare Ltd_a,Supported Other Accommodation - Private Contractors Payment,1891.20,0.00,COMMERCIAL SUPPLIER 
 04-05-2023,Adults,Affinia Healthcare Ltd_a,Supported Other Accommodation - Private Contractors Payment,1891.20,0.00,COMMERCIAL SUPPLIER 
 04-05-2023,Adults,Affinia Healthcare Ltd_a,Supported Other Accommodation - Private Contractors Payment,1891.20,0.00,COMMERCIAL SUPPLIER 
 04-05-2023,Adults,Affinia Healthcare Ltd_a,Supported Other Accommodation - Private Contractors Payment,1891.20,0.00,COMMERCIAL SUPPLIER 
 04-05-2023,Adults,Affinia Healthcare Ltd_a,Supported Other Accommodation - Private Contractors Payment,1892.68,0.00,COMMERCIAL SUPPLIER 
 04-05-2023,Adults,Affinia Healthcare Ltd_a,Supported Other Accommodation - Private Contractors Payment,1892.68,0.00,COMMERCIAL SUPPLIER 
 04-05-2023,Adults,Bettertogether Limited,Supported Other Accommodation - Private Contractors Payment,1897.43,0.00,NON COMMERCIAL SUPPLIER 
 04-05-2023,Adults,Bettertogether Limited,Supported Other Accommodation - Private Contractors Payment,1897.43,0.00,NON COMMERCIAL SUPPLIER 
 04-05-2023,Adults,Bettertogether Limited,Supported Other Accommodation - Private Contractors Payment,1897.43,0.00,NON COMMERCIAL SUPPLIER 
 04-05-2023,Adults,Bettertogether Limited,Supported Other Accommodation - Private Contractors Payment,1897.43,0.00,NON COMMERCIAL SUPPLIER 
 04-05-2023,Adults,Bettertogether Limited,Supported Other Accommodation - Private Contractors Payment,1897.43,0.00,NON COMMERCIAL SUPPLIER 
 04-05-2023,Adults,Bettertogether Limited,Supported Other Accommodation - Private Contractors Payment,1897.43,0.00,NON COMMERCIAL SUPPLIER 
 04-05-2023,Adults,Bettertogether Limited,Supported Other Accommodation - Private Contractors Payment,1897.43,0.00,NON COMMERCIAL SUPPLIER 
 16-05-2023,Adults,Care-Away Ltd T/A Care Support,Home Care - Private Contractors Payment,1898.19,0.00,COMMERCIAL SUPPLIER 
 31-05-2023,Adults,Home Support Services (Havering & Essex) Ltd,Home Care - Private Contractors Payment,1902.33,0.00,COMMERCIAL SUPPLIER 
 04-05-2023,Adults,Abbottswood Lodge,Residential Placements - Private Contractors Payment,1904.88,0.00,COMMERCIAL SUPPLIER 
 04-05-2023,Adults,Abbottswood Lodge,Residential Placements - Private Contractors Payment,1904.88,0.00,COMMERCIAL SUPPLIER 
 03-05-2023,Adults,Havering Mind,Payments To Voluntary Sector,1925.00,0.00,NON COMMERCIAL SUPPLIER 
 03-05-2023,Adults,Havering Mind,Payments To Voluntary Sector,1925.00,0.00,NON COMMERCIAL SUPPLIER 
 04-05-2023,Adults,HC-One Oval Ltd - The Hornchurch Nursing Centre,Nursing Homes - Private Contractors Payment,1935.21,0.00,COMMERCIAL SUPPLIER 
 04-05-2023,Adults,Care Square Ltd.,Supported Other Accommodation - Private Contractors Payment,1938.00,0.00,COMMERCIAL SUPPLIER 
 04-05-2023,Adults,Care Square Ltd.,Supported Other Accommodation - Private Contractors Payment,1938.00,0.00,COMMERCIAL SUPPLIER 
 04-05-2023,Adults,Care Square Ltd.,Supported Other Accommodation - Private Contractors Payment,1938.00,0.00,COMMERCIAL SUPPLIER 
 04-05-2023,Adults,Moreland House_a,Nursing Homes - Private Contractors Payment,1938.43,0.00,COMMERCIAL SUPPLIER 
 04-05-2023,Adults,Outlook Care - 4 Peel Way,Supported Other Accommodation - Private Contractors Payment,1939.76,0.00,COMMERCIAL SUPPLIER 
 04-05-2023,Adults,Outlook Care - 4 Peel Way,Supported Other Accommodation - Private Contractors Payment,1939.76,0.00,COMMERCIAL SUPPLIER 
 04-05-2023,Adults,Outlook Care - 4 Peel Way,Supported Other Accommodation - Private Contractors Payment,1939.76,0.00,COMMERCIAL SUPPLIER 
 04-05-2023,Adults,Outlook Care - 4 Peel Way,Supported Other Accommodation - Private Contractors Payment,1939.76,0.00,COMMERCIAL SUPPLIER 
 04-05-2023,Adults,Masumin Ltd t/s Abbeleigh House,Residential Placements - Private Contractors Payment,1942.86,0.00,COMMERCIAL SUPPLIER 
 04-05-2023,Adults,Kadmiel Projects Ltd,Supported Other Accommodation - Private Contractors Payment,1947.64,0.00,COMMERCIAL SUPPLIER 
 04-05-2023,Adults,Kadmiel Projects Ltd,Supported Other Accommodation - Private Contractors Payment,1947.64,0.00,COMMERCIAL SUPPLIER 
 04-05-2023,Adults,Voyage Ltd - Solar Care Melbreck,Nursing Homes - Private Contractors Payment,1950.11,0.00,COMMERCIAL SUPPLIER 
 04-05-2023,Adults,Kadmiel Projects Ltd,Supported Other Accommodation - Private Contractors Payment,1957.92,0.00,COMMERCIAL SUPPLIER 
 04-05-2023,Adults,Kadmiel Projects Ltd,Supported Other Accommodation - Private Contractors Payment,1957.92,0.00,COMMERCIAL SUPPLIER 
 04-05-2023,Adults,Affinia Healthcare Ltd_a,Supported Other Accommodation - Private Contractors Payment,1963.24,0.00,COMMERCIAL SUPPLIER 
 04-05-2023,Adults,Affinia Healthcare Ltd_a,Supported Other Accommodation - Private Contractors Payment,1963.24,0.00,COMMERCIAL SUPPLIER 
 26-05-2023,Adults,Prestige Care & Support Ltd,Home Care - Private Contractors Payment,1966.40,0.00,COMMERCIAL SUPPLIER 
 04-05-2023,Adults,Forward Support Ltd ,Residential Placements - Private Contractors Payment,1976.40,0.00,COMMERCIAL SUPPLIER 
 04-05-2023,Adults,Forward Support Ltd ,Residential Placements - Private Contractors Payment,1976.40,0.00,COMMERCIAL SUPPLIER 
 04-05-2023,Adults,May Residential Homes Ltd,Residential Placements - Private Contractors Payment,1983.73,0.00,COMMERCIAL SUPPLIER 
 04-05-2023,Adults,Lodge Lane Care Home Limited,Residential Placements - Private Contractors Payment,1983.73,0.00,COMMERCIAL SUPPLIER 
